Directorate,Department,Expenditure Type,Ref.Doc.1,Vendor Name,Expenditure Amount (exc VAT),Payment Date
COMMERCIAL,ENVIRONMENT,Capital Construction and Works,1001858101,Conway Aecom Ltd,"2,000.00",29/05/2020
COMMERCIAL,ENVIRONMENT,Capital Construction and Works,1001864801,Conway Aecom Ltd,257.75,29/05/2020
COMMERCIAL,ENVIRONMENT,Capital Construction and Works,1001868201,Conway Aecom Ltd,"1,434.19",29/05/2020
COMMERCIAL,ENVIRONMENT,Other Services,1001307702,Conway Aecom Ltd,"31,320.29",28/05/2020
COMMERCIAL,ENVIRONMENT,Other Services,1001315302,Conway Aecom Ltd,"40,826.59",28/05/2020
COMMERCIAL,ENVIRONMENT,Other Services,1001315702,Conway Aecom Ltd,"14,920.07",28/05/2020
COMMERCIAL,ENVIRONMENT,Other Services,1001641801,Conway Aecom Ltd,"49,000.00",19/05/2020
COMMERCIAL,ENVIRONMENT,Other Services,1001262402,Conway Aecom Ltd,"7,772.82",18/05/2020
COMMERCIAL,ENVIRONMENT,Other Services,1001373501,Conway Aecom Ltd,"15,034.91",05/05/2020
COMMERCIAL,ENVIRONMENT,Other Services,1001407301,Conway Aecom Ltd,"25,947.43",06/05/2020
COMMERCIAL,ENVIRONMENT,Equipment and Materials Purcha,1001552101,IRIS GARDENING SERVICES LTD,"2,950.00",14/05/2020
COMMERCIAL,ENVIRONMENT,Other Services,1001794601,Traffic Survey Partners (TSP) Ltd,340.00,26/05/2020
COMMERCIAL,ENVIRONMENT,Other Services,1001764002,ANNEMOUNT NURSERY SCHOOL,"1,200.00",22/05/2020
COMMERCIAL,ENVIRONMENT,Other Services,1001804201,BOX CLEVER THEATRE COMPANY,"9,999.00",26/05/2020
COMMERCIAL,ENVIRONMENT,Other Services,10015601,BRIGHT KIDZ,"1,814.60",11/05/2020
COMMERCIAL,ENVIRONMENT,Other Services,1001339101,Street Tree Care Ltd,700.00,01/05/2020
COMMERCIAL,ENVIRONMENT,Other Services,1001376002,Conway Aecom Ltd,"5,470.86",05/05/2020
COMMERCIAL,ENVIRONMENT,Advertising,1001786301,TMP (UK) LTD,"2,096.00",26/05/2020
COMMERCIAL,ENVIRONMENT,Professional Services,1001590302,APPLEYARD & TREW LLP,"4,147.33",18/05/2020
COMMERCIAL,ENVIRONMENT,Professional Services,1001345201,Circling the Square,"12,500.00",01/05/2020
COMMERCIAL,ENVIRONMENT,Building Repairs & Maintenance,1001856701,City Axis Limited,"193,649.48",28/05/2020
COMMERCIAL,HOUSING REVENUE ACCOUNT,Other Agencies - Third Party P,1001025901,THE BARNETGROUP LIMITED,"1,801.00",26/05/2020
COMMERCIAL,HOUSING REVENUE ACCOUNT,Professional Services,1001342701,THE BARNETGROUP LIMITED,"3,810,540.00",01/05/2020
COMMERCIAL,HOUSING REVENUE ACCOUNT,Other Services,1001788201,Clearway environmental Services (UK) Lim,28.00,26/05/2020
COMMERCIAL,HOUSING REVENUE ACCOUNT,Other Agencies - Third Party P,1001037101,THE BARNETGROUP LIMITED,"600,000.00",26/05/2020
COMMERCIAL,HOUSING REVENUE ACCOUNT,Other Agencies - Third Party P,1000956003,THE BARNETGROUP LIMITED,"232,331.04",22/05/2020
COMMERCIAL,HOUSING REVENUE ACCOUNT,Other Agencies - Third Party P,1001042101,THE BARNETGROUP LIMITED,"136,755.57",11/05/2020
COMMERCIAL,HOUSING REVENUE ACCOUNT,Other Agencies - Third Party P,1001036601,THE BARNETGROUP LIMITED,"150,000.00",11/05/2020
Commercial,HRA,Consultants Fees,1001792601,P P C R ASSOCIATES LTD,170.67,26/05/2020
Commercial,HRA,Consultants Fees,1000747704,THE BARNETGROUP LIMITED,"1,564.25",22/05/2020
Commercial,HRA,Consultants Fees,1001111302,PRIORITY ESTATES PROJECT LTD,"2,444.75",20/05/2020
Commercial,HRA,Consultants Fees,1001518702,PRIORITY ESTATES PROJECT LTD,"1,397.00",13/05/2020
Commercial,HRA,Consultants Fees,1001742501,THE BARNETGROUP LIMITED,"530,334.52",22/05/2020
Commercial,HRA,Private Contractors - Third Pa,80034786,REDACTED - PERSONAL DATA,"1,259.38",11/05/2020
Commercial,HRA,Private Contractors - Third Pa,80034796,REDACTED - PERSONAL DATA,"1,322.73",11/05/2020
Commercial,HRA,Private Contractors - Third Pa,80035211,REDACTED - PERSONAL DATA,"1,764.64",12/05/2020
COMMERCIAL,PARKING AND INFRASTRUCTURE,Equipment and Materials Purcha,1001879901,Conway Aecom Ltd,327.06,29/05/2020
Commercial,Regional Enterprise,Advertising,1001786102,TMP (UK) LTD,90.00,28/05/2020
Commercial,Regional Enterprise,Advertising,1001802502,TMP (UK) LTD,170.00,28/05/2020
Commercial,Regional Enterprise,Other Services,1001439001,Conway Aecom Ltd,61.24,07/05/2020
Commercial,Regional Enterprise,Other Services,1001439101,Conway Aecom Ltd,82.16,07/05/2020
Commercial,Regional Enterprise,Other Services,1001439201,Conway Aecom Ltd,224.61,07/05/2020
Commercial,Regional Enterprise,Other Services,1001439801,Conway Aecom Ltd,82.16,28/05/2020
Commercial,Regional Enterprise,Other Services,1001439901,Conway Aecom Ltd,82.16,07/05/2020
Commercial,Regional Enterprise,Other Services,1001440101,Conway Aecom Ltd,164.33,07/05/2020
Commercial,Regional Enterprise,Other Services,1001440201,Conway Aecom Ltd,215.15,07/05/2020
Commercial,Regional Enterprise,Other Services,1001440301,Conway Aecom Ltd,333.77,07/05/2020
Commercial,Regional Enterprise,Other Services,1001441602,Conway Aecom Ltd,"22,574.71",11/05/2020
Commercial,Regional Enterprise,Other Services,1001443801,Conway Aecom Ltd,384.94,07/05/2020
Commercial,Regional Enterprise,Other Services,1001444001,Conway Aecom Ltd,552.03,07/05/2020
Commercial,Regional Enterprise,Other Services,1001444201,Conway Aecom Ltd,"1,972.82",07/05/2020
Commercial,Regional Enterprise,Other Services,1001444602,Conway Aecom Ltd,"22,574.71",28/05/2020
Commercial,Regional Enterprise,Other Services,1001445001,Conway Aecom Ltd,"1,473.13",07/05/2020
Commercial,Regional Enterprise,Other Services,1001445101,Conway Aecom Ltd,"22,574.71",07/05/2020
Commercial,Regional Enterprise,Other Services,1001446301,Conway Aecom Ltd,328.66,07/05/2020
Commercial,Regional Enterprise,Other Services,1001447101,Conway Aecom Ltd,164.33,07/05/2020
Commercial,Regional Enterprise,Other Services,1001447201,Conway Aecom Ltd,"3,910.00",07/05/2020
Commercial,Regional Enterprise,Other Services,1001447301,Conway Aecom Ltd,796.00,07/05/2020
Commercial,Regional Enterprise,Other Services,1001447401,Conway Aecom Ltd,585.84,07/05/2020
Commercial,Regional Enterprise,Other Services,1001447601,Conway Aecom Ltd,"1,800.50",07/05/2020
Commercial,Regional Enterprise,Other Services,1001447701,Conway Aecom Ltd,"22,574.71",07/05/2020
Commercial,Regional Enterprise,Other Services,1001447901,Conway Aecom Ltd,61.24,07/05/2020
Commercial,Regional Enterprise,Other Services,1001470701,Conway Aecom Ltd,61.24,11/05/2020
Commercial,Regional Enterprise,Other Services,1001470801,Conway Aecom Ltd,61.24,11/05/2020
Commercial,Regional Enterprise,Other Services,1001472401,Conway Aecom Ltd,61.24,11/05/2020
Commercial,Regional Enterprise,Other Services,1001472701,Conway Aecom Ltd,215.15,11/05/2020
Commercial,Regional Enterprise,Other Services,1001472801,Conway Aecom Ltd,62.18,11/05/2020
Commercial,Regional Enterprise,Other Services,1001473601,Conway Aecom Ltd,122.49,11/05/2020
Commercial,Regional Enterprise,Other Services,1001473801,Conway Aecom Ltd,122.49,11/05/2020
Commercial,Regional Enterprise,Other Services,1001473902,Conway Aecom Ltd,61.24,11/05/2020
Commercial,Regional Enterprise,Other Services,1001474001,Conway Aecom Ltd,215.15,11/05/2020
Commercial,Regional Enterprise,Other Services,1001474201,Conway Aecom Ltd,61.24,11/05/2020
Commercial,Regional Enterprise,Other Services,1001474301,Conway Aecom Ltd,215.15,11/05/2020
Commercial,Regional Enterprise,Other Services,1001474601,Conway Aecom Ltd,215.15,11/05/2020
Commercial,Regional Enterprise,Other Services,1001475201,Conway Aecom Ltd,61.24,11/05/2020
Commercial,Regional Enterprise,Other Services,1001475601,Conway Aecom Ltd,214.48,11/05/2020
Commercial,Regional Enterprise,Other Services,1001475801,Conway Aecom Ltd,130.43,11/05/2020
Commercial,Regional Enterprise,Other Services,1001477001,Conway Aecom Ltd,215.15,11/05/2020
Commercial,Regional Enterprise,Other Services,1001477201,Conway Aecom Ltd,61.24,11/05/2020
Commercial,Regional Enterprise,Other Services,1001477301,Conway Aecom Ltd,215.15,11/05/2020
Commercial,Regional Enterprise,Other Services,1001478501,Conway Aecom Ltd,61.24,11/05/2020
Commercial,Regional Enterprise,Other Services,1001479201,Conway Aecom Ltd,61.24,11/05/2020
Commercial,Regional Enterprise,Other Services,1001480401,Conway Aecom Ltd,215.15,11/05/2020
Commercial,Regional Enterprise,Other Services,1001481501,Conway Aecom Ltd,56.42,11/05/2020
Commercial,Regional Enterprise,Other Services,1001481601,Conway Aecom Ltd,61.24,11/05/2020
Commercial,Regional Enterprise,Other Services,1001481801,Conway Aecom Ltd,215.15,11/05/2020
Commercial,Regional Enterprise,Other Services,1001481901,Conway Aecom Ltd,55.42,11/05/2020
Commercial,Regional Enterprise,Other Services,1001473402,KENT COUNTY COUNCIL (KCS),68.45,22/05/2020
Commercial,Regional Enterprise,Advertising,1001563902,TMP (UK) LTD,206.00,15/05/2020
Commercial,Regional Enterprise,Advertising,1001577402,TMP (UK) LTD,215.00,15/05/2020
Commercial,Regional Enterprise,Advertising,1001583201,TMP (UK) LTD,99.00,18/05/2020
Commercial,Regional Enterprise,Advertising,1001583401,TMP (UK) LTD,179.00,18/05/2020
Commercial,Regional Enterprise,Advertising,1001583701,TMP (UK) LTD,215.00,18/05/2020
Commercial,Regional Enterprise,Advertising,1001583801,TMP (UK) LTD,197.00,18/05/2020
Commercial,Regional Enterprise,Advertising,1001585701,TMP (UK) LTD,170.00,18/05/2020
Commercial,Regional Enterprise,Advertising,1001585801,TMP (UK) LTD,99.00,18/05/2020
Commercial,Regional Enterprise,Advertising,1001586401,TMP (UK) LTD,314.00,18/05/2020
Commercial,Regional Enterprise,Advertising,1001586701,TMP (UK) LTD,170.00,18/05/2020
Commercial,Regional Enterprise,Advertising,1001587601,TMP (UK) LTD,90.00,18/05/2020
Commercial,Regional Enterprise,Advertising,1001588001,TMP (UK) LTD,179.00,18/05/2020
Commercial,Regional Enterprise,Advertising,1001588802,TMP (UK) LTD,206.00,18/05/2020
Commercial,Regional Enterprise,Advertising,1001588901,TMP (UK) LTD,197.00,18/05/2020
Commercial,Regional Enterprise,Advertising,1001589702,TMP (UK) LTD,99.00,18/05/2020
Commercial,Regional Enterprise,Advertising,1001589901,TMP (UK) LTD,99.00,18/05/2020
Commercial,Regional Enterprise,Advertising,1001590101,TMP (UK) LTD,170.00,18/05/2020
Commercial,Regional Enterprise,Advertising,1001590401,TMP (UK) LTD,135.00,18/05/2020
Commercial,Regional Enterprise,Advertising,1001591301,TMP (UK) LTD,179.00,18/05/2020
Commercial,Regional Enterprise,Advertising,1001591701,TMP (UK) LTD,90.00,18/05/2020
Commercial,Regional Enterprise,Advertising,1001592202,TMP (UK) LTD,206.00,18/05/2020
Commercial,Regional Enterprise,Advertising,1001592701,TMP (UK) LTD,170.00,18/05/2020
Commercial,Regional Enterprise,Advertising,1001800801,TMP (UK) LTD,126.00,26/05/2020
Commercial,Regional Enterprise,Advertising,1001801101,TMP (UK) LTD,126.00,26/05/2020
Commercial,Regional Enterprise,Advertising,1001801201,TMP (UK) LTD,135.00,26/05/2020
Commercial,Regional Enterprise,Advertising,1001801301,TMP (UK) LTD,117.00,26/05/2020
Commercial,Regional Enterprise,Advertising,1001801501,TMP (UK) LTD,117.00,26/05/2020
Commercial,Regional Enterprise,Advertising,1001805001,TMP (UK) LTD,126.00,26/05/2020
Commercial,Regional Enterprise,Advertising,1001805801,TMP (UK) LTD,117.00,26/05/2020
Commercial,Regional Enterprise,Professional Services,1001791701,The Royal Borough of Greenwich,"4,210.00",26/05/2020
Commercial,Regional Enterprise,Advertising,1001816001,TMP (UK) LTD,691.50,27/05/2020
Commercial,Regional Enterprise,Other Services,1001818101,TMP (UK) LTD,526.00,27/05/2020
Commercial,Regional Enterprise,Other Services,1001851001,Conway Aecom Ltd,"24,367.01",28/05/2020
Commercial,Regional Enterprise,Cleaning and domestic material,1001374502,Norse Commercial Services Ltd,583.82,05/05/2020
Commercial,Regional Enterprise,Cleaning and domestic material,1001375302,Norse Commercial Services Ltd,583.82,05/05/2020
Commercial,Regional Enterprise,Cleaning and domestic material,1001375902,Norse Commercial Services Ltd,583.82,05/05/2020
Commercial,Regional Enterprise,Cleaning and domestic material,1001376902,Norse Commercial Services Ltd,583.82,05/05/2020
Commercial,Regional Enterprise,Cleaning and domestic material,1001377002,Norse Commercial Services Ltd,583.82,05/05/2020
Commercial,Regional Enterprise,Cleaning and domestic material,1001377102,Norse Commercial Services Ltd,583.82,05/05/2020
Commercial,Regional Enterprise,Cleaning and domestic material,1001381702,Norse Commercial Services Ltd,"1,751.46",05/05/2020
Commercial,Regional Enterprise,Cleaning and domestic material,1001398202,Norse Commercial Services Ltd,583.82,05/05/2020
Commercial,Regional Enterprise,Cleaning and domestic material,1001399102,Norse Commercial Services Ltd,583.82,05/05/2020
Commercial,Regional Enterprise,Cleaning and domestic material,1001399302,Norse Commercial Services Ltd,583.82,05/05/2020
Commercial,Regional Enterprise,Cleaning and domestic material,1001399702,Norse Commercial Services Ltd,583.82,05/05/2020
Commercial,Regional Enterprise,Fees and Charges,1001792101,Harrow Green Ltd,775.00,26/05/2020
Commercial,Regional Enterprise,Fees and Charges,80035408,Veterinary Education and Training,783.17,22/05/2020
Commercial,Regional Enterprise,Other Services,1001579302,RM COUNTRYSIDE SERVICES LTD,379.00,18/05/2020
Commercial,Regional Enterprise,Other Services,10015590,Conway Aecom Ltd,242.05,05/05/2020
Commercial,Regional Enterprise,Other Services,1001279402,Conway Aecom Ltd,"2,949.07",01/05/2020
Commercial,Regional Enterprise,Other Establishments - Third P,80035375,Transport For London,"2,190,747.54",20/05/2020
Commercial,Regional Enterprise,RE Services Contract Payment,1001346102,RE (REGIONAL ENTERPRISE) LIMITED,"1,745.34",14/05/2020
Commercial,Regional Enterprise,Professional Services,1001014903,VALUATION OFFICE AGENCY,"4,483.00",19/05/2020
Commercial,Regional Enterprise,Advertising,1000540902,TMP (UK) LTD,422.00,19/05/2020
Commercial,Regional Enterprise,Consultants Fees,1001343004,RE (REGIONAL ENTERPRISE) LIMITED,"42,062.39",14/05/2020
Commercial,Regional Enterprise,Other Services,1001159302,RE (REGIONAL ENTERPRISE) LIMITED,"11,000.00",14/05/2020
Commercial,Regional Enterprise,Professional Services,1001860701,WATES PROPERTY SERVICES LTD,286.58,29/05/2020
Corporate Accounting,Corporate Accounting,Other Local Authorities - Thir,80035119,GLA LEVIES,"1,808,016.00",06/05/2020
Corporate Accounting,Corporate Accounting,Other Local Authorities - Thir,80035121,GLA LEVIES,"4,908,426.29",06/05/2020
Corporate Accounting,Corporate Accounting,Grant Payments,80035018,Young Barnet Foundation,"2,436.50",04/05/2020
Corporate Accounting,Corporate Accounting,Other Transfer Payments to Soc,80035203,Wirecard (FS instant 2040880892973),"18,173.91",12/05/2020
Corporate Accounting,Corporate Accounting,Other Transfer Payments to Soc,80035205,Wirecard (FS ongoing 2040881670310,"54,645.80",12/05/2020
Corporate Accounting,Corporate Accounting,Private Contractors - Third Pa,80035181,REDACTED - PERSONAL DATA,"1,000.00",18/05/2020
Corporate Accounting,Corporate Accounting,Other Transfer Payments to Soc,80035595,PFS FS - Staff Payments eWallet,50.00,28/05/2020
Corporate Accounting,Corporate Accounting,Other Transfer Payments to Soc,80035596,PFS FS - Ongoing Payments eWallet,"1,200.00",28/05/2020
Corporate Accounting,Corporate Accounting,Other Transfer Payments to Soc,80035594,PFS FS - Emergency eWallet,"1,546.40",28/05/2020
Corporate Accounting,Corporate Accounting,Fees and Charges,80035112,Greenways Properties (Whipsnade) Ltd,"12,000.00",06/05/2020
Corporate Accounting,Corporate Accounting,Fees and Charges,80035015,C & F Scaffolding,"1,000.00",01/05/2020
Corporate Accounting,Corporate Accounting,Fees and Charges,80035190,Leska Scaffolding LTD,564.78,13/05/2020
Corporate Accounting,Corporate Accounting,Fees and Charges,80035039,EVEREST SCAFFOLDING LTD,"1,400.00",01/05/2020
Corporate Accounting,Corporate Accounting,Fees and Charges,80035178,Emuna Limited,"5,370.80",13/05/2020
Corporate Accounting,Corporate Accounting,Fees and Charges,80034759,Woolfe Estates LTD,"1,000.00",01/05/2020
Corporate Accounting,Corporate Accounting,Fees and Charges,80035017,Red And Black Scaffolding,564.78,01/05/2020
Corporate Accounting,Corporate Accounting,Fees and Charges,80035044,Greatford Garden Services LTD,"2,600.00",01/05/2020
Corporate Accounting,Corporate Accounting,Fees and Charges,80035021,Newquest Properties LTD,"1,000.00",01/05/2020
Corporate Accounting,Corporate Accounting,Fees and Charges,80035063,Kent County Access Ltd,"2,164.78",13/05/2020
Corporate Accounting,Corporate Accounting,Fees and Charges,80035303,iHomes (London) Ltd T/A Insignia Homes,"4,500.00",15/05/2020
Corporate Accounting,Corporate Accounting,Fees and Charges,80035189,Brylane Construction Ltd,"1,600.00",13/05/2020
Corporate Accounting,Corporate Accounting,Fees and Charges,80035186,City lifting,"1,000.00",13/05/2020
Corporate Accounting,Corporate Accounting,Fees and Charges,80035305,J + L Scaffolding LTD,"2,346.78",15/05/2020
Corporate Accounting,Corporate Accounting,Fees and Charges,80035462,AS Ramsay Building Contractors LTD,"2,764.78",28/05/2020
Delivery Units,Adults and Health,Voluntary Associations - Third,50011852,SANCTUARY HOUSING ASSOCIATION,"6,058.12",18/05/2020
Delivery Units,Adults and Health,Voluntary Associations - Third,50011850,BARNET MENCAP,"11,142.65",18/05/2020
Delivery Units,Adults and Health,Voluntary Associations - Third,50011851,METROPOLITAN SUPPORT TRUST,"3,710.82",18/05/2020
Delivery Units,Adults and Health,Voluntary Associations - Third,50008603,BARNET MENCAP,"11,142.65",31/05/2020
Delivery Units,Adults and Health,Voluntary Associations - Third,50008604,BARNET MENCAP,"18,249.66",31/05/2020
Delivery Units,Adults and Health,Voluntary Associations - Third,50008605,METROPOLITAN SUPPORT TRUST,"5,626.00",31/05/2020
Delivery Units,Adults and Health,Ttl IT & Comms,1001484801,P A Consulting Services Ltd,"27,157.55",11/05/2020
Delivery Units,Adults and Health,Other Services,1001438302,BARNET MENCAP,"18,249.66",07/05/2020
Delivery Units,Adults and Health,Voluntary Associations - Third,50011849,AGE CONCERN,"54,166.00",18/05/2020
Delivery Units,Adults and Health,Other Services,1001141302,POhWER,"5,662.37",12/05/2020
Delivery Units,Adults and Health,Other Services,1001585302,POhWER,"4,303.00",18/05/2020
Delivery Units,Adults and Health,Voluntary Associations - Third,1001420402,MIDDLESEX ASSOCIATION  FOR THE BLIN,"2,268.25",06/05/2020
Delivery Units,Adults and Health,Voluntary Associations - Third,1001444502,MIDDLESEX ASSOCIATION  FOR THE BLIN,"2,268.25",11/05/2020
Delivery Units,Adults and Health,Voluntary Associations - Third,50008602,AGE CONCERN,"58,333.00",31/05/2020
Delivery Units,Adults and Health,Voluntary Associations - Third,50008606,SANCTUARY HOUSING ASSOCIATION,"6,065.28",31/05/2020
Delivery Units,Adults and Health,Consultants Fees,1001106002,LONDON BOROUGH OF HARINGEY,"70,000.00",05/05/2020
Delivery Units,Adults and Health,Other Services,1001050303,Penna Plc,"2,100.00",06/05/2020
Delivery Units,Adults and Health,Other Services,1000703603,TMP (UK) LTD,"4,414.00",04/05/2020
Delivery Units,Adults and Health,Non Education Staff GPay,1000743503,Capita Employee Benefits,"13,102.16",04/05/2020
Delivery Units,Adults and Health,Other Services,1001050101,D.A. Languages Ltd,33.75,11/05/2020
Delivery Units,Adults and Health,Other Services,1001098701,D.A. Languages Ltd,98.00,11/05/2020
Delivery Units,Adults and Health,Other Services,80035162,City Home Care Ltd,624.00,28/05/2020
Delivery Units,Adults and Health,Other Services,1001703201,M1 EXPRESS CAR SERVICES,120.00,21/05/2020
Delivery Units,Adults and Health,Non Education Staff GPay,60130833,CENTRAL LONDONCOMMUNITY HEALTHCARE,719.92,07/05/2020
Delivery Units,Adults and Health,Non Education Staff GPay,60133407,CENTRAL LONDONCOMMUNITY HEALTHCARE,719.92,07/05/2020
Delivery Units,Adults and Health,Non Education Staff GPay,60133464,CENTRAL LONDONCOMMUNITY HEALTHCARE,719.92,07/05/2020
Delivery Units,Adults and Health,Non Education Staff GPay,60135192,CENTRAL LONDONCOMMUNITY HEALTHCARE,"6,479.25",07/05/2020
Delivery Units,Adults and Health,Other Services,1001018701,D.A. Languages Ltd,123.90,11/05/2020
Delivery Units,Adults and Health,Other Services,1001028301,D.A. Languages Ltd,40.50,11/05/2020
Delivery Units,Adults and Health,Other Services,1001044101,D.A. Languages Ltd,40.50,11/05/2020
Delivery Units,Adults and Health,Other Services,1001419901,iESE Ltd,"7,875.00",06/05/2020
Delivery Units,Adults and Health,Training,1001537601,Edge Training & Consultancy Lt,300.00,14/05/2020
Delivery Units,Adults and Health,Stationery,1001578901,XEROX FINANCE LTD,20.19,15/05/2020
Delivery Units,Adults and Health,Training,1001411301,HUNTERSJOY LTD,750.00,06/05/2020
Delivery Units,Adults and Health,Training,1001414201,HUNTERSJOY LTD,750.00,06/05/2020
Delivery Units,Adults and Health,Training,1001535501,HUNTERSJOY LTD,750.00,14/05/2020
Delivery Units,Adults and Health,Training,1001552401,Edge Training & Consultancy Lt,875.00,14/05/2020
Delivery Units,Adults and Health,Training,1001583301,Edge Training & Consultancy Lt,150.00,18/05/2020
Delivery Units,Adults and Health,Training,1000891702,Louise Fox Consulting Ltd,"2,620.00",22/05/2020
Delivery Units,Adults and Health,Training,1001418001,REDACTED - PERSONAL DATA,550.00,06/05/2020
Delivery Units,Adults and Health,Other Transfer Payments to Soc,1001495802,HAS Technology Ltd,"4,726.38",13/05/2020
Delivery Units,Adults and Health,Stationery,1001127002,Staples UK Ltd,66.34,05/05/2020
Delivery Units,Adults and Health,Stationery,1001130703,Staples UK Ltd,1.83,15/05/2020
Delivery Units,Adults and Health,Other Services,1001407501,HAS Technology Ltd,"1,389.75",06/05/2020
Delivery Units,Adults and Health,Other Services,1001380602,D.A. Languages Ltd,40.50,05/05/2020
Delivery Units,Adults and Health,Transport Hire Charges,1001130402,Mott MacDonald Ltd/Cambridge Education,15.00,12/05/2020
Delivery Units,Adults and Health,Other Transfer Payments to Soc,1001345302,Mott MacDonald Ltd/Cambridge Education,250.00,11/05/2020
Delivery Units,Adults and Health,Translation Exp / Interpret,1000536001,D.A. Languages Ltd,22.00,11/05/2020
Delivery Units,Adults and Health,Translation Exp / Interpret,1000541301,D.A. Languages Ltd,40.50,11/05/2020
Delivery Units,Adults and Health,Translation Exp / Interpret,1000813701,D.A. Languages Ltd,22.00,15/05/2020
Delivery Units,Adults and Health,Translation Exp / Interpret,1001019701,D.A. Languages Ltd,14.21,11/05/2020
Delivery Units,Adults and Health,Translation Exp / Interpret,1001148601,D.A. Languages Ltd,40.50,15/05/2020
Delivery Units,Adults and Health,Other Services,1001640701,Waterlogic GB Limited,26.46,22/05/2020
Delivery Units,Adults and Health,Other Services,1001647201,Waterlogic GB Limited,18.76,22/05/2020
Delivery Units,Adults and Health,Other Services,1001389201,M1 EXPRESS CAR SERVICES,65.00,05/05/2020
Delivery Units,Adults and Health,Transport Hire Charges,1001501801,M1 EXPRESS CAR SERVICES,55.00,12/05/2020
Delivery Units,Adults and Health,Other Transfer Payments to Soc,1001345102,Mott MacDonald Ltd/Cambridge Education,200.00,11/05/2020
Delivery Units,Adults and Health,Other Services,1001030901,D.A. Languages Ltd,81.00,11/05/2020
Delivery Units,Adults and Health,Other Transfer Payments to Soc,1001404802,Staples UK Ltd,209.08,15/05/2020
Delivery Units,Adults and Health,Other Services,80035492,REDACTED - PERSONAL DATA,514.93,28/05/2020
Delivery Units,Adults and Health,Other Transfer Payments to Soc,1001705101,POhWER,189.53,21/05/2020
Delivery Units,Adults and Health,Other Transfer Payments to Soc,1001010302,Aisa Medical Ltd,173.37,05/05/2020
Delivery Units,Adults and Health,Other Transfer Payments to Soc,1001010503,Aisa Medical Ltd,173.37,05/05/2020
Delivery Units,Adults and Health,Other Transfer Payments to Soc,1001011704,Aisa Medical Ltd,173.37,06/05/2020
Delivery Units,Adults and Health,Other Transfer Payments to Soc,1001014702,Aisa Medical Ltd,173.37,04/05/2020
Delivery Units,Adults and Health,Other Transfer Payments to Soc,1001015002,Aisa Medical Ltd,173.37,04/05/2020
Delivery Units,Adults and Health,Other Transfer Payments to Soc,1001015102,Aisa Medical Ltd,173.37,04/05/2020
Delivery Units,Adults and Health,Other Transfer Payments to Soc,1001016102,Aisa Medical Ltd,173.37,05/05/2020
Delivery Units,Adults and Health,Other Transfer Payments to Soc,1001016402,Aisa Medical Ltd,173.37,05/05/2020
Delivery Units,Adults and Health,Other Transfer Payments to Soc,1001023402,Aisa Medical Ltd,173.37,04/05/2020
Delivery Units,Adults and Health,Other Transfer Payments to Soc,1001023603,Aisa Medical Ltd,173.37,05/05/2020
Delivery Units,Adults and Health,Other Transfer Payments to Soc,1001440402,Aisa Medical Ltd,173.37,11/05/2020
Delivery Units,Adults and Health,Other Transfer Payments to Soc,1001440802,Aisa Medical Ltd,173.37,11/05/2020
Delivery Units,Adults and Health,Other Transfer Payments to Soc,1001443502,Aisa Medical Ltd,184.81,11/05/2020
Delivery Units,Adults and Health,Other Transfer Payments to Soc,1001443702,Aisa Medical Ltd,184.81,11/05/2020
Delivery Units,Adults and Health,Other Transfer Payments to Soc,1001643001,Eduhez Ltd,"4,190.00",20/05/2020
Delivery Units,Adults and Health,Other Transfer Payments to Soc,1001006402,Peaceable Habitation Ltd,312.96,14/05/2020
Delivery Units,Adults and Health,Other Transfer Payments to Soc,1001009602,Peaceable Habitation Ltd,472.03,14/05/2020
Delivery Units,Adults and Health,Translation Exp / Interpret,1001841701,D.A. Languages Ltd,60.00,28/05/2020
Delivery Units,Adults and Health,Other Services,1001077003,Recruitment Team Nine Limited,270.00,12/05/2020
Delivery Units,Adults and Health,Other Services,1001181802,Recruitment Team Nine Limited,270.00,12/05/2020
Delivery Units,Adults and Health,Other Services,1001188802,Recruitment Team Nine Limited,270.00,12/05/2020
Delivery Units,Adults and Health,Other Services,1001192002,Recruitment Team Nine Limited,270.00,12/05/2020
Delivery Units,Adults and Health,Other Services,1001194102,Recruitment Team Nine Limited,270.00,12/05/2020
Delivery Units,Adults and Health,Other Services,1001706302,VOICEABILITY,537.25,21/05/2020
Delivery Units,Adults and Health,Other Transfer Payments to Soc,1000725905,KORU MEDICAL LTD,"2,331.20",29/05/2020
Delivery Units,Adults and Health,Other Transfer Payments to Soc,1001850902,Empowering Social Work Ltd,"1,750.00",29/05/2020
Delivery Units,Adults and Health,Other Services,1001043502,KMCA Consultancy Services Ltd,"4,391.12",06/05/2020
Delivery Units,Adults and Health,Other Services,1001705801,Carebuz,"1,527.45",21/05/2020
Delivery Units,Adults and Health,Other Services,1001846001,CMG Consultants Limited,"1,375.00",28/05/2020
Delivery Units,Adults and Health,Other Services,1001851301,CMG Consultants Limited,825.00,28/05/2020
Delivery Units,Adults and Health,Other Agencies - Third Party P,50011943,ROSEACRES CARE HOME LIMITED,"4,634.90",27/05/2020
Delivery Units,Adults and Health,Other Agencies - Third Party P,50011915,THE RICHMOND FELLOWSHIP,179.51,27/05/2020
Delivery Units,Adults and Health,Other Agencies - Third Party P,50011910,ELEANOR PALMER TRUST NO 2 A/C.,"5,528.82",27/05/2020
Delivery Units,Adults and Health,Other Agencies - Third Party P,50011917,FRIERN RESIDENTIAL CARE HOME,"2,019.66",27/05/2020
Delivery Units,Adults and Health,Other Agencies - Third Party P,50011890,TORRINGTON HOMES,"1,170.27",27/05/2020
Delivery Units,Adults and Health,Other Agencies - Third Party P,50011912,ELMHURST RESIDENTIAL HOME,"6,463.59",27/05/2020
Delivery Units,Adults and Health,Other Agencies - Third Party P,50011903,JEWISH CARE,"4,658.86",27/05/2020
Delivery Units,Adults and Health,Other Agencies - Third Party P,50011924,JEWISH CARE,"2,108.56",27/05/2020
Delivery Units,Adults and Health,Other Agencies - Third Party P,50011928,JEWISH CARE,"3,795.43",27/05/2020
Delivery Units,Adults and Health,Other Agencies - Third Party P,50011929,JEWISH CARE,"7,258.83",27/05/2020
Delivery Units,Adults and Health,Other Agencies - Third Party P,50011940,JEWISH CARE,"5,695.85",27/05/2020
Delivery Units,Adults and Health,Other Agencies - Third Party P,50011944,JEWISH CARE,"3,741.69",27/05/2020
Delivery Units,Adults and Health,Other Agencies - Third Party P,50011904,CLOVELLY HOUSE RESID. HOME LTD,"5,585.23",27/05/2020
Delivery Units,Adults and Health,Other Agencies - Third Party P,50011914,FERNBANK NURSING HOME.,"1,383.39",27/05/2020
Delivery Units,Adults and Health,Other Agencies - Third Party P,50011942,ROLAND RESIDENTIAL CARE HOMES,834.12,27/05/2020
Delivery Units,Adults and Health,Other Agencies - Third Party P,50011902,CEDARS NURSING HOME,"2,663.84",27/05/2020
Delivery Units,Adults and Health,Other Agencies - Third Party P,50011900,CATHERINE LODGE,"3,668.32",27/05/2020
Delivery Units,Adults and Health,Other Agencies - Third Party P,50011893,BUPA NURSING HOMES LTD - ARKLEY,"3,541.93",27/05/2020
Delivery Units,Adults and Health,Other Agencies - Third Party P,50011936,NAZARETH HOUSE,"8,071.89",27/05/2020
Delivery Units,Adults and Health,Other Agencies - Third Party P,50011916,FRIARY LODGE,"1,235.27",27/05/2020
Delivery Units,Adults and Health,Other Agencies - Third Party P,50011896,THE WOODSIDE HOME,"1,244.66",27/05/2020
Delivery Units,Adults and Health,Other Agencies - Third Party P,50011932,WESTMINSTER HEALTH CARE LTD,"2,514.73",27/05/2020
Delivery Units,Adults and Health,Other Agencies - Third Party P,50011933,MAISON MOTI LTD,760.32,27/05/2020
Delivery Units,Adults and Health,Other Agencies - Third Party P,50011937,NORWOOD RAVENSWOOD SCHOOLS LTD,"1,814.31",27/05/2020
Delivery Units,Adults and Health,Other Agencies - Third Party P,50011913,BROOKDALE HEALTHCARE,907.16,27/05/2020
Delivery Units,Adults and Health,Other Agencies - Third Party P,50011949,SYDMAR LODGE,"1,777.26",27/05/2020
Delivery Units,Adults and Health,Other Agencies - Third Party P,50011927,LIFESTYLE CARE PLC,"2,953.35",27/05/2020
Delivery Units,Adults and Health,Other Agencies - Third Party P,50011901,CARETECH COMMUNITY SERVICES LTD,674.56,27/05/2020
Delivery Units,Adults and Health,Other Agencies - Third Party P,50011931,CARETECH COMMUNITY SERVICES LTD,"2,390.02",27/05/2020
Delivery Units,Adults and Health,Other Agencies - Third Party P,50011947,SONESTA NURSING HOME LTD.,"2,509.72",27/05/2020
Delivery Units,Adults and Health,Other Services,1001396602,AGE CONCERN,"22,770.00",05/05/2020
Delivery Units,Adults and Health,Other Agencies - Third Party P,50011926,NEWCENTURY CARE LTD,"2,009.85",27/05/2020
Delivery Units,Adults and Health,Other Agencies - Third Party P,50011920,BUPA CARE HOMES,"2,522.74",27/05/2020
Delivery Units,Adults and Health,Other Agencies - Third Party P,50011921,BUPA CARE HOMES,"3,567.67",27/05/2020
Delivery Units,Adults and Health,Other Agencies - Third Party P,50011923,HILTON LODGE LTD.,"1,755.14",27/05/2020
Delivery Units,Adults and Health,Other Agencies - Third Party P,50011930,FOUR SEASONS HEALTH CARE,"4,606.78",27/05/2020
Delivery Units,Adults and Health,Other Agencies - Third Party P,50011895,VENTRY RESIDENTIAL CARE LTD,"1,755.98",27/05/2020
Delivery Units,Adults and Health,Other Agencies - Third Party P,50011945,SAGE NURSING HOME,"2,268.13",27/05/2020
Delivery Units,Adults and Health,Other Agencies - Third Party P,50011909,EASTSIDE HOUSE CARE HOME,"1,131.03",27/05/2020
Delivery Units,Adults and Health,Other Transfer Payments to Soc,1001820402,EASTSIDE HOUSE CARE HOME,465.78,27/05/2020
Delivery Units,Adults and Health,Other Transfer Payments to Soc,1001822502,EASTSIDE HOUSE CARE HOME,375.82,27/05/2020
Delivery Units,Adults and Health,Other Agencies - Third Party P,50011919,GLENHOLME,"2,113.58",27/05/2020
Delivery Units,Adults and Health,Other Services,1001577002,GOOD IMPRESSIONS (LONDON) LIMITED,120.00,29/05/2020
Delivery Units,Adults and Health,Other Agencies - Third Party P,50011948,PLATINUM HEALTH RESOURCES LTD,"1,748.92",27/05/2020
Delivery Units,Adults and Health,Other Agencies - Third Party P,50011891,APPLE TREE COURT CARE HOME,"7,580.82",27/05/2020
Delivery Units,Adults and Health,Other Agencies - Third Party P,50011905,DANA CARE LIMITED,804.42,27/05/2020
Delivery Units,Adults and Health,Other Agencies - Third Party P,50011953,QUALITY HOUSING & SOCIAL CARE LTD,971.64,27/05/2020
Delivery Units,Adults and Health,Other Agencies - Third Party P,50011925,KEMBLE HOUSE,"2,087.02",27/05/2020
Delivery Units,Adults and Health,Other Agencies - Third Party P,50011954,TWO RIVERS,"2,156.68",27/05/2020
Delivery Units,Adults and Health,Other Agencies - Third Party P,50011908,DIMENSIONS UK,"1,616.30",27/05/2020
Delivery Units,Adults and Health,Other Agencies - Third Party P,50011934,DIMENSIONS UK,"4,442.20",27/05/2020
Delivery Units,Adults and Health,Other Agencies - Third Party P,50011946,DIMENSIONS UK,"3,227.48",27/05/2020
Delivery Units,Adults and Health,Other Agencies - Third Party P,50011889,ABBEY RAVENSCROFT PARK NURSING HOME,"9,570.43",27/05/2020
Delivery Units,Adults and Health,Other Agencies - Third Party P,50011899,CARLTON COURT (TLC GROUP),"8,208.81",27/05/2020
Delivery Units,Adults and Health,Other Agencies - Third Party P,50011955,WOODFIELD HOUSE,"2,166.98",27/05/2020
Delivery Units,Adults and Health,Other Agencies - Third Party P,50011894,ASHTON LODGE CARE CENTRE,"9,449.31",27/05/2020
Delivery Units,Adults and Health,Other Agencies - Third Party P,50011898,LIVABILITY,"1,956.79",27/05/2020
Delivery Units,Adults and Health,Other Agencies - Third Party P,50011892,THE BARNETGROUP LIMITED,"7,129.12",27/05/2020
Delivery Units,Adults and Health,Other Agencies - Third Party P,50011906,THE BARNETGROUP LIMITED,"4,768.71",27/05/2020
Delivery Units,Adults and Health,Other Agencies - Third Party P,50011935,THE BARNETGROUP LIMITED,"7,766.59",27/05/2020
Delivery Units,Adults and Health,Other Agencies - Third Party P,50011938,Woodfield Homes,990.16,27/05/2020
Delivery Units,Adults and Health,Other Agencies - Third Party P,50011918,De Bohun Care Ltd,326.79,27/05/2020
Delivery Units,Adults and Health,Other Agencies - Third Party P,50011888,Aarandale Manor Care Home,989.98,27/05/2020
Delivery Units,Adults and Health,Other Agencies - Third Party P,50011952,GCH (North London) t/a The Tudors,250.54,27/05/2020
Delivery Units,Adults and Health,Other Services,80035518,Medstar Domicilliary Care Services Ltd,428.99,29/05/2020
Delivery Units,Adults and Health,Other Agencies - Third Party P,50011939,Normanshire Care Services Ltd,"1,238.57",27/05/2020
Delivery Units,Adults and Health,Cleaning and domestic material,1001497201,Norse Commercial Services Ltd,475.00,12/05/2020
Delivery Units,Adults and Health,Other Agencies - Third Party P,50011907,DR FRENCH MEMORIAL HOME LTD,"3,557.41",27/05/2020
Delivery Units,Adults and Health,Other Agencies - Third Party P,50011911,ELM PARK LODGE,"5,826.73",27/05/2020
Delivery Units,Adults and Health,Other Agencies - Third Party P,50011950,THE GRANGE,"1,027.68",27/05/2020
Delivery Units,Adults and Health,Other Agencies - Third Party P,50011922,HENRY NIHILL HOUSE,"1,767.29",27/05/2020
Delivery Units,Adults and Health,Other Agencies - Third Party P,50011897,BAYTREE COMMUNITY CARE (LONDON) LTD,"1,236.90",27/05/2020
Delivery Units,Adults and Health,Other Agencies - Third Party P,50011951,THE LIMES RESIDENTIAL HOME,"4,950.37",27/05/2020
Delivery Units,Adults and Health,Other Agencies - Third Party P,50011941,ROLAND RESIDENTIAL CARE HOMES LTD,462.02,27/05/2020
Delivery Units,Adults and Health,Other Services,1001763901,ARCHANT LONDON,760.00,22/05/2020
Delivery Units,Adults and Health,Other Agencies - Third Party P,90253414,JEWISH CARE,"2,490.37",01/05/2020
Delivery Units,Adults and Health,Other Agencies - Third Party P,90253423,JEWISH CARE,"2,490.37",01/05/2020
Delivery Units,Adults and Health,Other Agencies - Third Party P,90253429,JEWISH CARE,"2,741.05",01/05/2020
Delivery Units,Adults and Health,Other Agencies - Third Party P,90253448,JEWISH CARE,"2,490.37",01/05/2020
Delivery Units,Adults and Health,Other Agencies - Third Party P,90253449,JEWISH CARE,"2,490.37",01/05/2020
Delivery Units,Adults and Health,Other Agencies - Third Party P,90253456,JEWISH CARE,454.66,01/05/2020
Delivery Units,Adults and Health,Other Agencies - Third Party P,90253457,JEWISH CARE,"2,857.68",01/05/2020
Delivery Units,Adults and Health,Other Agencies - Third Party P,90253461,JEWISH CARE,"2,741.05",01/05/2020
Delivery Units,Adults and Health,Other Agencies - Third Party P,90253475,JEWISH CARE,598.28,01/05/2020
Delivery Units,Adults and Health,Other Agencies - Third Party P,90253477,JEWISH CARE,"2,741.05",01/05/2020
Delivery Units,Adults and Health,Other Agencies - Third Party P,90253478,JEWISH CARE,"2,490.37",01/05/2020
Delivery Units,Adults and Health,Other Agencies - Third Party P,90253479,JEWISH CARE,-283.86,01/05/2020
Delivery Units,Adults and Health,Other Agencies - Third Party P,90253484,JEWISH CARE,"2,490.37",01/05/2020
Delivery Units,Adults and Health,Other Agencies - Third Party P,90253497,JEWISH CARE,"2,380.92",01/05/2020
Delivery Units,Adults and Health,Other Agencies - Third Party P,90253501,JEWISH CARE,"2,490.37",01/05/2020
Delivery Units,Adults and Health,Other Agencies - Third Party P,90253503,JEWISH CARE,"5,674.27",01/05/2020
Delivery Units,Adults and Health,Other Agencies - Third Party P,90253518,JEWISH CARE,"8,762.37",01/05/2020
Delivery Units,Adults and Health,Other Agencies - Third Party P,90253526,JEWISH CARE,"12,785.85",01/05/2020
Delivery Units,Adults and Health,Other Agencies - Third Party P,90253532,JEWISH CARE,"3,489.64",01/05/2020
Delivery Units,Adults and Health,Other Agencies - Third Party P,90253534,JEWISH CARE,"2,490.37",01/05/2020
Delivery Units,Adults and Health,Other Agencies - Third Party P,90253540,JEWISH CARE,208.69,01/05/2020
Delivery Units,Adults and Health,Other Agencies - Third Party P,90253544,JEWISH CARE,-172.17,01/05/2020
Delivery Units,Adults and Health,Other Agencies - Third Party P,90253546,JEWISH CARE,"2,490.37",01/05/2020
Delivery Units,Adults and Health,Other Agencies - Third Party P,90255887,FERNBANK NURSING HOME.,"3,653.35",14/05/2020
Delivery Units,Adults and Health,Other Agencies - Third Party P,90255888,FERNBANK NURSING HOME.,"3,321.34",14/05/2020
Delivery Units,Adults and Health,Other Agencies - Third Party P,90255889,FERNBANK NURSING HOME.,"3,542.68",14/05/2020
Delivery Units,Adults and Health,Other Agencies - Third Party P,90255890,FERNBANK NURSING HOME.,"3,542.68",14/05/2020
Delivery Units,Adults and Health,Other Agencies - Third Party P,90258801,CEDARS NURSING HOME,"2,964.93",27/05/2020
Delivery Units,Adults and Health,Other Agencies - Third Party P,90258802,CEDARS NURSING HOME,"4,207.14",27/05/2020
Delivery Units,Adults and Health,Other Agencies - Third Party P,90258803,CEDARS NURSING HOME,"2,610.91",27/05/2020
Delivery Units,Adults and Health,Other Agencies - Third Party P,90258804,CEDARS NURSING HOME,"3,919.29",27/05/2020
Delivery Units,Adults and Health,Other Agencies - Third Party P,90258806,CEDARS NURSING HOME,"4,428.57",27/05/2020
Delivery Units,Adults and Health,Other Agencies - Third Party P,90258808,CEDARS NURSING HOME,"-2,427.17",27/05/2020
Delivery Units,Adults and Health,Other Agencies - Third Party P,90255162,BUPA NURSING HOMES LTD - ARKLEY,"2,265.36",12/05/2020
Delivery Units,Adults and Health,Other Agencies - Third Party P,90255163,BUPA NURSING HOMES LTD - ARKLEY,"2,265.36",12/05/2020
Delivery Units,Adults and Health,Other Agencies - Third Party P,90255164,BUPA NURSING HOMES LTD - ARKLEY,"4,400.00",12/05/2020
Delivery Units,Adults and Health,Other Agencies - Third Party P,90255165,BUPA NURSING HOMES LTD - ARKLEY,"4,400.00",12/05/2020
Delivery Units,Adults and Health,Other Agencies - Third Party P,90255166,BUPA NURSING HOMES LTD - ARKLEY,"3,337.76",12/05/2020
Delivery Units,Adults and Health,Other Agencies - Third Party P,90255167,BUPA NURSING HOMES LTD - ARKLEY,"3,800.00",12/05/2020
Delivery Units,Adults and Health,Other Agencies - Third Party P,90255168,BUPA NURSING HOMES LTD - ARKLEY,"2,200.00",12/05/2020
Delivery Units,Adults and Health,Other Agencies - Third Party P,90255170,WESTMINSTER HEALTH CARE LTD,"2,427.17",12/05/2020
Delivery Units,Adults and Health,Other Agencies - Third Party P,90255172,WESTMINSTER HEALTH CARE LTD,"4,861.89",12/05/2020
Delivery Units,Adults and Health,Other Agencies - Third Party P,90255173,WESTMINSTER HEALTH CARE LTD,"2,076.17",12/05/2020
Delivery Units,Adults and Health,Other Agencies - Third Party P,90255174,WESTMINSTER HEALTH CARE LTD,-899.91,12/05/2020
Delivery Units,Adults and Health,Other Agencies - Third Party P,90255155,METHODIST HOMES FOR THE AGED,"2,400.00",12/05/2020
Delivery Units,Adults and Health,Other Agencies - Third Party P,90255156,METHODIST HOMES FOR THE AGED,"-1,371.43",12/05/2020
Delivery Units,Adults and Health,Other Agencies - Third Party P,90255073,LIFESTYLE CARE PLC,"2,826.17",11/05/2020
Delivery Units,Adults and Health,Other Agencies - Third Party P,90255075,LIFESTYLE CARE PLC,"1,884.11",11/05/2020
Delivery Units,Adults and Health,Other Agencies - Third Party P,90255076,LIFESTYLE CARE PLC,"1,695.70",11/05/2020
Delivery Units,Adults and Health,Other Agencies - Third Party P,90255078,LIFESTYLE CARE PLC,"2,826.17",11/05/2020
Delivery Units,Adults and Health,Other Agencies - Third Party P,90255079,LIFESTYLE CARE PLC,"1,601.50",11/05/2020
Delivery Units,Adults and Health,Other Agencies - Third Party P,90255080,LIFESTYLE CARE PLC,565.23,11/05/2020
Delivery Units,Adults and Health,Other Agencies - Third Party P,90255081,LIFESTYLE CARE PLC,"1,318.88",11/05/2020
Delivery Units,Adults and Health,Other Agencies - Third Party P,90255083,LIFESTYLE CARE PLC,"2,826.17",11/05/2020
Delivery Units,Adults and Health,Other Agencies - Third Party P,90255084,LIFESTYLE CARE PLC,"1,036.26",11/05/2020
Delivery Units,Adults and Health,Other Agencies - Third Party P,90255085,LIFESTYLE CARE PLC,376.82,11/05/2020
Delivery Units,Adults and Health,Other Agencies - Third Party P,90255086,LIFESTYLE CARE PLC,"2,826.17",11/05/2020
Delivery Units,Adults and Health,Other Agencies - Third Party P,90255087,LIFESTYLE CARE PLC,565.23,11/05/2020
Delivery Units,Adults and Health,Other Agencies - Third Party P,90255088,LIFESTYLE CARE PLC,94.21,11/05/2020
Delivery Units,Adults and Health,Other Agencies - Third Party P,90255089,LIFESTYLE CARE PLC,"1,130.47",11/05/2020
Delivery Units,Adults and Health,Other Agencies - Third Party P,90255090,LIFESTYLE CARE PLC,"2,826.17",11/05/2020
Delivery Units,Adults and Health,Other Agencies - Third Party P,90255091,LIFESTYLE CARE PLC,"2,826.17",11/05/2020
Delivery Units,Adults and Health,Other Agencies - Third Party P,90255092,LIFESTYLE CARE PLC,"1,224.67",11/05/2020
Delivery Units,Adults and Health,Other Agencies - Third Party P,90255093,LIFESTYLE CARE PLC,"2,260.94",11/05/2020
Delivery Units,Adults and Health,Other Agencies - Third Party P,90255094,LIFESTYLE CARE PLC,"2,826.17",11/05/2020
Delivery Units,Adults and Health,Other Agencies - Third Party P,90255095,LIFESTYLE CARE PLC,"1,507.29",11/05/2020
Delivery Units,Adults and Health,Other Agencies - Third Party P,90255096,LIFESTYLE CARE PLC,"2,826.17",11/05/2020
Delivery Units,Adults and Health,Other Agencies - Third Party P,90255097,LIFESTYLE CARE PLC,"1,789.91",11/05/2020
Delivery Units,Adults and Health,Other Agencies - Third Party P,90255098,LIFESTYLE CARE PLC,"2,826.17",11/05/2020
Delivery Units,Adults and Health,Other Agencies - Third Party P,90255099,LIFESTYLE CARE PLC,"2,449.35",11/05/2020
Delivery Units,Adults and Health,Other Agencies - Third Party P,90255100,LIFESTYLE CARE PLC,"2,260.94",11/05/2020
Delivery Units,Adults and Health,Other Agencies - Third Party P,90255157,LIFESTYLE CARE PLC,847.85,12/05/2020
Delivery Units,Adults and Health,Other Agencies - Third Party P,90255709,CARETECH COMMUNITY SERVICES LTD,"4,975.59",13/05/2020
Delivery Units,Adults and Health,Other Agencies - Third Party P,90257147,SONESTA NURSING HOME LTD.,"2,834.29",20/05/2020
Delivery Units,Adults and Health,Other Agencies - Third Party P,90257149,SONESTA NURSING HOME LTD.,"2,834.29",20/05/2020
Delivery Units,Adults and Health,Other Agencies - Third Party P,90257151,SONESTA NURSING HOME LTD.,"2,834.29",20/05/2020
Delivery Units,Adults and Health,Other Agencies - Third Party P,90257152,SONESTA NURSING HOME LTD.,"2,834.29",20/05/2020
Delivery Units,Adults and Health,Other Agencies - Third Party P,90257153,SONESTA NURSING HOME LTD.,"2,834.29",20/05/2020
Delivery Units,Adults and Health,Other Agencies - Third Party P,90256108,NEWCENTURY CARE LTD,"3,400.00",15/05/2020
Delivery Units,Adults and Health,Other Agencies - Third Party P,90256109,NEWCENTURY CARE LTD,"3,494.12",15/05/2020
Delivery Units,Adults and Health,Other Agencies - Third Party P,90256110,NEWCENTURY CARE LTD,"4,028.48",15/05/2020
Delivery Units,Adults and Health,Other Agencies - Third Party P,90256111,NEWCENTURY CARE LTD,"3,232.00",15/05/2020
Delivery Units,Adults and Health,Other Agencies - Third Party P,90256112,NEWCENTURY CARE LTD,"3,400.00",15/05/2020
Delivery Units,Adults and Health,Other Agencies - Third Party P,90256113,NEWCENTURY CARE LTD,"1,285.71",15/05/2020
Delivery Units,Adults and Health,Other Agencies - Third Party P,90257370,BUPA CARE HOMES,"2,780.70",22/05/2020
Delivery Units,Adults and Health,Other Agencies - Third Party P,90257696,ASPEN VILLAGES LTD,"2,657.14",27/05/2020
Delivery Units,Adults and Health,Other Agencies - Third Party P,90254086,BUPA CARE HOMES,695.19,05/05/2020
Delivery Units,Adults and Health,Other Agencies - Third Party P,90254087,BUPA CARE HOMES,"3,107.14",05/05/2020
Delivery Units,Adults and Health,Other Agencies - Third Party P,90254088,BUPA CARE HOMES,"3,534.17",05/05/2020
Delivery Units,Adults and Health,Other Agencies - Third Party P,90254091,BUPA CARE HOMES,"2,671.16",05/05/2020
Delivery Units,Adults and Health,Other Agencies - Third Party P,90257069,SAGE NURSING HOME,"4,071.43",20/05/2020
Delivery Units,Adults and Health,Other Agencies - Third Party P,90257072,SAGE NURSING HOME,"2,436.39",20/05/2020
Delivery Units,Adults and Health,Other Agencies - Third Party P,90257074,SAGE NURSING HOME,542.86,20/05/2020
Delivery Units,Adults and Health,Other Agencies - Third Party P,90255878,ST VINCENTS NURSING HOME,"1,754.38",14/05/2020
Delivery Units,Adults and Health,Other Agencies - Third Party P,90255880,ST VINCENTS NURSING HOME,"6,642.86",14/05/2020
Delivery Units,Adults and Health,Other Agencies - Third Party P,90257535,APPLE TREE COURT CARE HOME,"3,319.03",22/05/2020
Delivery Units,Adults and Health,Other Agencies - Third Party P,90257544,APPLE TREE COURT CARE HOME,"2,544.59",22/05/2020
Delivery Units,Adults and Health,Other Agencies - Third Party P,90254570,SUNRISE SENIOR LIVING,"6,176.40",11/05/2020
Delivery Units,Adults and Health,Other Agencies - Third Party P,90256831,ABBEY RAVENSCROFT PARK NURSING HOME,"3,321.43",20/05/2020
Delivery Units,Adults and Health,Other Agencies - Third Party P,90256832,ABBEY RAVENSCROFT PARK NURSING HOME,"3,321.43",20/05/2020
Delivery Units,Adults and Health,Other Agencies - Third Party P,90256833,ABBEY RAVENSCROFT PARK NURSING HOME,"2,788.32",20/05/2020
Delivery Units,Adults and Health,Other Agencies - Third Party P,90256835,ABBEY RAVENSCROFT PARK NURSING HOME,"2,788.32",20/05/2020
Delivery Units,Adults and Health,Other Agencies - Third Party P,90256836,ABBEY RAVENSCROFT PARK NURSING HOME,"3,321.43",20/05/2020
Delivery Units,Adults and Health,Other Agencies - Third Party P,90256837,ABBEY RAVENSCROFT PARK NURSING HOME,"2,788.32",20/05/2020
Delivery Units,Adults and Health,Other Agencies - Third Party P,90256838,ABBEY RAVENSCROFT PARK NURSING HOME,"3,321.43",20/05/2020
Delivery Units,Adults and Health,Other Agencies - Third Party P,90256839,ABBEY RAVENSCROFT PARK NURSING HOME,"3,321.43",20/05/2020
Delivery Units,Adults and Health,Other Agencies - Third Party P,90256840,ABBEY RAVENSCROFT PARK NURSING HOME,"4,995.43",20/05/2020
Delivery Units,Adults and Health,Other Agencies - Third Party P,90256843,ABBEY RAVENSCROFT PARK NURSING HOME,"3,321.73",20/05/2020
Delivery Units,Adults and Health,Other Agencies - Third Party P,90256845,ABBEY RAVENSCROFT PARK NURSING HOME,"3,764.29",20/05/2020
Delivery Units,Adults and Health,Other Agencies - Third Party P,90256846,ABBEY RAVENSCROFT PARK NURSING HOME,"3,764.29",20/05/2020
Delivery Units,Adults and Health,Other Agencies - Third Party P,90256847,ABBEY RAVENSCROFT PARK NURSING HOME,"3,764.29",20/05/2020
Delivery Units,Adults and Health,Other Agencies - Third Party P,90257353,ABBEY RAVENSCROFT PARK NURSING HOME,485.71,22/05/2020
Delivery Units,Adults and Health,Other Agencies - Third Party P,90257083,CARLTON COURT (TLC GROUP),"3,736.61",20/05/2020
Delivery Units,Adults and Health,Other Agencies - Third Party P,90257089,CARLTON COURT (TLC GROUP),"2,448.78",20/05/2020
Delivery Units,Adults and Health,Other Agencies - Third Party P,90257090,CARLTON COURT (TLC GROUP),"3,764.29",20/05/2020
Delivery Units,Adults and Health,Other Agencies - Third Party P,90257091,CARLTON COURT (TLC GROUP),"4,428.57",20/05/2020
Delivery Units,Adults and Health,Other Agencies - Third Party P,90257094,CARLTON COURT (TLC GROUP),"3,321.43",20/05/2020
Delivery Units,Adults and Health,Other Agencies - Third Party P,90257689,CARLTON COURT (TLC GROUP),"1,714.29",27/05/2020
Delivery Units,Adults and Health,Other Agencies - Third Party P,90257690,CARLTON COURT (TLC GROUP),"3,214.29",27/05/2020
Delivery Units,Adults and Health,Other Agencies - Third Party P,90259117,CARLTON COURT (TLC GROUP),"23,528.57",29/05/2020
Delivery Units,Adults and Health,Other Agencies - Third Party P,90259118,CARLTON COURT (TLC GROUP),"5,785.71",29/05/2020
Delivery Units,Adults and Health,Other Agencies - Third Party P,90259119,CARLTON COURT (TLC GROUP),"5,978.57",29/05/2020
Delivery Units,Adults and Health,Other Agencies - Third Party P,90257319,ASHTON LODGE CARE CENTRE,"3,642.32",22/05/2020
Delivery Units,Adults and Health,Other Agencies - Third Party P,90257320,ASHTON LODGE CARE CENTRE,-471.89,22/05/2020
Delivery Units,Adults and Health,Other Agencies - Third Party P,90257321,ASHTON LODGE CARE CENTRE,"3,164.04",22/05/2020
Delivery Units,Adults and Health,Other Agencies - Third Party P,90257324,ASHTON LODGE CARE CENTRE,"3,695.38",22/05/2020
Delivery Units,Adults and Health,Other Agencies - Third Party P,90257325,ASHTON LODGE CARE CENTRE,"3,779.34",22/05/2020
Delivery Units,Adults and Health,Other Agencies - Third Party P,90257327,ASHTON LODGE CARE CENTRE,-550.76,22/05/2020
Delivery Units,Adults and Health,Other Agencies - Third Party P,90257328,ASHTON LODGE CARE CENTRE,"3,541.79",22/05/2020
Delivery Units,Adults and Health,Other Agencies - Third Party P,90257329,ASHTON LODGE CARE CENTRE,"3,695.38",22/05/2020
Delivery Units,Adults and Health,Other Agencies - Third Party P,90257330,ASHTON LODGE CARE CENTRE,"3,541.79",22/05/2020
Delivery Units,Adults and Health,Other Agencies - Third Party P,90257331,ASHTON LODGE CARE CENTRE,"4,212.72",22/05/2020
Delivery Units,Adults and Health,Other Agencies - Third Party P,90257332,ASHTON LODGE CARE CENTRE,"4,359.66",22/05/2020
Delivery Units,Adults and Health,Other Agencies - Third Party P,90257333,ASHTON LODGE CARE CENTRE,"3,158.59",22/05/2020
Delivery Units,Adults and Health,Other Agencies - Third Party P,90257334,ASHTON LODGE CARE CENTRE,"5,245.38",22/05/2020
Delivery Units,Adults and Health,Other Agencies - Third Party P,90257335,ASHTON LODGE CARE CENTRE,"3,391.67",22/05/2020
Delivery Units,Adults and Health,Other Agencies - Third Party P,90257337,ASHTON LODGE CARE CENTRE,"3,018.60",22/05/2020
Delivery Units,Adults and Health,Other Agencies - Third Party P,90257338,ASHTON LODGE CARE CENTRE,"2,923.96",22/05/2020
Delivery Units,Adults and Health,Other Agencies - Third Party P,90257340,ASHTON LODGE CARE CENTRE,"3,846.97",22/05/2020
Delivery Units,Adults and Health,Other Agencies - Third Party P,90257341,ASHTON LODGE CARE CENTRE,"4,436.67",22/05/2020
Delivery Units,Adults and Health,Other Agencies - Third Party P,90253555,Karuna Manor,"2,297.14",01/05/2020
Delivery Units,Adults and Health,Other Agencies - Third Party P,90253556,Karuna Manor,"2,373.71",01/05/2020
Delivery Units,Adults and Health,Other Agencies - Third Party P,90253558,Karuna Manor,"4,250.74",01/05/2020
Delivery Units,Adults and Health,Other Agencies - Third Party P,90256827,Karuna Manor,"4,207.14",20/05/2020
Delivery Units,Adults and Health,Other Agencies - Third Party P,90256828,Karuna Manor,"4,392.43",20/05/2020
Delivery Units,Adults and Health,Other Agencies - Third Party P,90256829,Karuna Manor,"2,373.71",20/05/2020
Delivery Units,Adults and Health,Other Agencies - Third Party P,90256623,Aarandale Manor Care Home,"2,873.35",20/05/2020
Delivery Units,Adults and Health,Other Agencies - Third Party P,90255175,Bondcare London (The Fountains),"2,138.00",12/05/2020
Delivery Units,Adults and Health,Other Agencies - Third Party P,90255176,Bondcare London (The Fountains),381.79,12/05/2020
Delivery Units,Adults and Health,Other Agencies - Third Party P,90253585,HC-One Oval LTD,"2,215.81",01/05/2020
Delivery Units,Adults and Health,Other Agencies - Third Party P,90253586,HC-One Oval LTD,"2,368.62",01/05/2020
Delivery Units,Adults and Health,Other Agencies - Third Party P,90253587,HC-One Oval LTD,"2,292.21",01/05/2020
Delivery Units,Adults and Health,Other Agencies - Third Party P,90256621,HC One Beamish Ltd,"2,624.19",20/05/2020
Delivery Units,Adults and Health,Other Agencies - Third Party P,90257096,NIGHTINGALE HOUSE,"2,761.88",20/05/2020
Delivery Units,Adults and Health,Other Agencies - Third Party P,90257099,NIGHTINGALE HOUSE,"2,280.44",20/05/2020
Delivery Units,Adults and Health,Other Agencies - Third Party P,90257100,NIGHTINGALE HOUSE,"2,952.35",20/05/2020
Delivery Units,Adults and Health,Other Agencies - Third Party P,90257103,NIGHTINGALE HOUSE,"2,437.71",20/05/2020
Delivery Units,Adults and Health,Other Agencies - Third Party P,90257104,NIGHTINGALE HOUSE,"2,857.11",20/05/2020
Delivery Units,Adults and Health,Other Agencies - Third Party P,90257107,NIGHTINGALE HOUSE,"1,572.71",20/05/2020
Delivery Units,Adults and Health,Other Agencies - Third Party P,90257108,NIGHTINGALE HOUSE,"2,952.35",20/05/2020
Delivery Units,Adults and Health,Other Agencies - Third Party P,90253413,HENRY NIHILL HOUSE,"2,374.82",01/05/2020
Delivery Units,Adults and Health,Other Agencies - Third Party P,90253425,HENRY NIHILL HOUSE,-809.06,01/05/2020
Delivery Units,Adults and Health,Other Agencies - Third Party P,90253427,HENRY NIHILL HOUSE,"-1,071.43",01/05/2020
Delivery Units,Adults and Health,Other Agencies - Third Party P,90253470,HENRY NIHILL HOUSE,"2,265.36",01/05/2020
Delivery Units,Adults and Health,Other Agencies - Third Party P,90253512,HENRY NIHILL HOUSE,"2,374.82",01/05/2020
Delivery Units,Adults and Health,Other Agencies - Third Party P,90253513,HENRY NIHILL HOUSE,"2,265.36",01/05/2020
Delivery Units,Adults and Health,Other Agencies - Third Party P,90253550,HENRY NIHILL HOUSE,"4,821.43",01/05/2020
Delivery Units,Adults and Health,Other Agencies - Third Party P,90257343,WILSMERE HOUSE CARE CENTRE,"4,818.73",22/05/2020
Delivery Units,Adults and Health,Other Agencies - Third Party P,90257348,WILSMERE HOUSE CARE CENTRE,"4,979.35",22/05/2020
Delivery Units,Adults and Health,Other Agencies - Third Party P,90257547,Barchester Healthcare Homes Ltd (Brook,"4,071.43",22/05/2020
Delivery Units,Adults and Health,Other Agencies - Third Party P,90257548,Barchester Healthcare Homes Ltd (Brook,"4,207.14",22/05/2020
Delivery Units,Adults and Health,Other Agencies - Third Party P,90257549,Barchester Healthcare Homes Ltd (Brook,"4,071.43",22/05/2020
Delivery Units,Adults and Health,Other Agencies - Third Party P,90257550,Barchester Healthcare Homes Ltd (Brook,"4,207.14",22/05/2020
Delivery Units,Adults and Health,Other Agencies - Third Party P,90253580,MNS Care Plc T/A Sairam Villa,"8,057.14",01/05/2020
Delivery Units,Adults and Health,Other Agencies - Third Party P,90253581,MNS Care Plc T/A Sairam Villa,"5,142.86",01/05/2020
Delivery Units,Adults and Health,Other Agencies - Third Party P,90256859,ROSEACRES CARE HOME LIMITED,"2,550.86",20/05/2020
Delivery Units,Adults and Health,Other Agencies - Third Party P,90256860,ROSEACRES CARE HOME LIMITED,"2,550.86",20/05/2020
Delivery Units,Adults and Health,Other Agencies - Third Party P,90256861,ROSEACRES CARE HOME LIMITED,"3,764.29",20/05/2020
Delivery Units,Adults and Health,Other Agencies - Third Party P,90256862,ROSEACRES CARE HOME LIMITED,"2,550.86",20/05/2020
Delivery Units,Adults and Health,Other Agencies - Third Party P,90256863,ROSEACRES CARE HOME LIMITED,"2,550.86",20/05/2020
Delivery Units,Adults and Health,Other Agencies - Third Party P,90256864,ROSEACRES CARE HOME LIMITED,"2,988.53",20/05/2020
Delivery Units,Adults and Health,Other Agencies - Third Party P,90256865,ROSEACRES CARE HOME LIMITED,"3,321.43",20/05/2020
Delivery Units,Adults and Health,Other Agencies - Third Party P,90256867,ROSEACRES CARE HOME LIMITED,"3,321.43",20/05/2020
Delivery Units,Adults and Health,Other Agencies - Third Party P,90256870,ROSEACRES CARE HOME LIMITED,"3,764.29",20/05/2020
Delivery Units,Adults and Health,Other Agencies - Third Party P,90256871,ROSEACRES CARE HOME LIMITED,"2,550.86",20/05/2020
Delivery Units,Adults and Health,Other Agencies - Third Party P,90256872,ROSEACRES CARE HOME LIMITED,"3,321.43",20/05/2020
Delivery Units,Adults and Health,Other Agencies - Third Party P,90253925,ELEANOR PALMER TRUST NO 2 A/C.,"3,214.29",05/05/2020
Delivery Units,Adults and Health,Other Agencies - Third Party P,90253926,ELEANOR PALMER TRUST NO 2 A/C.,"3,000.00",05/05/2020
Delivery Units,Adults and Health,Other Agencies - Third Party P,90257156,ELEANOR PALMER TRUST NO 2 A/C.,"3,321.43",20/05/2020
Delivery Units,Adults and Health,Other Agencies - Third Party P,90257157,ELEANOR PALMER TRUST NO 2 A/C.,"3,321.43",20/05/2020
Delivery Units,Adults and Health,Other Agencies - Third Party P,90257158,ELEANOR PALMER TRUST NO 2 A/C.,"3,354.64",20/05/2020
Delivery Units,Adults and Health,Other Agencies - Third Party P,90257159,ELEANOR PALMER TRUST NO 2 A/C.,"3,354.64",20/05/2020
Delivery Units,Adults and Health,Other Agencies - Third Party P,90257160,ELEANOR PALMER TRUST NO 2 A/C.,"3,321.43",20/05/2020
Delivery Units,Adults and Health,Other Agencies - Third Party P,90257161,ELEANOR PALMER TRUST NO 2 A/C.,"2,630.35",20/05/2020
Delivery Units,Adults and Health,Other Agencies - Third Party P,90257162,ELEANOR PALMER TRUST NO 2 A/C.,"2,630.35",20/05/2020
Delivery Units,Adults and Health,Other Agencies - Third Party P,90257163,ELEANOR PALMER TRUST NO 2 A/C.,"2,530.13",20/05/2020
Delivery Units,Adults and Health,Other Agencies - Third Party P,90257164,ELEANOR PALMER TRUST NO 2 A/C.,-774.62,20/05/2020
Delivery Units,Adults and Health,Other Agencies - Third Party P,90257165,ELEANOR PALMER TRUST NO 2 A/C.,"3,321.43",20/05/2020
Delivery Units,Adults and Health,Other Agencies - Third Party P,90257166,ELEANOR PALMER TRUST NO 2 A/C.,"3,430.46",20/05/2020
Delivery Units,Adults and Health,Other Agencies - Third Party P,90257167,ELEANOR PALMER TRUST NO 2 A/C.,"2,530.13",20/05/2020
Delivery Units,Adults and Health,Other Agencies - Third Party P,90257168,ELEANOR PALMER TRUST NO 2 A/C.,"2,630.35",20/05/2020
Delivery Units,Adults and Health,Other Agencies - Third Party P,90257169,ELEANOR PALMER TRUST NO 2 A/C.,"3,354.64",20/05/2020
Delivery Units,Adults and Health,Other Agencies - Third Party P,90257170,ELEANOR PALMER TRUST NO 2 A/C.,"3,321.43",20/05/2020
Delivery Units,Adults and Health,Other Agencies - Third Party P,90257171,ELEANOR PALMER TRUST NO 2 A/C.,"3,430.46",20/05/2020
Delivery Units,Adults and Health,Other Agencies - Third Party P,90256851,TORRINGTON HOMES,"2,249.45",20/05/2020
Delivery Units,Adults and Health,Other Agencies - Third Party P,90256852,TORRINGTON HOMES,"3,764.29",20/05/2020
Delivery Units,Adults and Health,Other Agencies - Third Party P,90256853,TORRINGTON HOMES,"2,448.78",20/05/2020
Delivery Units,Adults and Health,Other Agencies - Third Party P,90253921,ELMHURST RESIDENTIAL HOME,"33,985.71",05/05/2020
Delivery Units,Adults and Health,Other Agencies - Third Party P,90253412,JEWISH CARE,"2,418.01",01/05/2020
Delivery Units,Adults and Health,Other Agencies - Third Party P,90253420,JEWISH CARE,"2,296.24",01/05/2020
Delivery Units,Adults and Health,Other Agencies - Third Party P,90253421,JEWISH CARE,"2,418.01",01/05/2020
Delivery Units,Adults and Health,Other Agencies - Third Party P,90253426,JEWISH CARE,"2,418.01",01/05/2020
Delivery Units,Adults and Health,Other Agencies - Third Party P,90253431,JEWISH CARE,"1,308.59",01/05/2020
Delivery Units,Adults and Health,Other Agencies - Third Party P,90253432,JEWISH CARE,"2,598.87",01/05/2020
Delivery Units,Adults and Health,Other Agencies - Third Party P,90253433,JEWISH CARE,"2,598.87",01/05/2020
Delivery Units,Adults and Health,Other Agencies - Third Party P,90253434,JEWISH CARE,478.98,01/05/2020
Delivery Units,Adults and Health,Other Agencies - Third Party P,90253435,JEWISH CARE,"4,265.48",01/05/2020
Delivery Units,Adults and Health,Other Agencies - Third Party P,90253437,JEWISH CARE,"2,280.32",01/05/2020
Delivery Units,Adults and Health,Other Agencies - Third Party P,90253438,JEWISH CARE,"2,418.01",01/05/2020
Delivery Units,Adults and Health,Other Agencies - Third Party P,90253440,JEWISH CARE,"2,156.80",01/05/2020
Delivery Units,Adults and Health,Other Agencies - Third Party P,90253445,JEWISH CARE,"2,598.87",01/05/2020
Delivery Units,Adults and Health,Other Agencies - Third Party P,90253446,JEWISH CARE,"-1,241.18",01/05/2020
Delivery Units,Adults and Health,Other Agencies - Third Party P,90253447,JEWISH CARE,"2,418.01",01/05/2020
Delivery Units,Adults and Health,Other Agencies - Third Party P,90253452,JEWISH CARE,201.17,01/05/2020
Delivery Units,Adults and Health,Other Agencies - Third Party P,90253453,JEWISH CARE,"2,599.09",01/05/2020
Delivery Units,Adults and Health,Other Agencies - Third Party P,90253455,JEWISH CARE,"2,599.09",01/05/2020
Delivery Units,Adults and Health,Other Agencies - Third Party P,90253462,JEWISH CARE,"2,484.56",01/05/2020
Delivery Units,Adults and Health,Other Agencies - Third Party P,90253465,JEWISH CARE,"2,418.01",01/05/2020
Delivery Units,Adults and Health,Other Agencies - Third Party P,90253467,JEWISH CARE,"2,418.01",01/05/2020
Delivery Units,Adults and Health,Other Agencies - Third Party P,90253468,JEWISH CARE,"2,479.68",01/05/2020
Delivery Units,Adults and Health,Other Agencies - Third Party P,90253471,JEWISH CARE,"2,482.36",01/05/2020
Delivery Units,Adults and Health,Other Agencies - Third Party P,90253472,JEWISH CARE,"2,482.36",01/05/2020
Delivery Units,Adults and Health,Other Agencies - Third Party P,90253473,JEWISH CARE,"2,479.68",01/05/2020
Delivery Units,Adults and Health,Other Agencies - Third Party P,90253474,JEWISH CARE,"2,418.01",01/05/2020
Delivery Units,Adults and Health,Other Agencies - Third Party P,90253481,JEWISH CARE,"2,598.61",01/05/2020
Delivery Units,Adults and Health,Other Agencies - Third Party P,90253483,JEWISH CARE,"2,418.01",01/05/2020
Delivery Units,Adults and Health,Other Agencies - Third Party P,90253486,JEWISH CARE,"2,599.09",01/05/2020
Delivery Units,Adults and Health,Other Agencies - Third Party P,90253488,JEWISH CARE,793.08,01/05/2020
Delivery Units,Adults and Health,Other Agencies - Third Party P,90253489,JEWISH CARE,"2,598.87",01/05/2020
Delivery Units,Adults and Health,Other Agencies - Third Party P,90253491,JEWISH CARE,"2,599.09",01/05/2020
Delivery Units,Adults and Health,Other Agencies - Third Party P,90253493,JEWISH CARE,"2,599.09",01/05/2020
Delivery Units,Adults and Health,Other Agencies - Third Party P,90253494,JEWISH CARE,"2,482.36",01/05/2020
Delivery Units,Adults and Health,Other Agencies - Third Party P,90253495,JEWISH CARE,"2,484.56",01/05/2020
Delivery Units,Adults and Health,Other Agencies - Third Party P,90253498,JEWISH CARE,"2,418.01",01/05/2020
Delivery Units,Adults and Health,Other Agencies - Third Party P,90253502,JEWISH CARE,"2,418.01",01/05/2020
Delivery Units,Adults and Health,Other Agencies - Third Party P,90253506,JEWISH CARE,"2,482.36",01/05/2020
Delivery Units,Adults and Health,Other Agencies - Third Party P,90253511,JEWISH CARE,"2,484.56",01/05/2020
Delivery Units,Adults and Health,Other Agencies - Third Party P,90253515,JEWISH CARE,-266.20,01/05/2020
Delivery Units,Adults and Health,Other Agencies - Third Party P,90253516,JEWISH CARE,"2,484.56",01/05/2020
Delivery Units,Adults and Health,Other Agencies - Third Party P,90253517,JEWISH CARE,"2,418.01",01/05/2020
Delivery Units,Adults and Health,Other Agencies - Third Party P,90253519,JEWISH CARE,"2,418.01",01/05/2020
Delivery Units,Adults and Health,Other Agencies - Third Party P,90253520,JEWISH CARE,"2,418.01",01/05/2020
Delivery Units,Adults and Health,Other Agencies - Third Party P,90253521,JEWISH CARE,"2,598.87",01/05/2020
Delivery Units,Adults and Health,Other Agencies - Third Party P,90253522,JEWISH CARE,"2,484.56",01/05/2020
Delivery Units,Adults and Health,Other Agencies - Third Party P,90253525,JEWISH CARE,"6,242.86",01/05/2020
Delivery Units,Adults and Health,Other Agencies - Third Party P,90253527,JEWISH CARE,"4,922.72",01/05/2020
Delivery Units,Adults and Health,Other Agencies - Third Party P,90253533,JEWISH CARE,"2,598.87",01/05/2020
Delivery Units,Adults and Health,Other Agencies - Third Party P,90253536,JEWISH CARE,"2,599.09",01/05/2020
Delivery Units,Adults and Health,Other Agencies - Third Party P,90253538,JEWISH CARE,"2,599.09",01/05/2020
Delivery Units,Adults and Health,Other Agencies - Third Party P,90253539,JEWISH CARE,"2,484.56",01/05/2020
Delivery Units,Adults and Health,Other Agencies - Third Party P,90253541,JEWISH CARE,"2,484.56",01/05/2020
Delivery Units,Adults and Health,Other Agencies - Third Party P,90253542,JEWISH CARE,"4,825.16",01/05/2020
Delivery Units,Adults and Health,Other Agencies - Third Party P,90253543,JEWISH CARE,"2,480.92",01/05/2020
Delivery Units,Adults and Health,Other Agencies - Third Party P,90253545,JEWISH CARE,"2,484.56",01/05/2020
Delivery Units,Adults and Health,Other Agencies - Third Party P,90253547,JEWISH CARE,"2,418.01",01/05/2020
Delivery Units,Adults and Health,Other Agencies - Third Party P,90253548,JEWISH CARE,"2,599.09",01/05/2020
Delivery Units,Adults and Health,Other Agencies - Third Party P,90253549,JEWISH CARE,"2,598.87",01/05/2020
Delivery Units,Adults and Health,Other Agencies - Third Party P,90256148,CLOVELLY HOUSE RESID. HOME LTD,"3,000.00",19/05/2020
Delivery Units,Adults and Health,Other Agencies - Third Party P,90256149,CLOVELLY HOUSE RESID. HOME LTD,"3,000.00",19/05/2020
Delivery Units,Adults and Health,Other Agencies - Third Party P,90256150,CLOVELLY HOUSE RESID. HOME LTD,"3,000.00",19/05/2020
Delivery Units,Adults and Health,Other Agencies - Third Party P,90256151,CLOVELLY HOUSE RESID. HOME LTD,"3,000.00",19/05/2020
Delivery Units,Adults and Health,Other Agencies - Third Party P,90256152,CLOVELLY HOUSE RESID. HOME LTD,"2,458.20",19/05/2020
Delivery Units,Adults and Health,Other Agencies - Third Party P,90256154,CLOVELLY HOUSE RESID. HOME LTD,"2,600.00",19/05/2020
Delivery Units,Adults and Health,Other Agencies - Third Party P,90256156,CLOVELLY HOUSE RESID. HOME LTD,"3,100.00",19/05/2020
Delivery Units,Adults and Health,Other Agencies - Third Party P,90256160,CLOVELLY HOUSE RESID. HOME LTD,"2,458.20",19/05/2020
Delivery Units,Adults and Health,Other Agencies - Third Party P,90256162,CLOVELLY HOUSE RESID. HOME LTD,"3,000.00",19/05/2020
Delivery Units,Adults and Health,Other Agencies - Third Party P,90256163,CLOVELLY HOUSE RESID. HOME LTD,"3,000.00",19/05/2020
Delivery Units,Adults and Health,Other Agencies - Third Party P,90258807,CEDARS NURSING HOME,"4,428.57",27/05/2020
Delivery Units,Adults and Health,Other Agencies - Third Party P,90257172,CATHERINE LODGE,"3,321.43",20/05/2020
Delivery Units,Adults and Health,Other Agencies - Third Party P,90257174,CATHERINE LODGE,"3,764.29",20/05/2020
Delivery Units,Adults and Health,Other Agencies - Third Party P,90257175,CATHERINE LODGE,"3,764.29",20/05/2020
Delivery Units,Adults and Health,Other Agencies - Third Party P,90257177,CATHERINE LODGE,"2,601.87",20/05/2020
Delivery Units,Adults and Health,Other Agencies - Third Party P,90257178,CATHERINE LODGE,"2,601.87",20/05/2020
Delivery Units,Adults and Health,Other Agencies - Third Party P,90256625,SUNRIDGE HOUSING ASSOCIATION LTD,"2,989.58",20/05/2020
Delivery Units,Adults and Health,Other Agencies - Third Party P,90255892,NAZARETH HOUSE,"2,186.88",14/05/2020
Delivery Units,Adults and Health,Other Agencies - Third Party P,90255893,NAZARETH HOUSE,"2,350.08",14/05/2020
Delivery Units,Adults and Health,Other Agencies - Third Party P,90255894,NAZARETH HOUSE,"2,186.88",14/05/2020
Delivery Units,Adults and Health,Other Agencies - Third Party P,90255895,NAZARETH HOUSE,"2,350.08",14/05/2020
Delivery Units,Adults and Health,Other Agencies - Third Party P,90255896,NAZARETH HOUSE,"2,186.88",14/05/2020
Delivery Units,Adults and Health,Other Agencies - Third Party P,90255897,NAZARETH HOUSE,"2,186.88",14/05/2020
Delivery Units,Adults and Health,Other Agencies - Third Party P,90255898,NAZARETH HOUSE,"2,186.88",14/05/2020
Delivery Units,Adults and Health,Other Agencies - Third Party P,90255899,NAZARETH HOUSE,"2,350.08",14/05/2020
Delivery Units,Adults and Health,Other Agencies - Third Party P,90255900,NAZARETH HOUSE,"2,186.88",14/05/2020
Delivery Units,Adults and Health,Other Agencies - Third Party P,90255901,NAZARETH HOUSE,"2,186.88",14/05/2020
Delivery Units,Adults and Health,Other Agencies - Third Party P,90255902,NAZARETH HOUSE,"2,186.88",14/05/2020
Delivery Units,Adults and Health,Other Agencies - Third Party P,90255903,NAZARETH HOUSE,"2,186.88",14/05/2020
Delivery Units,Adults and Health,Other Agencies - Third Party P,90255905,NAZARETH HOUSE,"2,650.40",14/05/2020
Delivery Units,Adults and Health,Other Agencies - Third Party P,90255906,NAZARETH HOUSE,"2,186.88",14/05/2020
Delivery Units,Adults and Health,Other Agencies - Third Party P,90255907,NAZARETH HOUSE,"2,458.20",14/05/2020
Delivery Units,Adults and Health,Other Agencies - Third Party P,90255908,NAZARETH HOUSE,"2,350.08",14/05/2020
Delivery Units,Adults and Health,Other Agencies - Third Party P,90255909,NAZARETH HOUSE,"2,186.88",14/05/2020
Delivery Units,Adults and Health,Other Agencies - Third Party P,90255910,NAZARETH HOUSE,"2,186.88",14/05/2020
Delivery Units,Adults and Health,Other Agencies - Third Party P,90255911,NAZARETH HOUSE,"2,186.88",14/05/2020
Delivery Units,Adults and Health,Other Agencies - Third Party P,90255912,NAZARETH HOUSE,"2,350.08",14/05/2020
Delivery Units,Adults and Health,Other Agencies - Third Party P,90255913,NAZARETH HOUSE,"2,186.88",14/05/2020
Delivery Units,Adults and Health,Other Agencies - Third Party P,90255914,NAZARETH HOUSE,"2,186.88",14/05/2020
Delivery Units,Adults and Health,Other Agencies - Third Party P,90255915,NAZARETH HOUSE,"2,186.88",14/05/2020
Delivery Units,Adults and Health,Other Agencies - Third Party P,90255916,NAZARETH HOUSE,"2,186.88",14/05/2020
Delivery Units,Adults and Health,Other Agencies - Third Party P,90255917,NAZARETH HOUSE,"2,186.88",14/05/2020
Delivery Units,Adults and Health,Other Agencies - Third Party P,90256145,THE WOODSIDE HOME,"2,285.28",19/05/2020
Delivery Units,Adults and Health,Other Agencies - Third Party P,90256146,THE WOODSIDE HOME,"2,285.28",19/05/2020
Delivery Units,Adults and Health,Other Agencies - Third Party P,90255171,WESTMINSTER HEALTH CARE LTD,"2,909.53",12/05/2020
Delivery Units,Adults and Health,Other Agencies - Third Party P,90259127,SYDMAR LODGE,"2,469.42",29/05/2020
Delivery Units,Adults and Health,Other Agencies - Third Party P,90259128,SYDMAR LODGE,"4,871.43",29/05/2020
Delivery Units,Adults and Health,Other Agencies - Third Party P,90259129,SYDMAR LODGE,"2,506.26",29/05/2020
Delivery Units,Adults and Health,Other Agencies - Third Party P,90256166,SPRINGDENE,"4,907.14",19/05/2020
Delivery Units,Adults and Health,Other Agencies - Third Party P,90253560,BUPA CARE HOMES,"2,807.14",01/05/2020
Delivery Units,Adults and Health,Other Agencies - Third Party P,90257540,HILTON LODGE LTD.,"2,880.00",22/05/2020
Delivery Units,Adults and Health,Other Agencies - Third Party P,90257360,VENTRY RESIDENTIAL CARE LTD,"1,668.06",22/05/2020
Delivery Units,Adults and Health,Other Agencies - Third Party P,90257362,VENTRY RESIDENTIAL CARE LTD,"3,000.00",22/05/2020
Delivery Units,Adults and Health,Other Agencies - Third Party P,90257363,VENTRY RESIDENTIAL CARE LTD,"2,035.71",22/05/2020
Delivery Units,Adults and Health,Other Agencies - Third Party P,90257364,VENTRY RESIDENTIAL CARE LTD,"3,214.29",22/05/2020
Delivery Units,Adults and Health,Other Agencies - Third Party P,90256164,B & M CARE,"3,642.86",19/05/2020
Delivery Units,Adults and Health,Other Agencies - Third Party P,90256179,SAGE NURSING HOME,-86.43,20/05/2020
Delivery Units,Adults and Health,Other Agencies - Third Party P,90257071,SAGE NURSING HOME,"2,571.43",20/05/2020
Delivery Units,Adults and Health,Other Agencies - Third Party P,90257073,SAGE NURSING HOME,"2,343.09",20/05/2020
Delivery Units,Adults and Health,Other Agencies - Third Party P,90257075,SAGE NURSING HOME,"3,000.00",20/05/2020
Delivery Units,Adults and Health,Other Agencies - Third Party P,90253927,EASTSIDE HOUSE CARE HOME,"3,500.00",05/05/2020
Delivery Units,Adults and Health,Other Agencies - Third Party P,90254489,EASTSIDE HOUSE CARE HOME,"3,580.00",06/05/2020
Delivery Units,Adults and Health,Other Agencies - Third Party P,90257545,EASTSIDE HOUSE CARE HOME,"3,500.00",22/05/2020
Delivery Units,Adults and Health,Other Agencies - Third Party P,90256638,SWANBOROUGH HOUSE,"4,121.27",20/05/2020
Delivery Units,Adults and Health,Other Agencies - Third Party P,90257367,Ashfields Residential Care Home,"2,448.51",22/05/2020
Delivery Units,Adults and Health,Other Agencies - Third Party P,90254490,THE CHRISTIAN CARE TRUST,"2,458.20",06/05/2020
Delivery Units,Adults and Health,Other Agencies - Third Party P,90254498,THE CHRISTIAN CARE TRUST,"2,458.20",06/05/2020
Delivery Units,Adults and Health,Other Agencies - Third Party P,90258924,THE CHRISTIAN CARE TRUST,"2,350.08",28/05/2020
Delivery Units,Adults and Health,Other Agencies - Third Party P,90258925,THE CHRISTIAN CARE TRUST,"2,408.00",28/05/2020
Delivery Units,Adults and Health,Other Agencies - Third Party P,90254493,CARLTON COURT (TLC GROUP),"1,300.00",20/05/2020
Delivery Units,Adults and Health,Other Agencies - Third Party P,90257077,CARLTON COURT (TLC GROUP),"2,249.45",20/05/2020
Delivery Units,Adults and Health,Other Agencies - Third Party P,90257095,CARLTON COURT (TLC GROUP),"5,544.00",20/05/2020
Delivery Units,Adults and Health,Other Agencies - Third Party P,90254136,WOODFIELD HOUSE,"15,080.00",05/05/2020
Delivery Units,Adults and Health,Other Agencies - Third Party P,90257339,ASHTON LODGE CARE CENTRE,"4,359.66",22/05/2020
Delivery Units,Adults and Health,Other Agencies - Third Party P,90257678,LIVABILITY,"4,364.00",27/05/2020
Delivery Units,Adults and Health,Other Agencies - Third Party P,90257681,LIVABILITY,"3,458.24",27/05/2020
Delivery Units,Adults and Health,Other Agencies - Third Party P,90257682,LIVABILITY,"3,211.80",27/05/2020
Delivery Units,Adults and Health,Other Agencies - Third Party P,90259017,THE BARNETGROUP LIMITED,"2,304.00",29/05/2020
Delivery Units,Adults and Health,Other Agencies - Third Party P,90259018,THE BARNETGROUP LIMITED,"2,304.00",29/05/2020
Delivery Units,Adults and Health,Other Agencies - Third Party P,90259019,THE BARNETGROUP LIMITED,"2,304.00",29/05/2020
Delivery Units,Adults and Health,Other Agencies - Third Party P,90259020,THE BARNETGROUP LIMITED,"-2,603.43",29/05/2020
Delivery Units,Adults and Health,Other Agencies - Third Party P,90259022,THE BARNETGROUP LIMITED,"-1,608.00",29/05/2020
Delivery Units,Adults and Health,Other Agencies - Third Party P,90259023,THE BARNETGROUP LIMITED,"2,304.00",29/05/2020
Delivery Units,Adults and Health,Other Agencies - Third Party P,90259024,THE BARNETGROUP LIMITED,"-2,633.14",29/05/2020
Delivery Units,Adults and Health,Other Agencies - Third Party P,90259025,THE BARNETGROUP LIMITED,"2,304.00",29/05/2020
Delivery Units,Adults and Health,Other Agencies - Third Party P,90259026,THE BARNETGROUP LIMITED,"-1,761.14",29/05/2020
Delivery Units,Adults and Health,Other Agencies - Third Party P,90259027,THE BARNETGROUP LIMITED,"-2,468.57",29/05/2020
Delivery Units,Adults and Health,Other Agencies - Third Party P,90259028,THE BARNETGROUP LIMITED,"-4,441.14",29/05/2020
Delivery Units,Adults and Health,Other Agencies - Third Party P,90259029,THE BARNETGROUP LIMITED,"2,144.00",29/05/2020
Delivery Units,Adults and Health,Other Agencies - Third Party P,90259030,THE BARNETGROUP LIMITED,"2,144.00",29/05/2020
Delivery Units,Adults and Health,Other Agencies - Third Party P,90259031,THE BARNETGROUP LIMITED,"-2,914.29",29/05/2020
Delivery Units,Adults and Health,Other Agencies - Third Party P,90259032,THE BARNETGROUP LIMITED,"2,304.00",29/05/2020
Delivery Units,Adults and Health,Other Agencies - Third Party P,90259033,THE BARNETGROUP LIMITED,"-2,986.29",29/05/2020
Delivery Units,Adults and Health,Other Agencies - Third Party P,90259034,THE BARNETGROUP LIMITED,"2,304.00",29/05/2020
Delivery Units,Adults and Health,Other Agencies - Third Party P,90259035,THE BARNETGROUP LIMITED,"2,694.00",29/05/2020
Delivery Units,Adults and Health,Other Agencies - Third Party P,90259036,THE BARNETGROUP LIMITED,"89,634.24",29/05/2020
Delivery Units,Adults and Health,Other Agencies - Third Party P,90259037,THE BARNETGROUP LIMITED,"2,144.00",29/05/2020
Delivery Units,Adults and Health,Other Agencies - Third Party P,90259038,THE BARNETGROUP LIMITED,"2,304.00",29/05/2020
Delivery Units,Adults and Health,Other Agencies - Third Party P,90259039,THE BARNETGROUP LIMITED,"2,304.00",29/05/2020
Delivery Units,Adults and Health,Other Agencies - Third Party P,90259040,THE BARNETGROUP LIMITED,"1,974.86",29/05/2020
Delivery Units,Adults and Health,Other Agencies - Third Party P,90259041,THE BARNETGROUP LIMITED,"2,144.00",29/05/2020
Delivery Units,Adults and Health,Other Agencies - Third Party P,90259042,THE BARNETGROUP LIMITED,"2,144.00",29/05/2020
Delivery Units,Adults and Health,Other Agencies - Third Party P,90259044,THE BARNETGROUP LIMITED,"2,304.00",29/05/2020
Delivery Units,Adults and Health,Other Agencies - Third Party P,90259045,THE BARNETGROUP LIMITED,"2,304.00",29/05/2020
Delivery Units,Adults and Health,Other Agencies - Third Party P,90259047,THE BARNETGROUP LIMITED,"2,304.00",29/05/2020
Delivery Units,Adults and Health,Other Agencies - Third Party P,90259048,THE BARNETGROUP LIMITED,"2,304.00",29/05/2020
Delivery Units,Adults and Health,Other Agencies - Third Party P,90259049,THE BARNETGROUP LIMITED,"2,144.00",29/05/2020
Delivery Units,Adults and Health,Other Agencies - Third Party P,90259050,THE BARNETGROUP LIMITED,"2,144.00",29/05/2020
Delivery Units,Adults and Health,Other Agencies - Third Party P,90259051,THE BARNETGROUP LIMITED,"2,144.00",29/05/2020
Delivery Units,Adults and Health,Other Agencies - Third Party P,90259052,THE BARNETGROUP LIMITED,"-1,454.86",29/05/2020
Delivery Units,Adults and Health,Other Agencies - Third Party P,90259053,THE BARNETGROUP LIMITED,"2,144.00",29/05/2020
Delivery Units,Adults and Health,Other Agencies - Third Party P,90259054,THE BARNETGROUP LIMITED,"2,144.00",29/05/2020
Delivery Units,Adults and Health,Other Agencies - Third Party P,90259055,THE BARNETGROUP LIMITED,"2,144.00",29/05/2020
Delivery Units,Adults and Health,Other Agencies - Third Party P,90259056,THE BARNETGROUP LIMITED,"2,144.00",29/05/2020
Delivery Units,Adults and Health,Other Agencies - Third Party P,90259058,THE BARNETGROUP LIMITED,"-3,291.43",29/05/2020
Delivery Units,Adults and Health,Other Agencies - Third Party P,90259059,THE BARNETGROUP LIMITED,"2,304.00",29/05/2020
Delivery Units,Adults and Health,Other Agencies - Third Party P,90259060,THE BARNETGROUP LIMITED,"3,000.00",29/05/2020
Delivery Units,Adults and Health,Other Agencies - Third Party P,90259061,THE BARNETGROUP LIMITED,"4,062.40",29/05/2020
Delivery Units,Adults and Health,Other Agencies - Third Party P,90259062,THE BARNETGROUP LIMITED,"22,742.52",29/05/2020
Delivery Units,Adults and Health,Other Agencies - Third Party P,90259063,THE BARNETGROUP LIMITED,"2,304.00",29/05/2020
Delivery Units,Adults and Health,Other Agencies - Third Party P,90259064,THE BARNETGROUP LIMITED,"2,304.00",29/05/2020
Delivery Units,Adults and Health,Other Agencies - Third Party P,90259065,THE BARNETGROUP LIMITED,"9,164.00",29/05/2020
Delivery Units,Adults and Health,Other Agencies - Third Party P,90259066,THE BARNETGROUP LIMITED,"2,304.00",29/05/2020
Delivery Units,Adults and Health,Other Agencies - Third Party P,90259069,THE BARNETGROUP LIMITED,"2,144.00",29/05/2020
Delivery Units,Adults and Health,Other Agencies - Third Party P,90259072,THE BARNETGROUP LIMITED,"2,144.00",29/05/2020
Delivery Units,Adults and Health,Other Agencies - Third Party P,90259073,THE BARNETGROUP LIMITED,"2,144.00",29/05/2020
Delivery Units,Adults and Health,Other Agencies - Third Party P,90259074,THE BARNETGROUP LIMITED,"2,304.00",29/05/2020
Delivery Units,Adults and Health,Other Agencies - Third Party P,90259075,THE BARNETGROUP LIMITED,"2,304.00",29/05/2020
Delivery Units,Adults and Health,Other Agencies - Third Party P,90259077,THE BARNETGROUP LIMITED,"2,144.00",29/05/2020
Delivery Units,Adults and Health,Other Agencies - Third Party P,90259078,THE BARNETGROUP LIMITED,"2,144.00",29/05/2020
Delivery Units,Adults and Health,Other Agencies - Third Party P,90259079,THE BARNETGROUP LIMITED,"2,144.00",29/05/2020
Delivery Units,Adults and Health,Other Agencies - Third Party P,90259080,THE BARNETGROUP LIMITED,"2,144.00",29/05/2020
Delivery Units,Adults and Health,Other Agencies - Third Party P,90259082,THE BARNETGROUP LIMITED,-905.14,29/05/2020
Delivery Units,Adults and Health,Other Agencies - Third Party P,90259083,THE BARNETGROUP LIMITED,"2,144.00",29/05/2020
Delivery Units,Adults and Health,Other Agencies - Third Party P,90259084,THE BARNETGROUP LIMITED,"2,304.00",29/05/2020
Delivery Units,Adults and Health,Other Agencies - Third Party P,90259085,THE BARNETGROUP LIMITED,"-1,728.00",29/05/2020
Delivery Units,Adults and Health,Other Agencies - Third Party P,90259086,THE BARNETGROUP LIMITED,"2,304.00",29/05/2020
Delivery Units,Adults and Health,Other Agencies - Third Party P,90259087,THE BARNETGROUP LIMITED,"2,144.00",29/05/2020
Delivery Units,Adults and Health,Other Agencies - Third Party P,90259089,THE BARNETGROUP LIMITED,"-2,144.00",29/05/2020
Delivery Units,Adults and Health,Other Agencies - Third Party P,90259090,THE BARNETGROUP LIMITED,"2,144.00",29/05/2020
Delivery Units,Adults and Health,Other Agencies - Third Party P,90259091,THE BARNETGROUP LIMITED,"1,728.00",29/05/2020
Delivery Units,Adults and Health,Other Agencies - Third Party P,90259093,THE BARNETGROUP LIMITED,"2,144.00",29/05/2020
Delivery Units,Adults and Health,Other Agencies - Third Party P,90259094,THE BARNETGROUP LIMITED,"2,144.00",29/05/2020
Delivery Units,Adults and Health,Other Agencies - Third Party P,90259095,THE BARNETGROUP LIMITED,"2,304.00",29/05/2020
Delivery Units,Adults and Health,Other Agencies - Third Party P,90259096,THE BARNETGROUP LIMITED,"2,144.00",29/05/2020
Delivery Units,Adults and Health,Other Agencies - Third Party P,90259097,THE BARNETGROUP LIMITED,"2,144.00",29/05/2020
Delivery Units,Adults and Health,Other Agencies - Third Party P,90259098,THE BARNETGROUP LIMITED,"2,144.00",29/05/2020
Delivery Units,Adults and Health,Other Agencies - Third Party P,90259100,THE BARNETGROUP LIMITED,"3,567.52",29/05/2020
Delivery Units,Adults and Health,Other Agencies - Third Party P,90259101,THE BARNETGROUP LIMITED,"-2,680.00",29/05/2020
Delivery Units,Adults and Health,Other Agencies - Third Party P,90259102,THE BARNETGROUP LIMITED,"4,080.00",29/05/2020
Delivery Units,Adults and Health,Other Agencies - Third Party P,90259103,THE BARNETGROUP LIMITED,"15,982.18",29/05/2020
Delivery Units,Adults and Health,Other Agencies - Third Party P,90259104,THE BARNETGROUP LIMITED,"2,144.00",29/05/2020
Delivery Units,Adults and Health,Other Agencies - Third Party P,90259105,THE BARNETGROUP LIMITED,"2,144.00",29/05/2020
Delivery Units,Adults and Health,Other Agencies - Third Party P,90257369,Belmont Lodge Care Centre,"2,418.04",22/05/2020
Delivery Units,Adults and Health,Other Agencies - Third Party P,90253559,Karuna Manor,"4,071.43",01/05/2020
Delivery Units,Adults and Health,Other Agencies - Third Party P,90256826,Karuna Manor,"4,207.14",20/05/2020
Delivery Units,Adults and Health,Other Agencies - Third Party P,90253557,Alexandra House (Runwood Homes),437.94,01/05/2020
Delivery Units,Adults and Health,Other Agencies - Third Party P,90253563,The Windmill Care Home,"1,872.40",01/05/2020
Delivery Units,Adults and Health,Other Agencies - Third Party P,90253564,The Windmill Care Home,907.78,01/05/2020
Delivery Units,Adults and Health,Other Agencies - Third Party P,90253568,The Windmill Care Home,60.00,01/05/2020
Delivery Units,Adults and Health,Other Agencies - Third Party P,90254487,GCH (Hertfordshire) Ltd T/A,"2,414.68",06/05/2020
Delivery Units,Adults and Health,Other Agencies - Third Party P,90254491,GCH (North London) t/a The Tudors,"2,300.00",06/05/2020
Delivery Units,Adults and Health,Other Agencies - Third Party P,90255881,Wilton House Ltd,"2,611.48",14/05/2020
Delivery Units,Adults and Health,Other Agencies - Third Party P,90255882,Wilton House Ltd,"2,621.01",14/05/2020
Delivery Units,Adults and Health,Other Agencies - Third Party P,90255883,Wilton House Ltd,"2,724.46",14/05/2020
Delivery Units,Adults and Health,Other Agencies - Third Party P,90253920,Amron Premier Care,"2,196.11",05/05/2020
Delivery Units,Adults and Health,Other Agencies - Third Party P,90259130,DR FRENCH MEMORIAL HOME LTD,"2,517.94",29/05/2020
Delivery Units,Adults and Health,Other Agencies - Third Party P,90259131,DR FRENCH MEMORIAL HOME LTD,"3,428.57",29/05/2020
Delivery Units,Adults and Health,Other Agencies - Third Party P,90259132,DR FRENCH MEMORIAL HOME LTD,"3,428.57",29/05/2020
Delivery Units,Adults and Health,Other Agencies - Third Party P,90259133,DR FRENCH MEMORIAL HOME LTD,"3,642.86",29/05/2020
Delivery Units,Adults and Health,Other Agencies - Third Party P,90259134,DR FRENCH MEMORIAL HOME LTD,"3,642.86",29/05/2020
Delivery Units,Adults and Health,Other Agencies - Third Party P,90259135,DR FRENCH MEMORIAL HOME LTD,"3,642.86",29/05/2020
Delivery Units,Adults and Health,Other Agencies - Third Party P,90259136,DR FRENCH MEMORIAL HOME LTD,"3,642.86",29/05/2020
Delivery Units,Adults and Health,Other Agencies - Third Party P,90259137,DR FRENCH MEMORIAL HOME LTD,"3,642.86",29/05/2020
Delivery Units,Adults and Health,Other Agencies - Third Party P,90259138,DR FRENCH MEMORIAL HOME LTD,"2,601.88",29/05/2020
Delivery Units,Adults and Health,Other Agencies - Third Party P,90259139,DR FRENCH MEMORIAL HOME LTD,"3,542.86",29/05/2020
Delivery Units,Adults and Health,Other Agencies - Third Party P,90259140,DR FRENCH MEMORIAL HOME LTD,"3,542.86",29/05/2020
Delivery Units,Adults and Health,Other Agencies - Third Party P,90259141,DR FRENCH MEMORIAL HOME LTD,"3,764.29",29/05/2020
Delivery Units,Adults and Health,Other Agencies - Third Party P,90259142,DR FRENCH MEMORIAL HOME LTD,"3,764.29",29/05/2020
Delivery Units,Adults and Health,Other Agencies - Third Party P,90259143,DR FRENCH MEMORIAL HOME LTD,"3,764.29",29/05/2020
Delivery Units,Adults and Health,Other Agencies - Third Party P,90257097,NIGHTINGALE HOUSE,"2,280.44",20/05/2020
Delivery Units,Adults and Health,Other Agencies - Third Party P,90257101,NIGHTINGALE HOUSE,"2,437.71",20/05/2020
Delivery Units,Adults and Health,Other Agencies - Third Party P,90257105,NIGHTINGALE HOUSE,"2,359.07",20/05/2020
Delivery Units,Adults and Health,Other Agencies - Third Party P,90257109,NIGHTINGALE HOUSE,"2,437.71",20/05/2020
Delivery Units,Adults and Health,Other Agencies - Third Party P,90257114,NIGHTINGALE HOUSE,"2,873.82",20/05/2020
Delivery Units,Adults and Health,Other Agencies - Third Party P,90257115,NIGHTINGALE HOUSE,"3,072.01",20/05/2020
Delivery Units,Adults and Health,Other Agencies - Third Party P,90257116,NIGHTINGALE HOUSE,"2,972.91",20/05/2020
Delivery Units,Adults and Health,Other Agencies - Third Party P,90257117,NIGHTINGALE HOUSE,"3,072.01",20/05/2020
Delivery Units,Adults and Health,Other Agencies - Third Party P,90253579,ELM PARK LODGE,"3,137.91",01/05/2020
Delivery Units,Adults and Health,Other Agencies - Third Party P,90256102,THE GRANGE,"2,600.00",15/05/2020
Delivery Units,Adults and Health,Other Agencies - Third Party P,90256103,THE GRANGE,"2,450.47",15/05/2020
Delivery Units,Adults and Health,Other Agencies - Third Party P,90256104,THE GRANGE,"2,458.20",15/05/2020
Delivery Units,Adults and Health,Other Agencies - Third Party P,90256105,THE GRANGE,"2,600.00",15/05/2020
Delivery Units,Adults and Health,Other Agencies - Third Party P,90253428,THE LIMES RESIDENTIAL HOME,"3,000.00",01/05/2020
Delivery Units,Adults and Health,Other Agencies - Third Party P,90253430,THE LIMES RESIDENTIAL HOME,"2,304.00",01/05/2020
Delivery Units,Adults and Health,Other Agencies - Third Party P,90253439,THE LIMES RESIDENTIAL HOME,"2,477.50",01/05/2020
Delivery Units,Adults and Health,Other Agencies - Third Party P,90253442,THE LIMES RESIDENTIAL HOME,"2,477.50",01/05/2020
Delivery Units,Adults and Health,Other Agencies - Third Party P,90253443,THE LIMES RESIDENTIAL HOME,"2,477.50",01/05/2020
Delivery Units,Adults and Health,Other Agencies - Third Party P,90253450,THE LIMES RESIDENTIAL HOME,"2,302.86",01/05/2020
Delivery Units,Adults and Health,Other Agencies - Third Party P,90253451,THE LIMES RESIDENTIAL HOME,"2,477.50",01/05/2020
Delivery Units,Adults and Health,Other Agencies - Third Party P,90253476,THE LIMES RESIDENTIAL HOME,"2,477.50",01/05/2020
Delivery Units,Adults and Health,Other Agencies - Third Party P,90253480,THE LIMES RESIDENTIAL HOME,"2,477.50",01/05/2020
Delivery Units,Adults and Health,Other Agencies - Third Party P,90253492,THE LIMES RESIDENTIAL HOME,"2,477.50",01/05/2020
Delivery Units,Adults and Health,Other Agencies - Third Party P,90253505,THE LIMES RESIDENTIAL HOME,"2,302.86",01/05/2020
Delivery Units,Adults and Health,Other Agencies - Third Party P,90253514,THE LIMES RESIDENTIAL HOME,"2,477.50",01/05/2020
Delivery Units,Adults and Health,Other Agencies - Third Party P,90253523,THE LIMES RESIDENTIAL HOME,"3,040.00",01/05/2020
Delivery Units,Adults and Health,Other Agencies - Third Party P,90253524,THE LIMES RESIDENTIAL HOME,"5,035.71",01/05/2020
Delivery Units,Adults and Health,Other Agencies - Third Party P,90253531,THE LIMES RESIDENTIAL HOME,"2,304.00",01/05/2020
Delivery Units,Adults and Health,Other Agencies - Third Party P,90253537,THE LIMES RESIDENTIAL HOME,"2,477.50",01/05/2020
Delivery Units,Adults and Health,Other Agencies - Third Party P,90258832,3A Care (London) Ltd,"12,200.00",27/05/2020
Delivery Units,Adults and Health,Other Agencies - Third Party P,90257541,Sonnet Care Homes (Essex) Ltd,"4,714.29",22/05/2020
Delivery Units,Adults and Health,Other Agencies - Third Party P,90254093,Heathcote Care Home,"4,178.57",05/05/2020
Delivery Units,Adults and Health,Other Agencies - Third Party P,90256622,Heathcote Care Home,"4,317.57",20/05/2020
Delivery Units,Adults and Health,Direct Transfer Payments to So,90258382,REDACTED - PERSONAL DATA,"1,881.00",27/05/2020
Delivery Units,Adults and Health,Direct Transfer Payments to So,90257989,REDACTED - PERSONAL DATA,"2,931.20",27/05/2020
Delivery Units,Adults and Health,Direct Transfer Payments to So,90258419,REDACTED - PERSONAL DATA,"3,846.40",27/05/2020
Delivery Units,Adults and Health,Direct Transfer Payments to So,90258372,REDACTED - PERSONAL DATA,"3,834.44",27/05/2020
Delivery Units,Adults and Health,Direct Transfer Payments to So,90258574,REDACTED - PERSONAL DATA,579.24,27/05/2020
Delivery Units,Adults and Health,Direct Transfer Payments to So,90254062,REDACTED - PERSONAL DATA,303.09,05/05/2020
Delivery Units,Adults and Health,Direct Transfer Payments to So,90258178,REDACTED - PERSONAL DATA,458.88,27/05/2020
Delivery Units,Adults and Health,Direct Transfer Payments to So,90258315,REDACTED - PERSONAL DATA,"1,560.72",27/05/2020
Delivery Units,Adults and Health,Direct Transfer Payments to So,90257873,REDACTED - PERSONAL DATA,961.60,27/05/2020
Delivery Units,Adults and Health,Fees and Charges,90258757,REDACTED - PERSONAL DATA,-62.96,27/05/2020
Delivery Units,Adults and Health,Direct Transfer Payments to So,90257891,REDACTED - PERSONAL DATA,"2,461.76",27/05/2020
Delivery Units,Adults and Health,Direct Transfer Payments to So,90258142,REDACTED - PERSONAL DATA,"2,638.76",27/05/2020
Delivery Units,Adults and Health,Direct Transfer Payments to So,90259111,REDACTED - PERSONAL DATA,477.34,29/05/2020
Delivery Units,Adults and Health,Direct Transfer Payments to So,90258183,REDACTED - PERSONAL DATA,795.56,27/05/2020
Delivery Units,Adults and Health,Direct Transfer Payments to So,90258163,REDACTED - PERSONAL DATA,852.76,27/05/2020
Delivery Units,Adults and Health,Direct Transfer Payments to So,90258021,REDACTED - PERSONAL DATA,889.48,27/05/2020
Delivery Units,Adults and Health,Direct Transfer Payments to So,90258359,REDACTED - PERSONAL DATA,611.40,27/05/2020
Delivery Units,Adults and Health,Direct Transfer Payments to So,90254632,REDACTED - PERSONAL DATA,"1,124.83",11/05/2020
Delivery Units,Adults and Health,Direct Transfer Payments to So,90257929,REDACTED - PERSONAL DATA,"2,703.12",27/05/2020
Delivery Units,Adults and Health,Direct Transfer Payments to So,90258669,REDACTED - PERSONAL DATA,349.12,27/05/2020
Delivery Units,Adults and Health,Direct Transfer Payments to So,90258301,REDACTED - PERSONAL DATA,377.88,27/05/2020
Delivery Units,Adults and Health,Direct Transfer Payments to So,90257965,REDACTED - PERSONAL DATA,"2,056.84",27/05/2020
Delivery Units,Adults and Health,Direct Transfer Payments to So,90258470,REDACTED - PERSONAL DATA,"1,143.16",27/05/2020
Delivery Units,Adults and Health,Direct Transfer Payments to So,90258428,REDACTED - PERSONAL DATA,"1,238.92",27/05/2020
Delivery Units,Adults and Health,Direct Transfer Payments to So,90259108,REDACTED - PERSONAL DATA,284.19,29/05/2020
Delivery Units,Adults and Health,Direct Transfer Payments to So,90253554,REDACTED - PERSONAL DATA,900.60,01/05/2020
Delivery Units,Adults and Health,Direct Transfer Payments to So,90258714,REDACTED - PERSONAL DATA,"1,497.04",27/05/2020
Delivery Units,Adults and Health,Direct Transfer Payments to So,90258059,REDACTED - PERSONAL DATA,490.04,27/05/2020
Delivery Units,Adults and Health,Direct Transfer Payments to So,90258479,REDACTED - PERSONAL DATA,975.36,27/05/2020
Delivery Units,Adults and Health,Direct Transfer Payments to So,90258576,REDACTED - PERSONAL DATA,800.00,27/05/2020
Delivery Units,Adults and Health,Direct Transfer Payments to So,90258487,REDACTED - PERSONAL DATA,"2,349.16",27/05/2020
Delivery Units,Adults and Health,Direct Transfer Payments to So,90257994,REDACTED - PERSONAL DATA,480.80,27/05/2020
Delivery Units,Adults and Health,Direct Transfer Payments to So,90258465,REDACTED - PERSONAL DATA,"3,444.00",27/05/2020
Delivery Units,Adults and Health,Direct Transfer Payments to So,90257995,REDACTED - PERSONAL DATA,451.92,27/05/2020
Delivery Units,Adults and Health,Direct Transfer Payments to So,90258201,REDACTED - PERSONAL DATA,649.08,27/05/2020
Delivery Units,Adults and Health,Direct Transfer Payments to So,90258502,REDACTED - PERSONAL DATA,348.00,27/05/2020
Delivery Units,Adults and Health,Direct Transfer Payments to So,90254074,REDACTED - PERSONAL DATA,"5,814.29",05/05/2020
Delivery Units,Adults and Health,Direct Transfer Payments to So,90258745,REDACTED - PERSONAL DATA,880.00,27/05/2020
Delivery Units,Adults and Health,Direct Transfer Payments to So,90258503,REDACTED - PERSONAL DATA,547.08,27/05/2020
Delivery Units,Adults and Health,Direct Transfer Payments to So,90258001,REDACTED - PERSONAL DATA,"1,284.04",27/05/2020
Delivery Units,Adults and Health,Direct Transfer Payments to So,90258090,REDACTED - PERSONAL DATA,"1,560.72",27/05/2020
Delivery Units,Adults and Health,Direct Transfer Payments to So,90258671,REDACTED - PERSONAL DATA,"2,316.96",27/05/2020
Delivery Units,Adults and Health,Direct Transfer Payments to So,90258872,REDACTED - PERSONAL DATA,"1,764.95",28/05/2020
Delivery Units,Adults and Health,Direct Transfer Payments to So,90258008,REDACTED - PERSONAL DATA,410.96,27/05/2020
Delivery Units,Adults and Health,Direct Transfer Payments to So,90258212,REDACTED - PERSONAL DATA,360.60,27/05/2020
Delivery Units,Adults and Health,Direct Transfer Payments to So,90258088,REDACTED - PERSONAL DATA,"4,022.52",27/05/2020
Delivery Units,Adults and Health,Direct Transfer Payments to So,90258014,REDACTED - PERSONAL DATA,844.40,27/05/2020
Delivery Units,Adults and Health,Direct Transfer Payments to So,90258519,REDACTED - PERSONAL DATA,960.00,27/05/2020
Delivery Units,Adults and Health,Direct Transfer Payments to So,90258219,REDACTED - PERSONAL DATA,"2,066.00",27/05/2020
Delivery Units,Adults and Health,Fees and Charges,90258760,REDACTED - PERSONAL DATA,482.80,27/05/2020
Delivery Units,Adults and Health,Direct Transfer Payments to So,90258221,REDACTED - PERSONAL DATA,231.40,27/05/2020
Delivery Units,Adults and Health,Direct Transfer Payments to So,90258082,REDACTED - PERSONAL DATA,478.48,27/05/2020
Delivery Units,Adults and Health,Direct Transfer Payments to So,90258577,REDACTED - PERSONAL DATA,944.00,27/05/2020
Delivery Units,Adults and Health,Direct Transfer Payments to So,90258562,REDACTED - PERSONAL DATA,"2,400.00",27/05/2020
Delivery Units,Adults and Health,Direct Transfer Payments to So,90258559,REDACTED - PERSONAL DATA,772.32,27/05/2020
Delivery Units,Adults and Health,Direct Transfer Payments to So,90254073,REDACTED - PERSONAL DATA,"-2,712.64",05/05/2020
Delivery Units,Adults and Health,Direct Transfer Payments to So,90254075,REDACTED - PERSONAL DATA,"3,987.68",05/05/2020
Delivery Units,Adults and Health,Fees and Charges,90258582,REDACTED - PERSONAL DATA,-257.60,27/05/2020
Delivery Units,Adults and Health,Direct Transfer Payments to So,90258746,REDACTED - PERSONAL DATA,996.92,27/05/2020
Delivery Units,Adults and Health,Direct Transfer Payments to So,90258318,REDACTED - PERSONAL DATA,384.64,27/05/2020
Delivery Units,Adults and Health,Direct Transfer Payments to So,90258285,REDACTED - PERSONAL DATA,675.80,27/05/2020
Delivery Units,Adults and Health,Direct Transfer Payments to So,90258290,REDACTED - PERSONAL DATA,"4,000.00",27/05/2020
Delivery Units,Adults and Health,Fees and Charges,90258751,REDACTED - PERSONAL DATA,80.00,27/05/2020
Delivery Units,Adults and Health,Direct Transfer Payments to So,90258097,REDACTED - PERSONAL DATA,136.00,27/05/2020
Delivery Units,Adults and Health,Direct Transfer Payments to So,90258571,REDACTED - PERSONAL DATA,"4,608.04",27/05/2020
Delivery Units,Adults and Health,Direct Transfer Payments to So,90254060,REDACTED - PERSONAL DATA,"6,462.86",05/05/2020
Delivery Units,Adults and Health,Direct Transfer Payments to So,90258346,REDACTED - PERSONAL DATA,"3,480.00",27/05/2020
Delivery Units,Adults and Health,Direct Transfer Payments to So,90258109,REDACTED - PERSONAL DATA,"1,351.56",27/05/2020
Delivery Units,Adults and Health,Direct Transfer Payments to So,90258610,REDACTED - PERSONAL DATA,589.68,27/05/2020
Delivery Units,Adults and Health,Direct Transfer Payments to So,90258621,REDACTED - PERSONAL DATA,730.92,27/05/2020
Delivery Units,Adults and Health,Direct Transfer Payments to So,90258626,REDACTED - PERSONAL DATA,"1,346.12",27/05/2020
Delivery Units,Adults and Health,Direct Transfer Payments to So,90258645,REDACTED - PERSONAL DATA,112.00,27/05/2020
Delivery Units,Adults and Health,Direct Transfer Payments to So,90258633,REDACTED - PERSONAL DATA,"1,238.92",27/05/2020
Delivery Units,Adults and Health,Direct Transfer Payments to So,90258124,REDACTED - PERSONAL DATA,903.92,27/05/2020
Delivery Units,Adults and Health,Direct Transfer Payments to So,90258656,REDACTED - PERSONAL DATA,482.72,27/05/2020
Delivery Units,Adults and Health,Direct Transfer Payments to So,90258130,REDACTED - PERSONAL DATA,"1,238.92",27/05/2020
Delivery Units,Adults and Health,Direct Transfer Payments to So,90258665,REDACTED - PERSONAL DATA,"1,194.24",27/05/2020
Delivery Units,Adults and Health,Direct Transfer Payments to So,90258254,REDACTED - PERSONAL DATA,"3,000.00",27/05/2020
Delivery Units,Adults and Health,Direct Transfer Payments to So,90258319,REDACTED - PERSONAL DATA,"2,843.24",27/05/2020
Delivery Units,Adults and Health,Direct Transfer Payments to So,90258249,REDACTED - PERSONAL DATA,"2,751.32",27/05/2020
Delivery Units,Adults and Health,Direct Transfer Payments to So,90258322,REDACTED - PERSONAL DATA,"2,781.72",27/05/2020
Delivery Units,Adults and Health,Direct Transfer Payments to So,90258264,REDACTED - PERSONAL DATA,586.96,27/05/2020
Delivery Units,Adults and Health,Fees and Charges,90256137,REDACTED - PERSONAL DATA,0.05,19/05/2020
Delivery Units,Adults and Health,Direct Transfer Payments to So,90256140,REDACTED - PERSONAL DATA,"-1,303.30",19/05/2020
Delivery Units,Adults and Health,Direct Transfer Payments to So,90258748,REDACTED - PERSONAL DATA,"2,252.60",27/05/2020
Delivery Units,Adults and Health,Fees and Charges,90256139,REDACTED - PERSONAL DATA,-75.16,19/05/2020
Delivery Units,Adults and Health,Direct Transfer Payments to So,90258674,REDACTED - PERSONAL DATA,"2,331.60",27/05/2020
Delivery Units,Adults and Health,Direct Transfer Payments to So,90258324,REDACTED - PERSONAL DATA,"1,802.08",27/05/2020
Delivery Units,Adults and Health,Direct Transfer Payments to So,90258677,REDACTED - PERSONAL DATA,450.52,27/05/2020
Delivery Units,Adults and Health,Direct Transfer Payments to So,90258720,REDACTED - PERSONAL DATA,"2,515.96",27/05/2020
Delivery Units,Adults and Health,Direct Transfer Payments to So,90258678,REDACTED - PERSONAL DATA,"1,350.80",27/05/2020
Delivery Units,Adults and Health,Direct Transfer Payments to So,90258685,REDACTED - PERSONAL DATA,804.52,27/05/2020
Delivery Units,Adults and Health,Direct Transfer Payments to So,90256138,REDACTED - PERSONAL DATA,"1,892.57",19/05/2020
Delivery Units,Adults and Health,Direct Transfer Payments to So,90254631,REDACTED - PERSONAL DATA,"1,953.78",11/05/2020
Delivery Units,Adults and Health,Direct Transfer Payments to So,90258336,REDACTED - PERSONAL DATA,"1,122.00",27/05/2020
Delivery Units,Adults and Health,Direct Transfer Payments to So,90258343,REDACTED - PERSONAL DATA,901.04,27/05/2020
Delivery Units,Adults and Health,Direct Transfer Payments to So,90258273,REDACTED - PERSONAL DATA,193.08,27/05/2020
Delivery Units,Adults and Health,Direct Transfer Payments to So,90258743,REDACTED - PERSONAL DATA,560.00,27/05/2020
Delivery Units,Adults and Health,Direct Transfer Payments to So,90258737,REDACTED - PERSONAL DATA,273.20,27/05/2020
Delivery Units,Adults and Health,Direct Transfer Payments to So,90258682,REDACTED - PERSONAL DATA,"1,802.08",27/05/2020
Delivery Units,Adults and Health,Direct Transfer Payments to So,90258278,REDACTED - PERSONAL DATA,"2,260.00",27/05/2020
Delivery Units,Adults and Health,Direct Transfer Payments to So,90194658,REDACTED - PERSONAL DATA,"-2,172.17",27/05/2020
Delivery Units,Adults and Health,Direct Transfer Payments to So,90195465,REDACTED - PERSONAL DATA,"-4,923.59",27/05/2020
Delivery Units,Adults and Health,Direct Transfer Payments to So,90258293,REDACTED - PERSONAL DATA,"20,273.61",27/05/2020
Delivery Units,Adults and Health,Direct Transfer Payments to So,90258831,REDACTED - PERSONAL DATA,"5,068.40",27/05/2020
Delivery Units,Adults and Health,Fees and Charges,90258876,REDACTED - PERSONAL DATA,0.07,28/05/2020
Delivery Units,Adults and Health,Direct Transfer Payments to So,90254056,REDACTED - PERSONAL DATA,"3,207.79",05/05/2020
Delivery Units,Adults and Health,Fees and Charges,90254057,REDACTED - PERSONAL DATA,-0.09,05/05/2020
Delivery Units,Adults and Health,Fees and Charges,90254058,REDACTED - PERSONAL DATA,-602.15,05/05/2020
Delivery Units,Adults and Health,Fees and Charges,90258738,REDACTED - PERSONAL DATA,-602.24,27/05/2020
Delivery Units,Adults and Health,Direct Transfer Payments to So,90258747,REDACTED - PERSONAL DATA,"1,360.88",27/05/2020
Delivery Units,Adults and Health,Direct Transfer Payments to So,90254629,REDACTED - PERSONAL DATA,141.43,11/05/2020
Delivery Units,Adults and Health,Direct Transfer Payments to So,90254630,REDACTED - PERSONAL DATA,396.00,11/05/2020
Delivery Units,Adults and Health,Direct Transfer Payments to So,90258744,REDACTED - PERSONAL DATA,396.00,27/05/2020
Delivery Units,Adults and Health,Direct Transfer Payments to So,90255147,REDACTED - PERSONAL DATA,"6,321.08",12/05/2020
Delivery Units,Adults and Health,Fees and Charges,90255148,REDACTED - PERSONAL DATA,-0.07,12/05/2020
Delivery Units,Adults and Health,Fees and Charges,90255179,REDACTED - PERSONAL DATA,0.07,12/05/2020
Delivery Units,Adults and Health,Direct Transfer Payments to So,90258739,REDACTED - PERSONAL DATA,"3,218.00",27/05/2020
Delivery Units,Adults and Health,Direct Transfer Payments to So,90258875,REDACTED - PERSONAL DATA,"16,319.85",28/05/2020
Delivery Units,Adults and Health,Fees and Charges,90255145,REDACTED - PERSONAL DATA,0.03,12/05/2020
Delivery Units,Adults and Health,Direct Transfer Payments to So,90255146,REDACTED - PERSONAL DATA,939.96,12/05/2020
Delivery Units,Adults and Health,Fees and Charges,90255150,REDACTED - PERSONAL DATA,0.17,12/05/2020
Delivery Units,Adults and Health,Direct Transfer Payments to So,90255178,REDACTED - PERSONAL DATA,"-1,855.01",12/05/2020
Delivery Units,Adults and Health,Direct Transfer Payments to So,90258687,REDACTED - PERSONAL DATA,648.16,27/05/2020
Delivery Units,Adults and Health,Other Agencies - Third Party P,90255239,WESTMINSTER HOMECARE LTD,421.64,12/05/2020
Delivery Units,Adults and Health,Other Agencies - Third Party P,90255240,WESTMINSTER HOMECARE LTD,25.30,12/05/2020
Delivery Units,Adults and Health,Other Agencies - Third Party P,90255242,WESTMINSTER HOMECARE LTD,8.43,12/05/2020
Delivery Units,Adults and Health,Other Agencies - Third Party P,90255243,WESTMINSTER HOMECARE LTD,105.40,12/05/2020
Delivery Units,Adults and Health,Other Agencies - Third Party P,90255244,WESTMINSTER HOMECARE LTD,265.58,12/05/2020
Delivery Units,Adults and Health,Other Agencies - Third Party P,90255245,WESTMINSTER HOMECARE LTD,223.43,12/05/2020
Delivery Units,Adults and Health,Other Agencies - Third Party P,90255246,WESTMINSTER HOMECARE LTD,222.62,12/05/2020
Delivery Units,Adults and Health,Other Agencies - Third Party P,90255247,WESTMINSTER HOMECARE LTD,63.25,12/05/2020
Delivery Units,Adults and Health,Other Agencies - Third Party P,90255248,WESTMINSTER HOMECARE LTD,88.55,12/05/2020
Delivery Units,Adults and Health,Other Agencies - Third Party P,90255249,WESTMINSTER HOMECARE LTD,42.15,12/05/2020
Delivery Units,Adults and Health,Other Agencies - Third Party P,90255250,WESTMINSTER HOMECARE LTD,84.35,12/05/2020
Delivery Units,Adults and Health,Other Agencies - Third Party P,90255252,WESTMINSTER HOMECARE LTD,177.10,12/05/2020
Delivery Units,Adults and Health,Other Agencies - Third Party P,90255253,WESTMINSTER HOMECARE LTD,189.71,12/05/2020
Delivery Units,Adults and Health,Other Agencies - Third Party P,90255254,WESTMINSTER HOMECARE LTD,8.43,12/05/2020
Delivery Units,Adults and Health,Other Agencies - Third Party P,90255255,WESTMINSTER HOMECARE LTD,113.85,12/05/2020
Delivery Units,Adults and Health,Other Agencies - Third Party P,90255256,WESTMINSTER HOMECARE LTD,25.29,12/05/2020
Delivery Units,Adults and Health,Other Agencies - Third Party P,90255257,WESTMINSTER HOMECARE LTD,265.64,12/05/2020
Delivery Units,Adults and Health,Other Agencies - Third Party P,90255258,WESTMINSTER HOMECARE LTD,67.44,12/05/2020
Delivery Units,Adults and Health,Other Agencies - Third Party P,90255259,WESTMINSTER HOMECARE LTD,147.56,12/05/2020
Delivery Units,Adults and Health,Other Agencies - Third Party P,90255260,WESTMINSTER HOMECARE LTD,8.43,12/05/2020
Delivery Units,Adults and Health,Other Agencies - Third Party P,90255263,WESTMINSTER HOMECARE LTD,16.87,12/05/2020
Delivery Units,Adults and Health,Other Agencies - Third Party P,90255264,WESTMINSTER HOMECARE LTD,350.04,12/05/2020
Delivery Units,Adults and Health,Other Agencies - Third Party P,90255265,WESTMINSTER HOMECARE LTD,337.04,12/05/2020
Delivery Units,Adults and Health,Other Agencies - Third Party P,90255266,WESTMINSTER HOMECARE LTD,147.56,12/05/2020
Delivery Units,Adults and Health,Other Agencies - Third Party P,90255267,WESTMINSTER HOMECARE LTD,101.18,12/05/2020
Delivery Units,Adults and Health,Other Agencies - Third Party P,90255268,WESTMINSTER HOMECARE LTD,63.25,12/05/2020
Delivery Units,Adults and Health,Other Agencies - Third Party P,90255269,WESTMINSTER HOMECARE LTD,59.01,12/05/2020
Delivery Units,Adults and Health,Other Agencies - Third Party P,90255270,WESTMINSTER HOMECARE LTD,59.01,12/05/2020
Delivery Units,Adults and Health,Other Agencies - Third Party P,90255271,WESTMINSTER HOMECARE LTD,18.28,12/05/2020
Delivery Units,Adults and Health,Other Agencies - Third Party P,90255272,WESTMINSTER HOMECARE LTD,111.62,12/05/2020
Delivery Units,Adults and Health,Other Agencies - Third Party P,90255273,WESTMINSTER HOMECARE LTD,67.48,12/05/2020
Delivery Units,Adults and Health,Other Agencies - Third Party P,90255274,WESTMINSTER HOMECARE LTD,164.44,12/05/2020
Delivery Units,Adults and Health,Other Agencies - Third Party P,90255275,WESTMINSTER HOMECARE LTD,198.14,12/05/2020
Delivery Units,Adults and Health,Other Agencies - Third Party P,90255276,WESTMINSTER HOMECARE LTD,118.02,12/05/2020
Delivery Units,Adults and Health,Other Agencies - Third Party P,90255277,WESTMINSTER HOMECARE LTD,227.40,12/05/2020
Delivery Units,Adults and Health,Other Agencies - Third Party P,90255282,WESTMINSTER HOMECARE LTD,413.21,12/05/2020
Delivery Units,Adults and Health,Other Agencies - Third Party P,90255283,WESTMINSTER HOMECARE LTD,12.65,12/05/2020
Delivery Units,Adults and Health,Other Agencies - Third Party P,90255285,WESTMINSTER HOMECARE LTD,96.97,12/05/2020
Delivery Units,Adults and Health,Other Agencies - Third Party P,90255286,WESTMINSTER HOMECARE LTD,257.15,12/05/2020
Delivery Units,Adults and Health,Other Agencies - Third Party P,90255287,WESTMINSTER HOMECARE LTD,244.51,12/05/2020
Delivery Units,Adults and Health,Other Agencies - Third Party P,90255288,WESTMINSTER HOMECARE LTD,193.93,12/05/2020
Delivery Units,Adults and Health,Other Agencies - Third Party P,90255289,WESTMINSTER HOMECARE LTD,88.55,12/05/2020
Delivery Units,Adults and Health,Other Agencies - Third Party P,90255290,WESTMINSTER HOMECARE LTD,42.15,12/05/2020
Delivery Units,Adults and Health,Other Agencies - Third Party P,90255291,WESTMINSTER HOMECARE LTD,75.91,12/05/2020
Delivery Units,Adults and Health,Other Agencies - Third Party P,90255293,WESTMINSTER HOMECARE LTD,177.10,12/05/2020
Delivery Units,Adults and Health,Other Agencies - Third Party P,90255294,WESTMINSTER HOMECARE LTD,185.49,12/05/2020
Delivery Units,Adults and Health,Other Agencies - Third Party P,90255295,WESTMINSTER HOMECARE LTD,113.85,12/05/2020
Delivery Units,Adults and Health,Other Agencies - Third Party P,90255296,WESTMINSTER HOMECARE LTD,265.64,12/05/2020
Delivery Units,Adults and Health,Other Agencies - Third Party P,90255297,WESTMINSTER HOMECARE LTD,147.56,12/05/2020
Delivery Units,Adults and Health,Other Agencies - Third Party P,90255298,WESTMINSTER HOMECARE LTD,8.43,12/05/2020
Delivery Units,Adults and Health,Other Agencies - Third Party P,90255301,WESTMINSTER HOMECARE LTD,326.13,12/05/2020
Delivery Units,Adults and Health,Other Agencies - Third Party P,90255302,WESTMINSTER HOMECARE LTD,345.48,12/05/2020
Delivery Units,Adults and Health,Other Agencies - Third Party P,90255303,WESTMINSTER HOMECARE LTD,147.56,12/05/2020
Delivery Units,Adults and Health,Other Agencies - Third Party P,90255304,WESTMINSTER HOMECARE LTD,63.25,12/05/2020
Delivery Units,Adults and Health,Other Agencies - Third Party P,90255305,WESTMINSTER HOMECARE LTD,59.01,12/05/2020
Delivery Units,Adults and Health,Other Agencies - Third Party P,90255306,WESTMINSTER HOMECARE LTD,50.58,12/05/2020
Delivery Units,Adults and Health,Other Agencies - Third Party P,90255307,WESTMINSTER HOMECARE LTD,118.09,12/05/2020
Delivery Units,Adults and Health,Other Agencies - Third Party P,90255308,WESTMINSTER HOMECARE LTD,71.13,12/05/2020
Delivery Units,Adults and Health,Other Agencies - Third Party P,90255309,WESTMINSTER HOMECARE LTD,151.80,12/05/2020
Delivery Units,Adults and Health,Other Agencies - Third Party P,90255310,WESTMINSTER HOMECARE LTD,206.57,12/05/2020
Delivery Units,Adults and Health,Other Agencies - Third Party P,90255311,WESTMINSTER HOMECARE LTD,118.02,12/05/2020
Delivery Units,Adults and Health,Other Agencies - Third Party P,90255312,WESTMINSTER HOMECARE LTD,185.49,12/05/2020
Delivery Units,Adults and Health,Other Agencies - Third Party P,90255317,WESTMINSTER HOMECARE LTD,396.35,12/05/2020
Delivery Units,Adults and Health,Other Agencies - Third Party P,90255318,WESTMINSTER HOMECARE LTD,12.65,12/05/2020
Delivery Units,Adults and Health,Other Agencies - Third Party P,90255320,WESTMINSTER HOMECARE LTD,96.97,12/05/2020
Delivery Units,Adults and Health,Other Agencies - Third Party P,90255321,WESTMINSTER HOMECARE LTD,231.86,12/05/2020
Delivery Units,Adults and Health,Other Agencies - Third Party P,90255322,WESTMINSTER HOMECARE LTD,236.09,12/05/2020
Delivery Units,Adults and Health,Other Agencies - Third Party P,90255323,WESTMINSTER HOMECARE LTD,166.97,12/05/2020
Delivery Units,Adults and Health,Other Agencies - Third Party P,90255324,WESTMINSTER HOMECARE LTD,88.55,12/05/2020
Delivery Units,Adults and Health,Other Agencies - Third Party P,90255325,WESTMINSTER HOMECARE LTD,50.58,12/05/2020
Delivery Units,Adults and Health,Other Agencies - Third Party P,90255326,WESTMINSTER HOMECARE LTD,84.35,12/05/2020
Delivery Units,Adults and Health,Other Agencies - Third Party P,90255328,WESTMINSTER HOMECARE LTD,177.10,12/05/2020
Delivery Units,Adults and Health,Other Agencies - Third Party P,90255329,WESTMINSTER HOMECARE LTD,206.57,12/05/2020
Delivery Units,Adults and Health,Other Agencies - Third Party P,90255330,WESTMINSTER HOMECARE LTD,134.91,12/05/2020
Delivery Units,Adults and Health,Other Agencies - Third Party P,90255331,WESTMINSTER HOMECARE LTD,8.43,12/05/2020
Delivery Units,Adults and Health,Other Agencies - Third Party P,90255332,WESTMINSTER HOMECARE LTD,261.42,12/05/2020
Delivery Units,Adults and Health,Other Agencies - Third Party P,90255333,WESTMINSTER HOMECARE LTD,143.34,12/05/2020
Delivery Units,Adults and Health,Other Agencies - Third Party P,90255334,WESTMINSTER HOMECARE LTD,8.43,12/05/2020
Delivery Units,Adults and Health,Other Agencies - Third Party P,90255337,WESTMINSTER HOMECARE LTD,352.00,12/05/2020
Delivery Units,Adults and Health,Other Agencies - Third Party P,90255338,WESTMINSTER HOMECARE LTD,353.64,12/05/2020
Delivery Units,Adults and Health,Other Agencies - Third Party P,90255339,WESTMINSTER HOMECARE LTD,147.56,12/05/2020
Delivery Units,Adults and Health,Other Agencies - Third Party P,90255340,WESTMINSTER HOMECARE LTD,59.01,12/05/2020
Delivery Units,Adults and Health,Other Agencies - Third Party P,90255341,WESTMINSTER HOMECARE LTD,118.09,12/05/2020
Delivery Units,Adults and Health,Other Agencies - Third Party P,90255342,WESTMINSTER HOMECARE LTD,84.35,12/05/2020
Delivery Units,Adults and Health,Other Agencies - Third Party P,90255343,WESTMINSTER HOMECARE LTD,63.25,12/05/2020
Delivery Units,Adults and Health,Other Agencies - Third Party P,90255344,WESTMINSTER HOMECARE LTD,202.35,12/05/2020
Delivery Units,Adults and Health,Other Agencies - Third Party P,90255345,WESTMINSTER HOMECARE LTD,118.02,12/05/2020
Delivery Units,Adults and Health,Other Agencies - Third Party P,90255349,WESTMINSTER HOMECARE LTD,442.75,12/05/2020
Delivery Units,Adults and Health,Other Agencies - Third Party P,90255350,WESTMINSTER HOMECARE LTD,115.95,12/05/2020
Delivery Units,Adults and Health,Other Agencies - Third Party P,90255351,WESTMINSTER HOMECARE LTD,244.53,12/05/2020
Delivery Units,Adults and Health,Other Agencies - Third Party P,90255352,WESTMINSTER HOMECARE LTD,267.71,12/05/2020
Delivery Units,Adults and Health,Other Agencies - Third Party P,90255353,WESTMINSTER HOMECARE LTD,181.31,12/05/2020
Delivery Units,Adults and Health,Other Agencies - Third Party P,90255354,WESTMINSTER HOMECARE LTD,94.88,12/05/2020
Delivery Units,Adults and Health,Other Agencies - Third Party P,90255355,WESTMINSTER HOMECARE LTD,42.15,12/05/2020
Delivery Units,Adults and Health,Other Agencies - Third Party P,90255356,WESTMINSTER HOMECARE LTD,92.50,12/05/2020
Delivery Units,Adults and Health,Other Agencies - Third Party P,90255358,WESTMINSTER HOMECARE LTD,189.76,12/05/2020
Delivery Units,Adults and Health,Other Agencies - Third Party P,90255359,WESTMINSTER HOMECARE LTD,221.34,12/05/2020
Delivery Units,Adults and Health,Other Agencies - Third Party P,90255360,WESTMINSTER HOMECARE LTD,158.11,12/05/2020
Delivery Units,Adults and Health,Other Agencies - Third Party P,90255361,WESTMINSTER HOMECARE LTD,297.29,12/05/2020
Delivery Units,Adults and Health,Other Agencies - Third Party P,90255362,WESTMINSTER HOMECARE LTD,153.89,12/05/2020
Delivery Units,Adults and Health,Other Agencies - Third Party P,90255363,WESTMINSTER HOMECARE LTD,8.43,12/05/2020
Delivery Units,Adults and Health,Other Agencies - Third Party P,90255366,WESTMINSTER HOMECARE LTD,378.17,12/05/2020
Delivery Units,Adults and Health,Other Agencies - Third Party P,90255367,WESTMINSTER HOMECARE LTD,379.24,12/05/2020
Delivery Units,Adults and Health,Other Agencies - Third Party P,90255368,WESTMINSTER HOMECARE LTD,158.11,12/05/2020
Delivery Units,Adults and Health,Other Agencies - Third Party P,90255369,WESTMINSTER HOMECARE LTD,63.23,12/05/2020
Delivery Units,Adults and Health,Other Agencies - Third Party P,90255370,WESTMINSTER HOMECARE LTD,130.46,12/05/2020
Delivery Units,Adults and Health,Other Agencies - Third Party P,90255371,WESTMINSTER HOMECARE LTD,88.57,12/05/2020
Delivery Units,Adults and Health,Other Agencies - Third Party P,90255372,WESTMINSTER HOMECARE LTD,221.34,12/05/2020
Delivery Units,Adults and Health,Other Agencies - Third Party P,90255373,WESTMINSTER HOMECARE LTD,126.46,12/05/2020
Delivery Units,Adults and Health,Other Agencies - Third Party P,1000925202,ENARA COMMUNITY CARE,"2,527.00",01/05/2020
Delivery Units,Adults and Health,Other Agencies - Third Party P,1001519302,ENARA COMMUNITY CARE,"2,707.40",13/05/2020
Delivery Units,Adults and Health,Other Agencies - Third Party P,1001519502,ENARA COMMUNITY CARE,"2,707.40",13/05/2020
Delivery Units,Adults and Health,Other Agencies - Third Party P,1001704102,ENARA COMMUNITY CARE,"2,527.00",21/05/2020
Delivery Units,Adults and Health,Other Agencies - Third Party P,1001807202,ENARA COMMUNITY CARE,"2,617.20",27/05/2020
Delivery Units,Adults and Health,Other Agencies - Third Party P,1001807602,ENARA COMMUNITY CARE,"2,617.20",27/05/2020
Delivery Units,Adults and Health,Other Agencies - Third Party P,90254165,CAREWATCH (BARNET),120.26,05/05/2020
Delivery Units,Adults and Health,Other Agencies - Third Party P,90254166,CAREWATCH (BARNET),287.80,05/05/2020
Delivery Units,Adults and Health,Other Agencies - Third Party P,90254167,CAREWATCH (BARNET),60.13,05/05/2020
Delivery Units,Adults and Health,Other Agencies - Third Party P,90254168,CAREWATCH (BARNET),210.49,05/05/2020
Delivery Units,Adults and Health,Other Agencies - Third Party P,90254169,CAREWATCH (BARNET),60.13,05/05/2020
Delivery Units,Adults and Health,Other Agencies - Third Party P,90254170,CAREWATCH (BARNET),438.09,05/05/2020
Delivery Units,Adults and Health,Other Agencies - Third Party P,90254171,CAREWATCH (BARNET),240.59,05/05/2020
Delivery Units,Adults and Health,Other Agencies - Third Party P,90254172,CAREWATCH (BARNET),266.29,05/05/2020
Delivery Units,Adults and Health,Other Agencies - Third Party P,90254173,CAREWATCH (BARNET),150.36,05/05/2020
Delivery Units,Adults and Health,Other Agencies - Third Party P,90254174,CAREWATCH (BARNET),240.52,05/05/2020
Delivery Units,Adults and Health,Other Agencies - Third Party P,90254175,CAREWATCH (BARNET),51.56,05/05/2020
Delivery Units,Adults and Health,Other Agencies - Third Party P,90254176,CAREWATCH (BARNET),257.73,05/05/2020
Delivery Units,Adults and Health,Other Agencies - Third Party P,90254177,CAREWATCH (BARNET),180.39,05/05/2020
Delivery Units,Adults and Health,Other Agencies - Third Party P,90254178,CAREWATCH (BARNET),253.44,05/05/2020
Delivery Units,Adults and Health,Other Agencies - Third Party P,90254179,CAREWATCH (BARNET),781.90,05/05/2020
Delivery Units,Adults and Health,Other Agencies - Third Party P,90254180,CAREWATCH (BARNET),116.00,05/05/2020
Delivery Units,Adults and Health,Other Agencies - Third Party P,90254182,CAREWATCH (BARNET),300.72,05/05/2020
Delivery Units,Adults and Health,Other Agencies - Third Party P,90254183,CAREWATCH (BARNET),270.62,05/05/2020
Delivery Units,Adults and Health,Other Agencies - Third Party P,90254184,CAREWATCH (BARNET),17.18,05/05/2020
Delivery Units,Adults and Health,Other Agencies - Third Party P,90254185,CAREWATCH (BARNET),90.23,05/05/2020
Delivery Units,Adults and Health,Other Agencies - Third Party P,90254186,CAREWATCH (BARNET),244.85,05/05/2020
Delivery Units,Adults and Health,Other Agencies - Third Party P,90254187,CAREWATCH (BARNET),120.26,05/05/2020
Delivery Units,Adults and Health,Other Agencies - Third Party P,90254188,CAREWATCH (BARNET),253.44,05/05/2020
Delivery Units,Adults and Health,Other Agencies - Third Party P,90254190,CAREWATCH (BARNET),120.26,05/05/2020
Delivery Units,Adults and Health,Other Agencies - Third Party P,90254191,CAREWATCH (BARNET),64.45,05/05/2020
Delivery Units,Adults and Health,Other Agencies - Third Party P,90254192,CAREWATCH (BARNET),270.62,05/05/2020
Delivery Units,Adults and Health,Other Agencies - Third Party P,90254193,CAREWATCH (BARNET),90.23,05/05/2020
Delivery Units,Adults and Health,Other Agencies - Third Party P,90254194,CAREWATCH (BARNET),240.52,05/05/2020
Delivery Units,Adults and Health,Other Agencies - Third Party P,90254195,CAREWATCH (BARNET),330.75,05/05/2020
Delivery Units,Adults and Health,Other Agencies - Third Party P,90254196,CAREWATCH (BARNET),167.50,05/05/2020
Delivery Units,Adults and Health,Other Agencies - Third Party P,90254197,CAREWATCH (BARNET),270.62,05/05/2020
Delivery Units,Adults and Health,Other Agencies - Third Party P,90254198,CAREWATCH (BARNET),270.61,05/05/2020
Delivery Units,Adults and Health,Other Agencies - Third Party P,90254199,CAREWATCH (BARNET),158.92,05/05/2020
Delivery Units,Adults and Health,Other Agencies - Third Party P,90254200,CAREWATCH (BARNET),236.23,05/05/2020
Delivery Units,Adults and Health,Other Agencies - Third Party P,90254201,CAREWATCH (BARNET),210.46,05/05/2020
Delivery Units,Adults and Health,Other Agencies - Third Party P,90254202,CAREWATCH (BARNET),201.92,05/05/2020
Delivery Units,Adults and Health,Other Agencies - Third Party P,90254203,CAREWATCH (BARNET),171.84,05/05/2020
Delivery Units,Adults and Health,Other Agencies - Third Party P,90254204,CAREWATCH (BARNET),81.63,05/05/2020
Delivery Units,Adults and Health,Other Agencies - Third Party P,90254207,CAREWATCH (BARNET),115.96,05/05/2020
Delivery Units,Adults and Health,Other Agencies - Third Party P,90254208,CAREWATCH (BARNET),588.45,05/05/2020
Delivery Units,Adults and Health,Other Agencies - Third Party P,90254209,CAREWATCH (BARNET),103.10,05/05/2020
Delivery Units,Adults and Health,Other Agencies - Third Party P,90254210,CAREWATCH (BARNET),682.90,05/05/2020
Delivery Units,Adults and Health,Other Agencies - Third Party P,90254211,CAREWATCH (BARNET),128.90,05/05/2020
Delivery Units,Adults and Health,Other Agencies - Third Party P,90254212,CAREWATCH (BARNET),296.36,05/05/2020
Delivery Units,Adults and Health,Other Agencies - Third Party P,90254213,CAREWATCH (BARNET),287.78,05/05/2020
Delivery Units,Adults and Health,Other Agencies - Third Party P,90254214,CAREWATCH (BARNET),171.81,05/05/2020
Delivery Units,Adults and Health,Other Agencies - Third Party P,90254215,CAREWATCH (BARNET),231.96,05/05/2020
Delivery Units,Adults and Health,Other Agencies - Third Party P,90254216,CAREWATCH (BARNET),188.98,05/05/2020
Delivery Units,Adults and Health,Other Agencies - Third Party P,90254217,CAREWATCH (BARNET),90.23,05/05/2020
Delivery Units,Adults and Health,Other Agencies - Third Party P,90254218,CAREWATCH (BARNET),120.26,05/05/2020
Delivery Units,Adults and Health,Other Agencies - Third Party P,90254219,CAREWATCH (BARNET),85.93,05/05/2020
Delivery Units,Adults and Health,Other Agencies - Third Party P,90254220,CAREWATCH (BARNET),34.36,05/05/2020
Delivery Units,Adults and Health,Other Agencies - Third Party P,90254222,CAREWATCH (BARNET),184.72,05/05/2020
Delivery Units,Adults and Health,Other Agencies - Third Party P,90254223,CAREWATCH (BARNET),184.69,05/05/2020
Delivery Units,Adults and Health,Other Agencies - Third Party P,90254224,CAREWATCH (BARNET),317.86,05/05/2020
Delivery Units,Adults and Health,Other Agencies - Third Party P,90254225,CAREWATCH (BARNET),60.15,05/05/2020
Delivery Units,Adults and Health,Other Agencies - Third Party P,90254226,CAREWATCH (BARNET),330.72,05/05/2020
Delivery Units,Adults and Health,Other Agencies - Third Party P,90254227,CAREWATCH (BARNET),206.20,05/05/2020
Delivery Units,Adults and Health,Other Agencies - Third Party P,90254228,CAREWATCH (BARNET),103.08,05/05/2020
Delivery Units,Adults and Health,Other Agencies - Third Party P,90254229,CAREWATCH (BARNET),180.42,05/05/2020
Delivery Units,Adults and Health,Other Agencies - Third Party P,90254231,CAREWATCH (BARNET),103.11,05/05/2020
Delivery Units,Adults and Health,Other Agencies - Third Party P,90254232,CAREWATCH (BARNET),120.26,05/05/2020
Delivery Units,Adults and Health,Other Agencies - Third Party P,90254233,CAREWATCH (BARNET),219.09,05/05/2020
Delivery Units,Adults and Health,Other Agencies - Third Party P,90254234,CAREWATCH (BARNET),231.96,05/05/2020
Delivery Units,Adults and Health,Other Agencies - Third Party P,90254235,CAREWATCH (BARNET),21.48,05/05/2020
Delivery Units,Adults and Health,Other Agencies - Third Party P,90254236,CAREWATCH (BARNET),120.26,05/05/2020
Delivery Units,Adults and Health,Other Agencies - Third Party P,90254237,CAREWATCH (BARNET),287.80,05/05/2020
Delivery Units,Adults and Health,Other Agencies - Third Party P,90254238,CAREWATCH (BARNET),60.13,05/05/2020
Delivery Units,Adults and Health,Other Agencies - Third Party P,90254239,CAREWATCH (BARNET),438.09,05/05/2020
Delivery Units,Adults and Health,Other Agencies - Third Party P,90254240,CAREWATCH (BARNET),240.59,05/05/2020
Delivery Units,Adults and Health,Other Agencies - Third Party P,90254241,CAREWATCH (BARNET),266.29,05/05/2020
Delivery Units,Adults and Health,Other Agencies - Third Party P,90254242,CAREWATCH (BARNET),150.36,05/05/2020
Delivery Units,Adults and Health,Other Agencies - Third Party P,90254243,CAREWATCH (BARNET),120.26,05/05/2020
Delivery Units,Adults and Health,Other Agencies - Third Party P,90254244,CAREWATCH (BARNET),601.30,05/05/2020
Delivery Units,Adults and Health,Other Agencies - Third Party P,90254245,CAREWATCH (BARNET),51.56,05/05/2020
Delivery Units,Adults and Health,Other Agencies - Third Party P,90254246,CAREWATCH (BARNET),257.73,05/05/2020
Delivery Units,Adults and Health,Other Agencies - Third Party P,90254247,CAREWATCH (BARNET),180.39,05/05/2020
Delivery Units,Adults and Health,Other Agencies - Third Party P,90254248,CAREWATCH (BARNET),253.44,05/05/2020
Delivery Units,Adults and Health,Other Agencies - Third Party P,90254249,CAREWATCH (BARNET),781.90,05/05/2020
Delivery Units,Adults and Health,Other Agencies - Third Party P,90254251,CAREWATCH (BARNET),300.65,05/05/2020
Delivery Units,Adults and Health,Other Agencies - Third Party P,90254252,CAREWATCH (BARNET),300.72,05/05/2020
Delivery Units,Adults and Health,Other Agencies - Third Party P,90254253,CAREWATCH (BARNET),270.62,05/05/2020
Delivery Units,Adults and Health,Other Agencies - Third Party P,90254254,CAREWATCH (BARNET),17.18,05/05/2020
Delivery Units,Adults and Health,Other Agencies - Third Party P,90254255,CAREWATCH (BARNET),90.23,05/05/2020
Delivery Units,Adults and Health,Other Agencies - Third Party P,90254256,CAREWATCH (BARNET),244.85,05/05/2020
Delivery Units,Adults and Health,Other Agencies - Third Party P,90254257,CAREWATCH (BARNET),120.26,05/05/2020
Delivery Units,Adults and Health,Other Agencies - Third Party P,90254258,CAREWATCH (BARNET),120.26,05/05/2020
Delivery Units,Adults and Health,Other Agencies - Third Party P,90254259,CAREWATCH (BARNET),64.45,05/05/2020
Delivery Units,Adults and Health,Other Agencies - Third Party P,90254260,CAREWATCH (BARNET),270.62,05/05/2020
Delivery Units,Adults and Health,Other Agencies - Third Party P,90254261,CAREWATCH (BARNET),240.52,05/05/2020
Delivery Units,Adults and Health,Other Agencies - Third Party P,90254262,CAREWATCH (BARNET),64.42,05/05/2020
Delivery Units,Adults and Health,Other Agencies - Third Party P,90254263,CAREWATCH (BARNET),270.62,05/05/2020
Delivery Units,Adults and Health,Other Agencies - Third Party P,90254264,CAREWATCH (BARNET),292.10,05/05/2020
Delivery Units,Adults and Health,Other Agencies - Third Party P,90254265,CAREWATCH (BARNET),189.02,05/05/2020
Delivery Units,Adults and Health,Other Agencies - Third Party P,90254266,CAREWATCH (BARNET),240.52,05/05/2020
Delivery Units,Adults and Health,Other Agencies - Third Party P,90254267,CAREWATCH (BARNET),51.54,05/05/2020
Delivery Units,Adults and Health,Other Agencies - Third Party P,90254268,CAREWATCH (BARNET),279.18,05/05/2020
Delivery Units,Adults and Health,Other Agencies - Third Party P,90254269,CAREWATCH (BARNET),171.84,05/05/2020
Delivery Units,Adults and Health,Other Agencies - Third Party P,90254270,CAREWATCH (BARNET),206.22,05/05/2020
Delivery Units,Adults and Health,Other Agencies - Third Party P,90254271,CAREWATCH (BARNET),12.89,05/05/2020
Delivery Units,Adults and Health,Other Agencies - Third Party P,90254272,CAREWATCH (BARNET),90.23,05/05/2020
Delivery Units,Adults and Health,Other Agencies - Third Party P,90254275,CAREWATCH (BARNET),240.52,05/05/2020
Delivery Units,Adults and Health,Other Agencies - Third Party P,90254276,CAREWATCH (BARNET),146.06,05/05/2020
Delivery Units,Adults and Health,Other Agencies - Third Party P,90254277,CAREWATCH (BARNET),695.79,05/05/2020
Delivery Units,Adults and Health,Other Agencies - Third Party P,90254278,CAREWATCH (BARNET),124.60,05/05/2020
Delivery Units,Adults and Health,Other Agencies - Third Party P,90254279,CAREWATCH (BARNET),111.70,05/05/2020
Delivery Units,Adults and Health,Other Agencies - Third Party P,90254280,CAREWATCH (BARNET),283.49,05/05/2020
Delivery Units,Adults and Health,Other Agencies - Third Party P,90254281,CAREWATCH (BARNET),167.52,05/05/2020
Delivery Units,Adults and Health,Other Agencies - Third Party P,90254282,CAREWATCH (BARNET),214.78,05/05/2020
Delivery Units,Adults and Health,Other Agencies - Third Party P,90254283,CAREWATCH (BARNET),188.98,05/05/2020
Delivery Units,Adults and Health,Other Agencies - Third Party P,90254284,CAREWATCH (BARNET),90.23,05/05/2020
Delivery Units,Adults and Health,Other Agencies - Third Party P,90254285,CAREWATCH (BARNET),103.08,05/05/2020
Delivery Units,Adults and Health,Other Agencies - Third Party P,90254286,CAREWATCH (BARNET),90.23,05/05/2020
Delivery Units,Adults and Health,Other Agencies - Third Party P,90254287,CAREWATCH (BARNET),34.36,05/05/2020
Delivery Units,Adults and Health,Other Agencies - Third Party P,90254289,CAREWATCH (BARNET),214.79,05/05/2020
Delivery Units,Adults and Health,Other Agencies - Third Party P,90254290,CAREWATCH (BARNET),180.39,05/05/2020
Delivery Units,Adults and Health,Other Agencies - Third Party P,90254291,CAREWATCH (BARNET),270.60,05/05/2020
Delivery Units,Adults and Health,Other Agencies - Third Party P,90254292,CAREWATCH (BARNET),81.64,05/05/2020
Delivery Units,Adults and Health,Other Agencies - Third Party P,90254293,CAREWATCH (BARNET),326.42,05/05/2020
Delivery Units,Adults and Health,Other Agencies - Third Party P,90254294,CAREWATCH (BARNET),214.78,05/05/2020
Delivery Units,Adults and Health,Other Agencies - Third Party P,90254295,CAREWATCH (BARNET),94.49,05/05/2020
Delivery Units,Adults and Health,Other Agencies - Third Party P,90254296,CAREWATCH (BARNET),197.60,05/05/2020
Delivery Units,Adults and Health,Other Agencies - Third Party P,90254299,CAREWATCH (BARNET),107.40,05/05/2020
Delivery Units,Adults and Health,Other Agencies - Third Party P,90254300,CAREWATCH (BARNET),120.26,05/05/2020
Delivery Units,Adults and Health,Other Agencies - Third Party P,90254301,CAREWATCH (BARNET),90.22,05/05/2020
Delivery Units,Adults and Health,Other Agencies - Third Party P,90254302,CAREWATCH (BARNET),197.61,05/05/2020
Delivery Units,Adults and Health,Other Agencies - Third Party P,90254303,CAREWATCH (BARNET),326.45,05/05/2020
Delivery Units,Adults and Health,Other Agencies - Third Party P,90254304,CAREWATCH (BARNET),219.08,05/05/2020
Delivery Units,Adults and Health,Other Agencies - Third Party P,90254305,CAREWATCH (BARNET),120.26,05/05/2020
Delivery Units,Adults and Health,Other Agencies - Third Party P,90254306,CAREWATCH (BARNET),287.80,05/05/2020
Delivery Units,Adults and Health,Other Agencies - Third Party P,90254307,CAREWATCH (BARNET),60.13,05/05/2020
Delivery Units,Adults and Health,Other Agencies - Third Party P,90254308,CAREWATCH (BARNET),438.09,05/05/2020
Delivery Units,Adults and Health,Other Agencies - Third Party P,90254309,CAREWATCH (BARNET),206.23,05/05/2020
Delivery Units,Adults and Health,Other Agencies - Third Party P,90254310,CAREWATCH (BARNET),240.59,05/05/2020
Delivery Units,Adults and Health,Other Agencies - Third Party P,90254311,CAREWATCH (BARNET),266.29,05/05/2020
Delivery Units,Adults and Health,Other Agencies - Third Party P,90254312,CAREWATCH (BARNET),90.23,05/05/2020
Delivery Units,Adults and Health,Other Agencies - Third Party P,90254313,CAREWATCH (BARNET),601.30,05/05/2020
Delivery Units,Adults and Health,Other Agencies - Third Party P,90254314,CAREWATCH (BARNET),150.36,05/05/2020
Delivery Units,Adults and Health,Other Agencies - Third Party P,90254315,CAREWATCH (BARNET),257.73,05/05/2020
Delivery Units,Adults and Health,Other Agencies - Third Party P,90254316,CAREWATCH (BARNET),180.39,05/05/2020
Delivery Units,Adults and Health,Other Agencies - Third Party P,90254317,CAREWATCH (BARNET),253.44,05/05/2020
Delivery Units,Adults and Health,Other Agencies - Third Party P,90254318,CAREWATCH (BARNET),781.90,05/05/2020
Delivery Units,Adults and Health,Other Agencies - Third Party P,90254319,CAREWATCH (BARNET),116.00,05/05/2020
Delivery Units,Adults and Health,Other Agencies - Third Party P,90254321,CAREWATCH (BARNET),180.39,05/05/2020
Delivery Units,Adults and Health,Other Agencies - Third Party P,90254322,CAREWATCH (BARNET),300.72,05/05/2020
Delivery Units,Adults and Health,Other Agencies - Third Party P,90254323,CAREWATCH (BARNET),240.52,05/05/2020
Delivery Units,Adults and Health,Other Agencies - Third Party P,90254324,CAREWATCH (BARNET),270.62,05/05/2020
Delivery Units,Adults and Health,Other Agencies - Third Party P,90254325,CAREWATCH (BARNET),17.18,05/05/2020
Delivery Units,Adults and Health,Other Agencies - Third Party P,90254326,CAREWATCH (BARNET),90.23,05/05/2020
Delivery Units,Adults and Health,Other Agencies - Third Party P,90254327,CAREWATCH (BARNET),244.85,05/05/2020
Delivery Units,Adults and Health,Other Agencies - Third Party P,90254328,CAREWATCH (BARNET),90.23,05/05/2020
Delivery Units,Adults and Health,Other Agencies - Third Party P,90254329,CAREWATCH (BARNET),240.55,05/05/2020
Delivery Units,Adults and Health,Other Agencies - Third Party P,90254330,CAREWATCH (BARNET),120.26,05/05/2020
Delivery Units,Adults and Health,Other Agencies - Third Party P,90254331,CAREWATCH (BARNET),270.62,05/05/2020
Delivery Units,Adults and Health,Other Agencies - Third Party P,90254332,CAREWATCH (BARNET),330.75,05/05/2020
Delivery Units,Adults and Health,Other Agencies - Third Party P,90254333,CAREWATCH (BARNET),330.75,05/05/2020
Delivery Units,Adults and Health,Other Agencies - Third Party P,90254334,CAREWATCH (BARNET),270.62,05/05/2020
Delivery Units,Adults and Health,Other Agencies - Third Party P,90254335,CAREWATCH (BARNET),279.20,05/05/2020
Delivery Units,Adults and Health,Other Agencies - Third Party P,90254336,CAREWATCH (BARNET),274.89,05/05/2020
Delivery Units,Adults and Health,Other Agencies - Third Party P,90254337,CAREWATCH (BARNET),236.23,05/05/2020
Delivery Units,Adults and Health,Other Agencies - Third Party P,90254338,CAREWATCH (BARNET),55.84,05/05/2020
Delivery Units,Adults and Health,Other Agencies - Third Party P,90254339,CAREWATCH (BARNET),77.31,05/05/2020
Delivery Units,Adults and Health,Other Agencies - Third Party P,90254340,CAREWATCH (BARNET),133.18,05/05/2020
Delivery Units,Adults and Health,Other Agencies - Third Party P,90254343,CAREWATCH (BARNET),115.97,05/05/2020
Delivery Units,Adults and Health,Other Agencies - Third Party P,90254344,CAREWATCH (BARNET),240.52,05/05/2020
Delivery Units,Adults and Health,Other Agencies - Third Party P,90254345,CAREWATCH (BARNET),51.54,05/05/2020
Delivery Units,Adults and Health,Other Agencies - Third Party P,90254346,CAREWATCH (BARNET),704.39,05/05/2020
Delivery Units,Adults and Health,Other Agencies - Third Party P,90254347,CAREWATCH (BARNET),103.12,05/05/2020
Delivery Units,Adults and Health,Other Agencies - Third Party P,90254348,CAREWATCH (BARNET),214.75,05/05/2020
Delivery Units,Adults and Health,Other Agencies - Third Party P,90254349,CAREWATCH (BARNET),287.78,05/05/2020
Delivery Units,Adults and Health,Other Agencies - Third Party P,90254350,CAREWATCH (BARNET),188.98,05/05/2020
Delivery Units,Adults and Health,Other Agencies - Third Party P,90254351,CAREWATCH (BARNET),90.23,05/05/2020
Delivery Units,Adults and Health,Other Agencies - Third Party P,90254352,CAREWATCH (BARNET),111.67,05/05/2020
Delivery Units,Adults and Health,Other Agencies - Third Party P,90254353,CAREWATCH (BARNET),85.93,05/05/2020
Delivery Units,Adults and Health,Other Agencies - Third Party P,90254354,CAREWATCH (BARNET),12.89,05/05/2020
Delivery Units,Adults and Health,Other Agencies - Third Party P,90254356,CAREWATCH (BARNET),210.50,05/05/2020
Delivery Units,Adults and Health,Other Agencies - Third Party P,90254357,CAREWATCH (BARNET),193.28,05/05/2020
Delivery Units,Adults and Health,Other Agencies - Third Party P,90254358,CAREWATCH (BARNET),292.08,05/05/2020
Delivery Units,Adults and Health,Other Agencies - Third Party P,90254359,CAREWATCH (BARNET),330.72,05/05/2020
Delivery Units,Adults and Health,Other Agencies - Third Party P,90254360,CAREWATCH (BARNET),103.08,05/05/2020
Delivery Units,Adults and Health,Other Agencies - Third Party P,90254363,CAREWATCH (BARNET),107.40,05/05/2020
Delivery Units,Adults and Health,Other Agencies - Third Party P,90254364,CAREWATCH (BARNET),120.26,05/05/2020
Delivery Units,Adults and Health,Other Agencies - Third Party P,90254365,CAREWATCH (BARNET),55.85,05/05/2020
Delivery Units,Adults and Health,Other Agencies - Third Party P,90254366,CAREWATCH (BARNET),120.26,05/05/2020
Delivery Units,Adults and Health,Other Agencies - Third Party P,90254367,CAREWATCH (BARNET),90.23,05/05/2020
Delivery Units,Adults and Health,Other Agencies - Third Party P,90254368,CAREWATCH (BARNET),107.38,05/05/2020
Delivery Units,Adults and Health,Other Agencies - Third Party P,90254369,CAREWATCH (BARNET),219.10,05/05/2020
Delivery Units,Adults and Health,Other Agencies - Third Party P,90254370,CAREWATCH (BARNET),25.78,05/05/2020
Delivery Units,Adults and Health,Other Agencies - Third Party P,90254371,CAREWATCH (BARNET),120.26,05/05/2020
Delivery Units,Adults and Health,Other Agencies - Third Party P,90254372,CAREWATCH (BARNET),287.80,05/05/2020
Delivery Units,Adults and Health,Other Agencies - Third Party P,90254373,CAREWATCH (BARNET),210.49,05/05/2020
Delivery Units,Adults and Health,Other Agencies - Third Party P,90254374,CAREWATCH (BARNET),60.13,05/05/2020
Delivery Units,Adults and Health,Other Agencies - Third Party P,90254375,CAREWATCH (BARNET),438.09,05/05/2020
Delivery Units,Adults and Health,Other Agencies - Third Party P,90254376,CAREWATCH (BARNET),206.23,05/05/2020
Delivery Units,Adults and Health,Other Agencies - Third Party P,90254377,CAREWATCH (BARNET),240.59,05/05/2020
Delivery Units,Adults and Health,Other Agencies - Third Party P,90254378,CAREWATCH (BARNET),266.29,05/05/2020
Delivery Units,Adults and Health,Other Agencies - Third Party P,90254379,CAREWATCH (BARNET),120.26,05/05/2020
Delivery Units,Adults and Health,Other Agencies - Third Party P,90254380,CAREWATCH (BARNET),240.52,05/05/2020
Delivery Units,Adults and Health,Other Agencies - Third Party P,90254381,CAREWATCH (BARNET),601.30,05/05/2020
Delivery Units,Adults and Health,Other Agencies - Third Party P,90254382,CAREWATCH (BARNET),712.97,05/05/2020
Delivery Units,Adults and Health,Other Agencies - Third Party P,90254383,CAREWATCH (BARNET),257.73,05/05/2020
Delivery Units,Adults and Health,Other Agencies - Third Party P,90254384,CAREWATCH (BARNET),180.39,05/05/2020
Delivery Units,Adults and Health,Other Agencies - Third Party P,90254385,CAREWATCH (BARNET),253.44,05/05/2020
Delivery Units,Adults and Health,Other Agencies - Third Party P,90254386,CAREWATCH (BARNET),781.90,05/05/2020
Delivery Units,Adults and Health,Other Agencies - Third Party P,90254387,CAREWATCH (BARNET),116.00,05/05/2020
Delivery Units,Adults and Health,Other Agencies - Third Party P,90254388,CAREWATCH (BARNET),287.78,05/05/2020
Delivery Units,Adults and Health,Other Agencies - Third Party P,90254389,CAREWATCH (BARNET),240.52,05/05/2020
Delivery Units,Adults and Health,Other Agencies - Third Party P,90254390,CAREWATCH (BARNET),270.62,05/05/2020
Delivery Units,Adults and Health,Other Agencies - Third Party P,90254391,CAREWATCH (BARNET),287.80,05/05/2020
Delivery Units,Adults and Health,Other Agencies - Third Party P,90254392,CAREWATCH (BARNET),137.44,05/05/2020
Delivery Units,Adults and Health,Other Agencies - Third Party P,90254393,CAREWATCH (BARNET),17.18,05/05/2020
Delivery Units,Adults and Health,Other Agencies - Third Party P,90254394,CAREWATCH (BARNET),244.85,05/05/2020
Delivery Units,Adults and Health,Other Agencies - Third Party P,90254396,CAREWATCH (BARNET),107.40,05/05/2020
Delivery Units,Adults and Health,Other Agencies - Third Party P,90254397,CAREWATCH (BARNET),120.26,05/05/2020
Delivery Units,Adults and Health,Other Agencies - Third Party P,90254398,CAREWATCH (BARNET),270.62,05/05/2020
Delivery Units,Adults and Health,Other Agencies - Third Party P,90254399,CAREWATCH (BARNET),120.26,05/05/2020
Delivery Units,Adults and Health,Other Agencies - Third Party P,90254400,CAREWATCH (BARNET),330.75,05/05/2020
Delivery Units,Adults and Health,Other Agencies - Third Party P,90254401,CAREWATCH (BARNET),292.09,05/05/2020
Delivery Units,Adults and Health,Other Agencies - Third Party P,90254402,CAREWATCH (BARNET),296.36,05/05/2020
Delivery Units,Adults and Health,Other Agencies - Third Party P,90254403,CAREWATCH (BARNET),219.05,05/05/2020
Delivery Units,Adults and Health,Other Agencies - Third Party P,90254404,CAREWATCH (BARNET),51.54,05/05/2020
Delivery Units,Adults and Health,Other Agencies - Third Party P,90254405,CAREWATCH (BARNET),103.08,05/05/2020
Delivery Units,Adults and Health,Other Agencies - Third Party P,90254406,CAREWATCH (BARNET),85.93,05/05/2020
Delivery Units,Adults and Health,Other Agencies - Third Party P,90254407,CAREWATCH (BARNET),128.88,05/05/2020
Delivery Units,Adults and Health,Other Agencies - Third Party P,90254410,CAREWATCH (BARNET),51.54,05/05/2020
Delivery Units,Adults and Health,Other Agencies - Third Party P,90254411,CAREWATCH (BARNET),150.36,05/05/2020
Delivery Units,Adults and Health,Other Agencies - Third Party P,90254412,CAREWATCH (BARNET),128.90,05/05/2020
Delivery Units,Adults and Health,Other Agencies - Third Party P,90254414,CAREWATCH (BARNET),231.93,05/05/2020
Delivery Units,Adults and Health,Other Agencies - Third Party P,90254415,CAREWATCH (BARNET),171.80,05/05/2020
Delivery Units,Adults and Health,Other Agencies - Third Party P,90254416,CAREWATCH (BARNET),300.65,05/05/2020
Delivery Units,Adults and Health,Other Agencies - Third Party P,90254417,CAREWATCH (BARNET),188.98,05/05/2020
Delivery Units,Adults and Health,Other Agencies - Third Party P,90254418,CAREWATCH (BARNET),90.23,05/05/2020
Delivery Units,Adults and Health,Other Agencies - Third Party P,90254419,CAREWATCH (BARNET),90.23,05/05/2020
Delivery Units,Adults and Health,Other Agencies - Third Party P,90254420,CAREWATCH (BARNET),34.36,05/05/2020
Delivery Units,Adults and Health,Other Agencies - Third Party P,90254421,CAREWATCH (BARNET),85.93,05/05/2020
Delivery Units,Adults and Health,Other Agencies - Third Party P,90254423,CAREWATCH (BARNET),214.79,05/05/2020
Delivery Units,Adults and Health,Other Agencies - Third Party P,90254424,CAREWATCH (BARNET),184.69,05/05/2020
Delivery Units,Adults and Health,Other Agencies - Third Party P,90254425,CAREWATCH (BARNET),304.97,05/05/2020
Delivery Units,Adults and Health,Other Agencies - Third Party P,90254426,CAREWATCH (BARNET),90.23,05/05/2020
Delivery Units,Adults and Health,Other Agencies - Third Party P,90254427,CAREWATCH (BARNET),330.72,05/05/2020
Delivery Units,Adults and Health,Other Agencies - Third Party P,90254428,CAREWATCH (BARNET),214.78,05/05/2020
Delivery Units,Adults and Health,Other Agencies - Third Party P,90254429,CAREWATCH (BARNET),94.49,05/05/2020
Delivery Units,Adults and Health,Other Agencies - Third Party P,90254430,CAREWATCH (BARNET),103.08,05/05/2020
Delivery Units,Adults and Health,Other Agencies - Third Party P,90254431,CAREWATCH (BARNET),223.38,05/05/2020
Delivery Units,Adults and Health,Other Agencies - Third Party P,90254433,CAREWATCH (BARNET),47.25,05/05/2020
Delivery Units,Adults and Health,Other Agencies - Third Party P,90254434,CAREWATCH (BARNET),90.23,05/05/2020
Delivery Units,Adults and Health,Other Agencies - Third Party P,90254435,CAREWATCH (BARNET),197.61,05/05/2020
Delivery Units,Adults and Health,Other Agencies - Third Party P,90254436,CAREWATCH (BARNET),231.96,05/05/2020
Delivery Units,Adults and Health,Other Agencies - Third Party P,90254437,CAREWATCH (BARNET),12.89,05/05/2020
Delivery Units,Adults and Health,Other Agencies - Third Party P,90254441,CAREWATCH (BARNET),184.70,05/05/2020
Delivery Units,Adults and Health,Other Agencies - Third Party P,90254706,CAREWATCH (BARNET),120.26,11/05/2020
Delivery Units,Adults and Health,Other Agencies - Third Party P,90254707,CAREWATCH (BARNET),287.80,11/05/2020
Delivery Units,Adults and Health,Other Agencies - Third Party P,90254708,CAREWATCH (BARNET),283.47,11/05/2020
Delivery Units,Adults and Health,Other Agencies - Third Party P,90254709,CAREWATCH (BARNET),210.49,11/05/2020
Delivery Units,Adults and Health,Other Agencies - Third Party P,90254710,CAREWATCH (BARNET),60.13,11/05/2020
Delivery Units,Adults and Health,Other Agencies - Third Party P,90254711,CAREWATCH (BARNET),438.09,11/05/2020
Delivery Units,Adults and Health,Other Agencies - Third Party P,90254712,CAREWATCH (BARNET),206.23,11/05/2020
Delivery Units,Adults and Health,Other Agencies - Third Party P,90254713,CAREWATCH (BARNET),240.59,11/05/2020
Delivery Units,Adults and Health,Other Agencies - Third Party P,90254714,CAREWATCH (BARNET),150.36,11/05/2020
Delivery Units,Adults and Health,Other Agencies - Third Party P,90254715,CAREWATCH (BARNET),120.26,11/05/2020
Delivery Units,Adults and Health,Other Agencies - Third Party P,90254716,CAREWATCH (BARNET),240.52,11/05/2020
Delivery Units,Adults and Health,Other Agencies - Third Party P,90254717,CAREWATCH (BARNET),601.30,11/05/2020
Delivery Units,Adults and Health,Other Agencies - Third Party P,90254718,CAREWATCH (BARNET),257.73,11/05/2020
Delivery Units,Adults and Health,Other Agencies - Third Party P,90254719,CAREWATCH (BARNET),180.39,11/05/2020
Delivery Units,Adults and Health,Other Agencies - Third Party P,90254720,CAREWATCH (BARNET),253.44,11/05/2020
Delivery Units,Adults and Health,Other Agencies - Third Party P,90254721,CAREWATCH (BARNET),781.90,11/05/2020
Delivery Units,Adults and Health,Other Agencies - Third Party P,90254722,CAREWATCH (BARNET),116.00,11/05/2020
Delivery Units,Adults and Health,Other Agencies - Third Party P,90254724,CAREWATCH (BARNET),300.65,11/05/2020
Delivery Units,Adults and Health,Other Agencies - Third Party P,90254725,CAREWATCH (BARNET),287.78,11/05/2020
Delivery Units,Adults and Health,Other Agencies - Third Party P,90254726,CAREWATCH (BARNET),300.72,11/05/2020
Delivery Units,Adults and Health,Other Agencies - Third Party P,90254727,CAREWATCH (BARNET),240.52,11/05/2020
Delivery Units,Adults and Health,Other Agencies - Third Party P,90254728,CAREWATCH (BARNET),270.62,11/05/2020
Delivery Units,Adults and Health,Other Agencies - Third Party P,90254729,CAREWATCH (BARNET),287.80,11/05/2020
Delivery Units,Adults and Health,Other Agencies - Third Party P,90254730,CAREWATCH (BARNET),137.44,11/05/2020
Delivery Units,Adults and Health,Other Agencies - Third Party P,90254731,CAREWATCH (BARNET),17.18,11/05/2020
Delivery Units,Adults and Health,Other Agencies - Third Party P,90254732,CAREWATCH (BARNET),244.85,11/05/2020
Delivery Units,Adults and Health,Other Agencies - Third Party P,90254733,CAREWATCH (BARNET),120.26,11/05/2020
Delivery Units,Adults and Health,Other Agencies - Third Party P,90254734,CAREWATCH (BARNET),64.45,11/05/2020
Delivery Units,Adults and Health,Other Agencies - Third Party P,90254735,CAREWATCH (BARNET),270.62,11/05/2020
Delivery Units,Adults and Health,Other Agencies - Third Party P,90254736,CAREWATCH (BARNET),330.75,11/05/2020
Delivery Units,Adults and Health,Other Agencies - Third Party P,90254738,CAREWATCH (BARNET),300.69,11/05/2020
Delivery Units,Adults and Health,Other Agencies - Third Party P,90254739,CAREWATCH (BARNET),292.07,11/05/2020
Delivery Units,Adults and Health,Other Agencies - Third Party P,90254740,CAREWATCH (BARNET),223.34,11/05/2020
Delivery Units,Adults and Health,Other Agencies - Third Party P,90254741,CAREWATCH (BARNET),51.54,11/05/2020
Delivery Units,Adults and Health,Other Agencies - Third Party P,90254743,CAREWATCH (BARNET),137.45,11/05/2020
Delivery Units,Adults and Health,Other Agencies - Third Party P,90254744,CAREWATCH (BARNET),90.22,11/05/2020
Delivery Units,Adults and Health,Other Agencies - Third Party P,90254747,CAREWATCH (BARNET),51.54,11/05/2020
Delivery Units,Adults and Health,Other Agencies - Third Party P,90254748,CAREWATCH (BARNET),150.36,11/05/2020
Delivery Units,Adults and Health,Other Agencies - Third Party P,90254749,CAREWATCH (BARNET),712.97,11/05/2020
Delivery Units,Adults and Health,Other Agencies - Third Party P,90254750,CAREWATCH (BARNET),128.90,11/05/2020
Delivery Units,Adults and Health,Other Agencies - Third Party P,90254751,CAREWATCH (BARNET),176.10,11/05/2020
Delivery Units,Adults and Health,Other Agencies - Third Party P,90254752,CAREWATCH (BARNET),188.98,11/05/2020
Delivery Units,Adults and Health,Other Agencies - Third Party P,90254753,CAREWATCH (BARNET),90.23,11/05/2020
Delivery Units,Adults and Health,Other Agencies - Third Party P,90254754,CAREWATCH (BARNET),90.23,11/05/2020
Delivery Units,Adults and Health,Other Agencies - Third Party P,90254755,CAREWATCH (BARNET),25.78,11/05/2020
Delivery Units,Adults and Health,Other Agencies - Third Party P,90254757,CAREWATCH (BARNET),223.38,11/05/2020
Delivery Units,Adults and Health,Other Agencies - Third Party P,90254758,CAREWATCH (BARNET),188.99,11/05/2020
Delivery Units,Adults and Health,Other Agencies - Third Party P,90254759,CAREWATCH (BARNET),279.19,11/05/2020
Delivery Units,Adults and Health,Other Agencies - Third Party P,90254760,CAREWATCH (BARNET),73.04,11/05/2020
Delivery Units,Adults and Health,Other Agencies - Third Party P,90254761,CAREWATCH (BARNET),330.72,11/05/2020
Delivery Units,Adults and Health,Other Agencies - Third Party P,90254762,CAREWATCH (BARNET),167.53,11/05/2020
Delivery Units,Adults and Health,Other Agencies - Third Party P,90254763,CAREWATCH (BARNET),94.49,11/05/2020
Delivery Units,Adults and Health,Other Agencies - Third Party P,90254764,CAREWATCH (BARNET),17.18,11/05/2020
Delivery Units,Adults and Health,Other Agencies - Third Party P,90254765,CAREWATCH (BARNET),193.28,11/05/2020
Delivery Units,Adults and Health,Other Agencies - Third Party P,90254768,CAREWATCH (BARNET),120.26,11/05/2020
Delivery Units,Adults and Health,Other Agencies - Third Party P,90254769,CAREWATCH (BARNET),90.23,11/05/2020
Delivery Units,Adults and Health,Other Agencies - Third Party P,90254770,CAREWATCH (BARNET),287.80,11/05/2020
Delivery Units,Adults and Health,Other Agencies - Third Party P,90254771,CAREWATCH (BARNET),210.51,11/05/2020
Delivery Units,Adults and Health,Other Agencies - Third Party P,90254772,CAREWATCH (BARNET),25.78,11/05/2020
Delivery Units,Adults and Health,Other Agencies - Third Party P,90254775,CAREWATCH (BARNET),287.80,11/05/2020
Delivery Units,Adults and Health,Other Agencies - Third Party P,90254776,CAREWATCH (BARNET),283.47,11/05/2020
Delivery Units,Adults and Health,Other Agencies - Third Party P,90254777,CAREWATCH (BARNET),210.49,11/05/2020
Delivery Units,Adults and Health,Other Agencies - Third Party P,90254778,CAREWATCH (BARNET),60.13,11/05/2020
Delivery Units,Adults and Health,Other Agencies - Third Party P,90254779,CAREWATCH (BARNET),438.09,11/05/2020
Delivery Units,Adults and Health,Other Agencies - Third Party P,90254780,CAREWATCH (BARNET),240.59,11/05/2020
Delivery Units,Adults and Health,Other Agencies - Third Party P,90254782,CAREWATCH (BARNET),240.52,11/05/2020
Delivery Units,Adults and Health,Other Agencies - Third Party P,90254783,CAREWATCH (BARNET),601.30,11/05/2020
Delivery Units,Adults and Health,Other Agencies - Third Party P,90254784,CAREWATCH (BARNET),51.56,11/05/2020
Delivery Units,Adults and Health,Other Agencies - Third Party P,90254785,CAREWATCH (BARNET),712.97,11/05/2020
Delivery Units,Adults and Health,Other Agencies - Third Party P,90254786,CAREWATCH (BARNET),257.73,11/05/2020
Delivery Units,Adults and Health,Other Agencies - Third Party P,90254787,CAREWATCH (BARNET),180.39,11/05/2020
Delivery Units,Adults and Health,Other Agencies - Third Party P,90254788,CAREWATCH (BARNET),253.44,11/05/2020
Delivery Units,Adults and Health,Other Agencies - Third Party P,90254789,CAREWATCH (BARNET),781.90,11/05/2020
Delivery Units,Adults and Health,Other Agencies - Third Party P,90254790,CAREWATCH (BARNET),116.00,11/05/2020
Delivery Units,Adults and Health,Other Agencies - Third Party P,90254792,CAREWATCH (BARNET),300.65,11/05/2020
Delivery Units,Adults and Health,Other Agencies - Third Party P,90254793,CAREWATCH (BARNET),287.78,11/05/2020
Delivery Units,Adults and Health,Other Agencies - Third Party P,90254794,CAREWATCH (BARNET),300.72,11/05/2020
Delivery Units,Adults and Health,Other Agencies - Third Party P,90254795,CAREWATCH (BARNET),240.52,11/05/2020
Delivery Units,Adults and Health,Other Agencies - Third Party P,90254796,CAREWATCH (BARNET),270.62,11/05/2020
Delivery Units,Adults and Health,Other Agencies - Third Party P,90254797,CAREWATCH (BARNET),287.80,11/05/2020
Delivery Units,Adults and Health,Other Agencies - Third Party P,90254798,CAREWATCH (BARNET),137.44,11/05/2020
Delivery Units,Adults and Health,Other Agencies - Third Party P,90254799,CAREWATCH (BARNET),17.18,11/05/2020
Delivery Units,Adults and Health,Other Agencies - Third Party P,90254801,CAREWATCH (BARNET),270.62,11/05/2020
Delivery Units,Adults and Health,Other Agencies - Third Party P,90254802,CAREWATCH (BARNET),330.75,11/05/2020
Delivery Units,Adults and Health,Other Agencies - Third Party P,90254803,CAREWATCH (BARNET),330.75,11/05/2020
Delivery Units,Adults and Health,Other Agencies - Third Party P,90254806,CAREWATCH (BARNET),296.38,11/05/2020
Delivery Units,Adults and Health,Other Agencies - Third Party P,90254807,CAREWATCH (BARNET),141.77,11/05/2020
Delivery Units,Adults and Health,Other Agencies - Third Party P,90254808,CAREWATCH (BARNET),296.36,11/05/2020
Delivery Units,Adults and Health,Other Agencies - Third Party P,90254809,CAREWATCH (BARNET),240.52,11/05/2020
Delivery Units,Adults and Health,Other Agencies - Third Party P,90254810,CAREWATCH (BARNET),55.84,11/05/2020
Delivery Units,Adults and Health,Other Agencies - Third Party P,90254811,CAREWATCH (BARNET),206.23,11/05/2020
Delivery Units,Adults and Health,Other Agencies - Third Party P,90254812,CAREWATCH (BARNET),85.93,11/05/2020
Delivery Units,Adults and Health,Other Agencies - Third Party P,90254813,CAREWATCH (BARNET),146.06,11/05/2020
Delivery Units,Adults and Health,Other Agencies - Third Party P,90254816,CAREWATCH (BARNET),115.97,11/05/2020
Delivery Units,Adults and Health,Other Agencies - Third Party P,90254817,CAREWATCH (BARNET),150.36,11/05/2020
Delivery Units,Adults and Health,Other Agencies - Third Party P,90254818,CAREWATCH (BARNET),128.90,11/05/2020
Delivery Units,Adults and Health,Other Agencies - Third Party P,90254819,CAREWATCH (BARNET),167.52,11/05/2020
Delivery Units,Adults and Health,Other Agencies - Third Party P,90254820,CAREWATCH (BARNET),193.28,11/05/2020
Delivery Units,Adults and Health,Other Agencies - Third Party P,90254821,CAREWATCH (BARNET),90.23,11/05/2020
Delivery Units,Adults and Health,Other Agencies - Third Party P,90254822,CAREWATCH (BARNET),81.63,11/05/2020
Delivery Units,Adults and Health,Other Agencies - Third Party P,90254824,CAREWATCH (BARNET),214.79,11/05/2020
Delivery Units,Adults and Health,Other Agencies - Third Party P,90254825,CAREWATCH (BARNET),188.98,11/05/2020
Delivery Units,Adults and Health,Other Agencies - Third Party P,90254826,CAREWATCH (BARNET),292.09,11/05/2020
Delivery Units,Adults and Health,Other Agencies - Third Party P,90254827,CAREWATCH (BARNET),236.27,11/05/2020
Delivery Units,Adults and Health,Other Agencies - Third Party P,90254828,CAREWATCH (BARNET),77.34,11/05/2020
Delivery Units,Adults and Health,Other Agencies - Third Party P,90254829,CAREWATCH (BARNET),317.83,11/05/2020
Delivery Units,Adults and Health,Other Agencies - Third Party P,90254830,CAREWATCH (BARNET),214.79,11/05/2020
Delivery Units,Adults and Health,Other Agencies - Third Party P,90254831,CAREWATCH (BARNET),103.08,11/05/2020
Delivery Units,Adults and Health,Other Agencies - Third Party P,90254833,CAREWATCH (BARNET),38.66,11/05/2020
Delivery Units,Adults and Health,Other Agencies - Third Party P,90254834,CAREWATCH (BARNET),51.56,11/05/2020
Delivery Units,Adults and Health,Other Agencies - Third Party P,90254835,CAREWATCH (BARNET),120.26,11/05/2020
Delivery Units,Adults and Health,Other Agencies - Third Party P,90254836,CAREWATCH (BARNET),90.23,11/05/2020
Delivery Units,Adults and Health,Other Agencies - Third Party P,90254837,CAREWATCH (BARNET),210.50,11/05/2020
Delivery Units,Adults and Health,Other Agencies - Third Party P,90254838,CAREWATCH (BARNET),30.07,11/05/2020
Delivery Units,Adults and Health,Other Agencies - Third Party P,90254840,CAREWATCH (BARNET),210.49,11/05/2020
Delivery Units,Adults and Health,Other Agencies - Third Party P,90254841,CAREWATCH (BARNET),287.80,11/05/2020
Delivery Units,Adults and Health,Other Agencies - Third Party P,90254842,CAREWATCH (BARNET),283.47,11/05/2020
Delivery Units,Adults and Health,Other Agencies - Third Party P,90254843,CAREWATCH (BARNET),210.49,11/05/2020
Delivery Units,Adults and Health,Other Agencies - Third Party P,90254844,CAREWATCH (BARNET),60.13,11/05/2020
Delivery Units,Adults and Health,Other Agencies - Third Party P,90254845,CAREWATCH (BARNET),438.09,11/05/2020
Delivery Units,Adults and Health,Other Agencies - Third Party P,90254846,CAREWATCH (BARNET),206.23,11/05/2020
Delivery Units,Adults and Health,Other Agencies - Third Party P,90254847,CAREWATCH (BARNET),240.59,11/05/2020
Delivery Units,Adults and Health,Other Agencies - Third Party P,90254849,CAREWATCH (BARNET),150.36,11/05/2020
Delivery Units,Adults and Health,Other Agencies - Third Party P,90254850,CAREWATCH (BARNET),601.30,11/05/2020
Delivery Units,Adults and Health,Other Agencies - Third Party P,90254851,CAREWATCH (BARNET),150.36,11/05/2020
Delivery Units,Adults and Health,Other Agencies - Third Party P,90254852,CAREWATCH (BARNET),712.97,11/05/2020
Delivery Units,Adults and Health,Other Agencies - Third Party P,90254853,CAREWATCH (BARNET),257.73,11/05/2020
Delivery Units,Adults and Health,Other Agencies - Third Party P,90254854,CAREWATCH (BARNET),180.39,11/05/2020
Delivery Units,Adults and Health,Other Agencies - Third Party P,90254855,CAREWATCH (BARNET),781.90,11/05/2020
Delivery Units,Adults and Health,Other Agencies - Third Party P,90254856,CAREWATCH (BARNET),116.00,11/05/2020
Delivery Units,Adults and Health,Other Agencies - Third Party P,90254857,CAREWATCH (BARNET),287.78,11/05/2020
Delivery Units,Adults and Health,Other Agencies - Third Party P,90254858,CAREWATCH (BARNET),300.72,11/05/2020
Delivery Units,Adults and Health,Other Agencies - Third Party P,90254859,CAREWATCH (BARNET),240.52,11/05/2020
Delivery Units,Adults and Health,Other Agencies - Third Party P,90254860,CAREWATCH (BARNET),270.62,11/05/2020
Delivery Units,Adults and Health,Other Agencies - Third Party P,90254861,CAREWATCH (BARNET),287.80,11/05/2020
Delivery Units,Adults and Health,Other Agencies - Third Party P,90254862,CAREWATCH (BARNET),17.18,11/05/2020
Delivery Units,Adults and Health,Other Agencies - Third Party P,90254863,CAREWATCH (BARNET),244.85,11/05/2020
Delivery Units,Adults and Health,Other Agencies - Third Party P,90254864,CAREWATCH (BARNET),90.23,11/05/2020
Delivery Units,Adults and Health,Other Agencies - Third Party P,90254865,CAREWATCH (BARNET),64.45,11/05/2020
Delivery Units,Adults and Health,Other Agencies - Third Party P,90254866,CAREWATCH (BARNET),270.62,11/05/2020
Delivery Units,Adults and Health,Other Agencies - Third Party P,90254867,CAREWATCH (BARNET),90.23,11/05/2020
Delivery Units,Adults and Health,Other Agencies - Third Party P,90254870,CAREWATCH (BARNET),257.74,11/05/2020
Delivery Units,Adults and Health,Other Agencies - Third Party P,90254871,CAREWATCH (BARNET),292.07,11/05/2020
Delivery Units,Adults and Health,Other Agencies - Third Party P,90254872,CAREWATCH (BARNET),240.52,11/05/2020
Delivery Units,Adults and Health,Other Agencies - Third Party P,90254873,CAREWATCH (BARNET),51.54,11/05/2020
Delivery Units,Adults and Health,Other Agencies - Third Party P,90254874,CAREWATCH (BARNET),90.22,11/05/2020
Delivery Units,Adults and Health,Other Agencies - Third Party P,90254877,CAREWATCH (BARNET),120.26,11/05/2020
Delivery Units,Adults and Health,Other Agencies - Third Party P,90254878,CAREWATCH (BARNET),193.28,11/05/2020
Delivery Units,Adults and Health,Other Agencies - Third Party P,90254879,CAREWATCH (BARNET),51.54,11/05/2020
Delivery Units,Adults and Health,Other Agencies - Third Party P,90254880,CAREWATCH (BARNET),68.72,11/05/2020
Delivery Units,Adults and Health,Other Agencies - Third Party P,90254881,CAREWATCH (BARNET),133.19,11/05/2020
Delivery Units,Adults and Health,Other Agencies - Third Party P,90254883,CAREWATCH (BARNET),292.07,11/05/2020
Delivery Units,Adults and Health,Other Agencies - Third Party P,90254884,CAREWATCH (BARNET),180.39,11/05/2020
Delivery Units,Adults and Health,Other Agencies - Third Party P,90254885,CAREWATCH (BARNET),193.28,11/05/2020
Delivery Units,Adults and Health,Other Agencies - Third Party P,90254886,CAREWATCH (BARNET),90.23,11/05/2020
Delivery Units,Adults and Health,Other Agencies - Third Party P,90254888,CAREWATCH (BARNET),120.26,11/05/2020
Delivery Units,Adults and Health,Other Agencies - Third Party P,90254889,CAREWATCH (BARNET),85.93,11/05/2020
Delivery Units,Adults and Health,Other Agencies - Third Party P,90254891,CAREWATCH (BARNET),206.19,11/05/2020
Delivery Units,Adults and Health,Other Agencies - Third Party P,90254892,CAREWATCH (BARNET),184.69,11/05/2020
Delivery Units,Adults and Health,Other Agencies - Third Party P,90254893,CAREWATCH (BARNET),287.79,11/05/2020
Delivery Units,Adults and Health,Other Agencies - Third Party P,90254894,CAREWATCH (BARNET),330.72,11/05/2020
Delivery Units,Adults and Health,Other Agencies - Third Party P,90254895,CAREWATCH (BARNET),210.50,11/05/2020
Delivery Units,Adults and Health,Other Agencies - Third Party P,90254896,CAREWATCH (BARNET),103.08,11/05/2020
Delivery Units,Adults and Health,Other Agencies - Third Party P,90254898,CAREWATCH (BARNET),115.97,11/05/2020
Delivery Units,Adults and Health,Other Agencies - Third Party P,90254899,CAREWATCH (BARNET),313.55,11/05/2020
Delivery Units,Adults and Health,Other Agencies - Third Party P,90254900,CAREWATCH (BARNET),189.02,11/05/2020
Delivery Units,Adults and Health,Other Agencies - Third Party P,90254901,CAREWATCH (BARNET),206.18,11/05/2020
Delivery Units,Adults and Health,Other Agencies - Third Party P,90254902,CAREWATCH (BARNET),304.96,11/05/2020
Delivery Units,Adults and Health,Other Agencies - Third Party P,90254903,CAREWATCH (BARNET),30.07,11/05/2020
Delivery Units,Adults and Health,Other Agencies - Third Party P,90254905,CAREWATCH (BARNET),326.43,11/05/2020
Delivery Units,Adults and Health,Other Agencies - Third Party P,90254906,CAREWATCH (BARNET),528.29,11/05/2020
Delivery Units,Adults and Health,Other Agencies - Third Party P,90254907,CAREWATCH (BARNET),231.99,11/05/2020
Delivery Units,Adults and Health,Other Agencies - Third Party P,90254909,CAREWATCH (BARNET),137.44,11/05/2020
Delivery Units,Adults and Health,Other Agencies - Third Party P,90254910,CAREWATCH (BARNET),274.88,11/05/2020
Delivery Units,Adults and Health,Other Agencies - Third Party P,90254911,CAREWATCH (BARNET),51.56,11/05/2020
Delivery Units,Adults and Health,Other Agencies - Third Party P,90254912,CAREWATCH (BARNET),171.84,11/05/2020
Delivery Units,Adults and Health,Other Agencies - Third Party P,90254913,CAREWATCH (BARNET),841.83,11/05/2020
Delivery Units,Adults and Health,Other Agencies - Third Party P,90254914,CAREWATCH (BARNET),289.95,11/05/2020
Delivery Units,Adults and Health,Other Agencies - Third Party P,90254915,CAREWATCH (BARNET),206.17,11/05/2020
Delivery Units,Adults and Health,Other Agencies - Third Party P,90254916,CAREWATCH (BARNET),893.54,11/05/2020
Delivery Units,Adults and Health,Other Agencies - Third Party P,90254917,CAREWATCH (BARNET),133.18,11/05/2020
Delivery Units,Adults and Health,Other Agencies - Third Party P,90254919,CAREWATCH (BARNET),343.61,11/05/2020
Delivery Units,Adults and Health,Other Agencies - Third Party P,90254920,CAREWATCH (BARNET),137.45,11/05/2020
Delivery Units,Adults and Health,Other Agencies - Third Party P,90254921,CAREWATCH (BARNET),309.28,11/05/2020
Delivery Units,Adults and Health,Other Agencies - Third Party P,90254922,CAREWATCH (BARNET),17.18,11/05/2020
Delivery Units,Adults and Health,Other Agencies - Third Party P,90254923,CAREWATCH (BARNET),283.52,11/05/2020
Delivery Units,Adults and Health,Other Agencies - Third Party P,90254924,CAREWATCH (BARNET),309.28,11/05/2020
Delivery Units,Adults and Health,Other Agencies - Third Party P,90254925,CAREWATCH (BARNET),343.66,11/05/2020
Delivery Units,Adults and Health,Other Agencies - Third Party P,90254927,CAREWATCH (BARNET),309.28,11/05/2020
Delivery Units,Adults and Health,Other Agencies - Third Party P,90254928,CAREWATCH (BARNET),296.41,11/05/2020
Delivery Units,Adults and Health,Other Agencies - Third Party P,90254929,CAREWATCH (BARNET),184.72,11/05/2020
Delivery Units,Adults and Health,Other Agencies - Third Party P,90254930,CAREWATCH (BARNET),330.77,11/05/2020
Delivery Units,Adults and Health,Other Agencies - Third Party P,90254931,CAREWATCH (BARNET),335.05,11/05/2020
Delivery Units,Adults and Health,Other Agencies - Third Party P,90254932,CAREWATCH (BARNET),146.03,11/05/2020
Delivery Units,Adults and Health,Other Agencies - Third Party P,90254933,CAREWATCH (BARNET),47.25,11/05/2020
Delivery Units,Adults and Health,Other Agencies - Third Party P,90254934,CAREWATCH (BARNET),206.19,11/05/2020
Delivery Units,Adults and Health,Other Agencies - Third Party P,90254935,CAREWATCH (BARNET),60.14,11/05/2020
Delivery Units,Adults and Health,Other Agencies - Third Party P,90254936,CAREWATCH (BARNET),240.55,11/05/2020
Delivery Units,Adults and Health,Other Agencies - Third Party P,90254937,CAREWATCH (BARNET),85.92,11/05/2020
Delivery Units,Adults and Health,Other Agencies - Third Party P,90254938,CAREWATCH (BARNET),133.17,11/05/2020
Delivery Units,Adults and Health,Other Agencies - Third Party P,90254941,CAREWATCH (BARNET),627.08,11/05/2020
Delivery Units,Adults and Health,Other Agencies - Third Party P,90254942,CAREWATCH (BARNET),73.04,11/05/2020
Delivery Units,Adults and Health,Other Agencies - Third Party P,90254943,CAREWATCH (BARNET),300.67,11/05/2020
Delivery Units,Adults and Health,Other Agencies - Third Party P,90254944,CAREWATCH (BARNET),133.15,11/05/2020
Delivery Units,Adults and Health,Other Agencies - Third Party P,90254945,CAREWATCH (BARNET),236.22,11/05/2020
Delivery Units,Adults and Health,Other Agencies - Third Party P,90254946,CAREWATCH (BARNET),330.76,11/05/2020
Delivery Units,Adults and Health,Other Agencies - Third Party P,90254947,CAREWATCH (BARNET),137.44,11/05/2020
Delivery Units,Adults and Health,Other Agencies - Third Party P,90254948,CAREWATCH (BARNET),103.11,11/05/2020
Delivery Units,Adults and Health,Other Agencies - Third Party P,90254950,CAREWATCH (BARNET),150.33,11/05/2020
Delivery Units,Adults and Health,Other Agencies - Third Party P,90254951,CAREWATCH (BARNET),103.11,11/05/2020
Delivery Units,Adults and Health,Other Agencies - Third Party P,90254953,CAREWATCH (BARNET),231.98,11/05/2020
Delivery Units,Adults and Health,Other Agencies - Third Party P,90254954,CAREWATCH (BARNET),214.76,11/05/2020
Delivery Units,Adults and Health,Other Agencies - Third Party P,90254955,CAREWATCH (BARNET),317.88,11/05/2020
Delivery Units,Adults and Health,Other Agencies - Third Party P,90254956,CAREWATCH (BARNET),51.55,11/05/2020
Delivery Units,Adults and Health,Other Agencies - Third Party P,90254957,CAREWATCH (BARNET),373.66,11/05/2020
Delivery Units,Adults and Health,Other Agencies - Third Party P,90254958,CAREWATCH (BARNET),268.47,11/05/2020
Delivery Units,Adults and Health,Other Agencies - Third Party P,90254959,CAREWATCH (BARNET),17.18,11/05/2020
Delivery Units,Adults and Health,Other Agencies - Third Party P,90254961,CAREWATCH (BARNET),77.33,11/05/2020
Delivery Units,Adults and Health,Other Agencies - Third Party P,90254962,CAREWATCH (BARNET),137.44,11/05/2020
Delivery Units,Adults and Health,Other Agencies - Third Party P,90254963,CAREWATCH (BARNET),38.67,11/05/2020
Delivery Units,Adults and Health,Other Agencies - Third Party P,90254964,CAREWATCH (BARNET),255.58,11/05/2020
Delivery Units,Adults and Health,Other Agencies - Third Party P,90254965,CAREWATCH (BARNET),219.08,11/05/2020
Delivery Units,Adults and Health,Other Agencies - Third Party P,90254966,CAREWATCH (BARNET),354.38,11/05/2020
Delivery Units,Adults and Health,Other Agencies - Third Party P,90254967,CAREWATCH (BARNET),38.66,11/05/2020
Delivery Units,Adults and Health,Other Agencies - Third Party P,90255569,CAREWATCH (BARNET),225.53,13/05/2020
Delivery Units,Adults and Health,Other Agencies - Third Party P,90255570,CAREWATCH (BARNET),64.43,13/05/2020
Delivery Units,Adults and Health,Other Agencies - Third Party P,90255571,CAREWATCH (BARNET),502.52,13/05/2020
Delivery Units,Adults and Health,Other Agencies - Third Party P,90255572,CAREWATCH (BARNET),219.11,13/05/2020
Delivery Units,Adults and Health,Other Agencies - Third Party P,90255574,CAREWATCH (BARNET),161.10,13/05/2020
Delivery Units,Adults and Health,Other Agencies - Third Party P,90255575,CAREWATCH (BARNET),257.70,13/05/2020
Delivery Units,Adults and Health,Other Agencies - Third Party P,90255576,CAREWATCH (BARNET),51.56,13/05/2020
Delivery Units,Adults and Health,Other Agencies - Third Party P,90255577,CAREWATCH (BARNET),777.40,13/05/2020
Delivery Units,Adults and Health,Other Agencies - Third Party P,90255578,CAREWATCH (BARNET),270.62,13/05/2020
Delivery Units,Adults and Health,Other Agencies - Third Party P,90255579,CAREWATCH (BARNET),193.28,13/05/2020
Delivery Units,Adults and Health,Other Agencies - Third Party P,90255580,CAREWATCH (BARNET),272.77,13/05/2020
Delivery Units,Adults and Health,Other Agencies - Third Party P,90255581,CAREWATCH (BARNET),837.72,13/05/2020
Delivery Units,Adults and Health,Other Agencies - Third Party P,90255582,CAREWATCH (BARNET),126.74,13/05/2020
Delivery Units,Adults and Health,Other Agencies - Third Party P,90255584,CAREWATCH (BARNET),322.13,13/05/2020
Delivery Units,Adults and Health,Other Agencies - Third Party P,90255585,CAREWATCH (BARNET),289.95,13/05/2020
Delivery Units,Adults and Health,Other Agencies - Third Party P,90255586,CAREWATCH (BARNET),17.18,13/05/2020
Delivery Units,Adults and Health,Other Agencies - Third Party P,90255587,CAREWATCH (BARNET),268.48,13/05/2020
Delivery Units,Adults and Health,Other Agencies - Third Party P,90255589,CAREWATCH (BARNET),289.95,13/05/2020
Delivery Units,Adults and Health,Other Agencies - Third Party P,90255590,CAREWATCH (BARNET),96.67,13/05/2020
Delivery Units,Adults and Health,Other Agencies - Third Party P,90255591,CAREWATCH (BARNET),354.38,13/05/2020
Delivery Units,Adults and Health,Other Agencies - Third Party P,90255592,CAREWATCH (BARNET),322.19,13/05/2020
Delivery Units,Adults and Health,Other Agencies - Third Party P,90255595,CAREWATCH (BARNET),289.95,13/05/2020
Delivery Units,Adults and Health,Other Agencies - Third Party P,90255596,CAREWATCH (BARNET),330.75,13/05/2020
Delivery Units,Adults and Health,Other Agencies - Third Party P,90255597,CAREWATCH (BARNET),307.13,13/05/2020
Delivery Units,Adults and Health,Other Agencies - Third Party P,90255598,CAREWATCH (BARNET),309.27,13/05/2020
Delivery Units,Adults and Health,Other Agencies - Third Party P,90255599,CAREWATCH (BARNET),188.98,13/05/2020
Delivery Units,Adults and Health,Other Agencies - Third Party P,90255600,CAREWATCH (BARNET),42.95,13/05/2020
Delivery Units,Adults and Health,Other Agencies - Third Party P,90255601,CAREWATCH (BARNET),298.52,13/05/2020
Delivery Units,Adults and Health,Other Agencies - Third Party P,90255602,CAREWATCH (BARNET),47.26,13/05/2020
Delivery Units,Adults and Health,Other Agencies - Third Party P,90255605,CAREWATCH (BARNET),103.08,13/05/2020
Delivery Units,Adults and Health,Other Agencies - Third Party P,90255606,CAREWATCH (BARNET),642.15,13/05/2020
Delivery Units,Adults and Health,Other Agencies - Third Party P,90255607,CAREWATCH (BARNET),161.10,13/05/2020
Delivery Units,Adults and Health,Other Agencies - Third Party P,90255608,CAREWATCH (BARNET),131.04,13/05/2020
Delivery Units,Adults and Health,Other Agencies - Third Party P,90255609,CAREWATCH (BARNET),279.20,13/05/2020
Delivery Units,Adults and Health,Other Agencies - Third Party P,90255610,CAREWATCH (BARNET),154.62,13/05/2020
Delivery Units,Adults and Health,Other Agencies - Third Party P,90255611,CAREWATCH (BARNET),313.54,13/05/2020
Delivery Units,Adults and Health,Other Agencies - Third Party P,90255612,CAREWATCH (BARNET),242.70,13/05/2020
Delivery Units,Adults and Health,Other Agencies - Third Party P,90255613,CAREWATCH (BARNET),309.28,13/05/2020
Delivery Units,Adults and Health,Other Agencies - Third Party P,90255614,CAREWATCH (BARNET),206.16,13/05/2020
Delivery Units,Adults and Health,Other Agencies - Third Party P,90255615,CAREWATCH (BARNET),96.67,13/05/2020
Delivery Units,Adults and Health,Other Agencies - Third Party P,90255617,CAREWATCH (BARNET),141.74,13/05/2020
Delivery Units,Adults and Health,Other Agencies - Third Party P,90255618,CAREWATCH (BARNET),96.67,13/05/2020
Delivery Units,Adults and Health,Other Agencies - Third Party P,90255619,CAREWATCH (BARNET),17.18,13/05/2020
Delivery Units,Adults and Health,Other Agencies - Third Party P,90255620,CAREWATCH (BARNET),229.82,13/05/2020
Delivery Units,Adults and Health,Other Agencies - Third Party P,90255621,CAREWATCH (BARNET),199.72,13/05/2020
Delivery Units,Adults and Health,Other Agencies - Third Party P,90255622,CAREWATCH (BARNET),300.68,13/05/2020
Delivery Units,Adults and Health,Other Agencies - Third Party P,90255623,CAREWATCH (BARNET),350.04,13/05/2020
Delivery Units,Adults and Health,Other Agencies - Third Party P,90255624,CAREWATCH (BARNET),253.45,13/05/2020
Delivery Units,Adults and Health,Other Agencies - Third Party P,90255625,CAREWATCH (BARNET),8.59,13/05/2020
Delivery Units,Adults and Health,Other Agencies - Third Party P,90255626,CAREWATCH (BARNET),70.89,13/05/2020
Delivery Units,Adults and Health,Other Agencies - Third Party P,90255627,CAREWATCH (BARNET),128.85,13/05/2020
Delivery Units,Adults and Health,Other Agencies - Third Party P,90255628,CAREWATCH (BARNET),231.94,13/05/2020
Delivery Units,Adults and Health,Other Agencies - Third Party P,90255629,CAREWATCH (BARNET),208.34,13/05/2020
Delivery Units,Adults and Health,Other Agencies - Third Party P,90255630,CAREWATCH (BARNET),36.51,13/05/2020
Delivery Units,Adults and Health,Other Agencies - Third Party P,90255632,CAREWATCH (BARNET),210.49,13/05/2020
Delivery Units,Adults and Health,Other Agencies - Third Party P,90255633,CAREWATCH (BARNET),287.80,13/05/2020
Delivery Units,Adults and Health,Other Agencies - Third Party P,90255634,CAREWATCH (BARNET),210.49,13/05/2020
Delivery Units,Adults and Health,Other Agencies - Third Party P,90255635,CAREWATCH (BARNET),60.13,13/05/2020
Delivery Units,Adults and Health,Other Agencies - Third Party P,90255636,CAREWATCH (BARNET),438.09,13/05/2020
Delivery Units,Adults and Health,Other Agencies - Third Party P,90255637,CAREWATCH (BARNET),206.23,13/05/2020
Delivery Units,Adults and Health,Other Agencies - Third Party P,90255639,CAREWATCH (BARNET),90.23,13/05/2020
Delivery Units,Adults and Health,Other Agencies - Third Party P,90255640,CAREWATCH (BARNET),150.36,13/05/2020
Delivery Units,Adults and Health,Other Agencies - Third Party P,90255641,CAREWATCH (BARNET),240.52,13/05/2020
Delivery Units,Adults and Health,Other Agencies - Third Party P,90255642,CAREWATCH (BARNET),601.30,13/05/2020
Delivery Units,Adults and Health,Other Agencies - Third Party P,90255643,CAREWATCH (BARNET),150.36,13/05/2020
Delivery Units,Adults and Health,Other Agencies - Third Party P,90255644,CAREWATCH (BARNET),712.97,13/05/2020
Delivery Units,Adults and Health,Other Agencies - Third Party P,90255645,CAREWATCH (BARNET),257.73,13/05/2020
Delivery Units,Adults and Health,Other Agencies - Third Party P,90255646,CAREWATCH (BARNET),180.39,13/05/2020
Delivery Units,Adults and Health,Other Agencies - Third Party P,90255647,CAREWATCH (BARNET),253.44,13/05/2020
Delivery Units,Adults and Health,Other Agencies - Third Party P,90255648,CAREWATCH (BARNET),781.90,13/05/2020
Delivery Units,Adults and Health,Other Agencies - Third Party P,90255649,CAREWATCH (BARNET),116.00,13/05/2020
Delivery Units,Adults and Health,Other Agencies - Third Party P,90255650,CAREWATCH (BARNET),287.78,13/05/2020
Delivery Units,Adults and Health,Other Agencies - Third Party P,90255651,CAREWATCH (BARNET),270.62,13/05/2020
Delivery Units,Adults and Health,Other Agencies - Third Party P,90255652,CAREWATCH (BARNET),287.80,13/05/2020
Delivery Units,Adults and Health,Other Agencies - Third Party P,90255653,CAREWATCH (BARNET),17.18,13/05/2020
Delivery Units,Adults and Health,Other Agencies - Third Party P,90255655,CAREWATCH (BARNET),270.62,13/05/2020
Delivery Units,Adults and Health,Other Agencies - Third Party P,90255656,CAREWATCH (BARNET),120.26,13/05/2020
Delivery Units,Adults and Health,Other Agencies - Third Party P,90255657,CAREWATCH (BARNET),330.75,13/05/2020
Delivery Units,Adults and Health,Other Agencies - Third Party P,90255659,CAREWATCH (BARNET),206.16,13/05/2020
Delivery Units,Adults and Health,Other Agencies - Third Party P,90255660,CAREWATCH (BARNET),270.62,13/05/2020
Delivery Units,Adults and Health,Other Agencies - Third Party P,90255661,CAREWATCH (BARNET),274.90,13/05/2020
Delivery Units,Adults and Health,Other Agencies - Third Party P,90255662,CAREWATCH (BARNET),287.78,13/05/2020
Delivery Units,Adults and Health,Other Agencies - Third Party P,90255663,CAREWATCH (BARNET),240.52,13/05/2020
Delivery Units,Adults and Health,Other Agencies - Third Party P,90255664,CAREWATCH (BARNET),51.54,13/05/2020
Delivery Units,Adults and Health,Other Agencies - Third Party P,90255665,CAREWATCH (BARNET),279.18,13/05/2020
Delivery Units,Adults and Health,Other Agencies - Third Party P,90255668,CAREWATCH (BARNET),115.97,13/05/2020
Delivery Units,Adults and Health,Other Agencies - Third Party P,90255669,CAREWATCH (BARNET),51.54,13/05/2020
Delivery Units,Adults and Health,Other Agencies - Third Party P,90255670,CAREWATCH (BARNET),128.90,13/05/2020
Delivery Units,Adults and Health,Other Agencies - Third Party P,90255672,CAREWATCH (BARNET),300.65,13/05/2020
Delivery Units,Adults and Health,Other Agencies - Third Party P,90255673,CAREWATCH (BARNET),176.10,13/05/2020
Delivery Units,Adults and Health,Other Agencies - Third Party P,90255674,CAREWATCH (BARNET),300.65,13/05/2020
Delivery Units,Adults and Health,Other Agencies - Third Party P,90255675,CAREWATCH (BARNET),219.08,13/05/2020
Delivery Units,Adults and Health,Other Agencies - Third Party P,90255676,CAREWATCH (BARNET),193.28,13/05/2020
Delivery Units,Adults and Health,Other Agencies - Third Party P,90255677,CAREWATCH (BARNET),90.23,13/05/2020
Delivery Units,Adults and Health,Other Agencies - Third Party P,90255679,CAREWATCH (BARNET),120.26,13/05/2020
Delivery Units,Adults and Health,Other Agencies - Third Party P,90255680,CAREWATCH (BARNET),90.23,13/05/2020
Delivery Units,Adults and Health,Other Agencies - Third Party P,90255681,CAREWATCH (BARNET),201.90,13/05/2020
Delivery Units,Adults and Health,Other Agencies - Third Party P,90255682,CAREWATCH (BARNET),184.68,13/05/2020
Delivery Units,Adults and Health,Other Agencies - Third Party P,90255683,CAREWATCH (BARNET),292.08,13/05/2020
Delivery Units,Adults and Health,Other Agencies - Third Party P,90255684,CAREWATCH (BARNET),244.85,13/05/2020
Delivery Units,Adults and Health,Other Agencies - Third Party P,90255685,CAREWATCH (BARNET),115.99,13/05/2020
Delivery Units,Adults and Health,Other Agencies - Third Party P,90255686,CAREWATCH (BARNET),330.72,13/05/2020
Delivery Units,Adults and Health,Other Agencies - Third Party P,90255687,CAREWATCH (BARNET),227.66,13/05/2020
Delivery Units,Adults and Health,Other Agencies - Third Party P,90255688,CAREWATCH (BARNET),90.20,13/05/2020
Delivery Units,Adults and Health,Other Agencies - Third Party P,90255689,CAREWATCH (BARNET),38.67,13/05/2020
Delivery Units,Adults and Health,Other Agencies - Third Party P,90255690,CAREWATCH (BARNET),90.23,13/05/2020
Delivery Units,Adults and Health,Other Agencies - Third Party P,90255691,CAREWATCH (BARNET),180.43,13/05/2020
Delivery Units,Adults and Health,Other Agencies - Third Party P,90255692,CAREWATCH (BARNET),300.66,13/05/2020
Delivery Units,Adults and Health,Other Agencies - Third Party P,90255693,CAREWATCH (BARNET),25.78,13/05/2020
Delivery Units,Adults and Health,Other Agencies - Third Party P,90255696,CAREWATCH (BARNET),225.53,13/05/2020
Delivery Units,Adults and Health,Other Agencies - Third Party P,90253632,DYNAMIC PEOPLE LTD,281.68,01/05/2020
Delivery Units,Adults and Health,Other Agencies - Third Party P,90253633,DYNAMIC PEOPLE LTD,173.00,01/05/2020
Delivery Units,Adults and Health,Other Agencies - Third Party P,90253634,DYNAMIC PEOPLE LTD,181.11,01/05/2020
Delivery Units,Adults and Health,Other Agencies - Third Party P,90253635,DYNAMIC PEOPLE LTD,305.82,01/05/2020
Delivery Units,Adults and Health,Other Agencies - Third Party P,90253636,DYNAMIC PEOPLE LTD,112.63,01/05/2020
Delivery Units,Adults and Health,Other Agencies - Third Party P,90253638,DYNAMIC PEOPLE LTD,197.19,01/05/2020
Delivery Units,Adults and Health,Other Agencies - Third Party P,90253640,DYNAMIC PEOPLE LTD,225.33,01/05/2020
Delivery Units,Adults and Health,Other Agencies - Third Party P,90253641,DYNAMIC PEOPLE LTD,84.49,01/05/2020
Delivery Units,Adults and Health,Other Agencies - Third Party P,90253642,DYNAMIC PEOPLE LTD,36.21,01/05/2020
Delivery Units,Adults and Health,Other Agencies - Third Party P,90253645,DYNAMIC PEOPLE LTD,140.84,01/05/2020
Delivery Units,Adults and Health,Other Agencies - Third Party P,90253646,DYNAMIC PEOPLE LTD,253.47,01/05/2020
Delivery Units,Adults and Health,Other Agencies - Third Party P,90253647,DYNAMIC PEOPLE LTD,60.35,01/05/2020
Delivery Units,Adults and Health,Other Agencies - Third Party P,90253649,DYNAMIC PEOPLE LTD,84.49,01/05/2020
Delivery Units,Adults and Health,Other Agencies - Third Party P,90253650,DYNAMIC PEOPLE LTD,128.79,01/05/2020
Delivery Units,Adults and Health,Other Agencies - Third Party P,90253651,DYNAMIC PEOPLE LTD,197.19,01/05/2020
Delivery Units,Adults and Health,Other Agencies - Third Party P,90253652,DYNAMIC PEOPLE LTD,84.49,01/05/2020
Delivery Units,Adults and Health,Other Agencies - Third Party P,90253653,DYNAMIC PEOPLE LTD,253.54,01/05/2020
Delivery Units,Adults and Health,Other Agencies - Third Party P,90253654,DYNAMIC PEOPLE LTD,108.64,01/05/2020
Delivery Units,Adults and Health,Other Agencies - Third Party P,90253656,DYNAMIC PEOPLE LTD,281.68,01/05/2020
Delivery Units,Adults and Health,Other Agencies - Third Party P,90253657,DYNAMIC PEOPLE LTD,225.33,01/05/2020
Delivery Units,Adults and Health,Other Agencies - Third Party P,90253658,DYNAMIC PEOPLE LTD,253.47,01/05/2020
Delivery Units,Adults and Health,Other Agencies - Third Party P,90253659,DYNAMIC PEOPLE LTD,269.55,01/05/2020
Delivery Units,Adults and Health,Other Agencies - Third Party P,90253660,DYNAMIC PEOPLE LTD,60.35,01/05/2020
Delivery Units,Adults and Health,Other Agencies - Third Party P,90253662,DYNAMIC PEOPLE LTD,297.78,01/05/2020
Delivery Units,Adults and Health,Other Agencies - Third Party P,90253663,DYNAMIC PEOPLE LTD,394.38,01/05/2020
Delivery Units,Adults and Health,Other Agencies - Third Party P,90253664,DYNAMIC PEOPLE LTD,337.96,01/05/2020
Delivery Units,Adults and Health,Other Agencies - Third Party P,90253665,DYNAMIC PEOPLE LTD,225.33,01/05/2020
Delivery Units,Adults and Health,Other Agencies - Third Party P,90253666,DYNAMIC PEOPLE LTD,197.19,01/05/2020
Delivery Units,Adults and Health,Other Agencies - Third Party P,90253667,DYNAMIC PEOPLE LTD,56.35,01/05/2020
Delivery Units,Adults and Health,Other Agencies - Third Party P,90253669,DYNAMIC PEOPLE LTD,84.49,01/05/2020
Delivery Units,Adults and Health,Other Agencies - Third Party P,90253671,DYNAMIC PEOPLE LTD,241.42,01/05/2020
Delivery Units,Adults and Health,Other Agencies - Third Party P,90253672,DYNAMIC PEOPLE LTD,309.82,01/05/2020
Delivery Units,Adults and Health,Other Agencies - Third Party P,90253673,DYNAMIC PEOPLE LTD,333.96,01/05/2020
Delivery Units,Adults and Health,Other Agencies - Third Party P,90253674,DYNAMIC PEOPLE LTD,140.84,01/05/2020
Delivery Units,Adults and Health,Other Agencies - Third Party P,90253676,DYNAMIC PEOPLE LTD,309.82,01/05/2020
Delivery Units,Adults and Health,Other Agencies - Third Party P,90253677,DYNAMIC PEOPLE LTD,84.49,01/05/2020
Delivery Units,Adults and Health,Other Agencies - Third Party P,90253679,DYNAMIC PEOPLE LTD,84.49,01/05/2020
Delivery Units,Adults and Health,Other Agencies - Third Party P,90253680,DYNAMIC PEOPLE LTD,394.24,01/05/2020
Delivery Units,Adults and Health,Other Agencies - Third Party P,90253681,DYNAMIC PEOPLE LTD,112.63,01/05/2020
Delivery Units,Adults and Health,Other Agencies - Third Party P,90253682,DYNAMIC PEOPLE LTD,370.07,01/05/2020
Delivery Units,Adults and Health,Other Agencies - Third Party P,90253683,DYNAMIC PEOPLE LTD,48.27,01/05/2020
Delivery Units,Adults and Health,Other Agencies - Third Party P,90253684,DYNAMIC PEOPLE LTD,273.56,01/05/2020
Delivery Units,Adults and Health,Other Agencies - Third Party P,90253685,DYNAMIC PEOPLE LTD,213.21,01/05/2020
Delivery Units,Adults and Health,Other Agencies - Third Party P,90253686,DYNAMIC PEOPLE LTD,80.50,01/05/2020
Delivery Units,Adults and Health,Other Agencies - Third Party P,90253689,DYNAMIC PEOPLE LTD,92.57,01/05/2020
Delivery Units,Adults and Health,Other Agencies - Third Party P,90253690,DYNAMIC PEOPLE LTD,72.42,01/05/2020
Delivery Units,Adults and Health,Other Agencies - Third Party P,90253691,DYNAMIC PEOPLE LTD,80.45,01/05/2020
Delivery Units,Adults and Health,Other Agencies - Third Party P,90253692,DYNAMIC PEOPLE LTD,462.72,01/05/2020
Delivery Units,Adults and Health,Other Agencies - Third Party P,90253694,DYNAMIC PEOPLE LTD,72.40,01/05/2020
Delivery Units,Adults and Health,Other Agencies - Third Party P,90253695,DYNAMIC PEOPLE LTD,124.70,01/05/2020
Delivery Units,Adults and Health,Other Agencies - Third Party P,90253696,DYNAMIC PEOPLE LTD,32.18,01/05/2020
Delivery Units,Adults and Health,Other Agencies - Third Party P,90253697,DYNAMIC PEOPLE LTD,112.67,01/05/2020
Delivery Units,Adults and Health,Other Agencies - Third Party P,90253698,DYNAMIC PEOPLE LTD,281.68,01/05/2020
Delivery Units,Adults and Health,Other Agencies - Third Party P,90253701,DYNAMIC PEOPLE LTD,96.54,01/05/2020
Delivery Units,Adults and Health,Other Agencies - Third Party P,90253703,DYNAMIC PEOPLE LTD,309.75,01/05/2020
Delivery Units,Adults and Health,Other Agencies - Third Party P,90253704,DYNAMIC PEOPLE LTD,168.98,01/05/2020
Delivery Units,Adults and Health,Other Agencies - Third Party P,90253705,DYNAMIC PEOPLE LTD,140.84,01/05/2020
Delivery Units,Adults and Health,Other Agencies - Third Party P,90253707,DYNAMIC PEOPLE LTD,64.36,01/05/2020
Delivery Units,Adults and Health,Other Agencies - Third Party P,90253708,DYNAMIC PEOPLE LTD,52.29,01/05/2020
Delivery Units,Adults and Health,Other Agencies - Third Party P,90253709,DYNAMIC PEOPLE LTD,56.35,01/05/2020
Delivery Units,Adults and Health,Other Agencies - Third Party P,90253711,DYNAMIC PEOPLE LTD,140.84,01/05/2020
Delivery Units,Adults and Health,Other Agencies - Third Party P,90253712,DYNAMIC PEOPLE LTD,104.65,01/05/2020
Delivery Units,Adults and Health,Other Agencies - Third Party P,90253714,DYNAMIC PEOPLE LTD,32.18,01/05/2020
Delivery Units,Adults and Health,Other Agencies - Third Party P,90253716,DYNAMIC PEOPLE LTD,124.70,01/05/2020
Delivery Units,Adults and Health,Other Agencies - Third Party P,90253717,DYNAMIC PEOPLE LTD,140.84,01/05/2020
Delivery Units,Adults and Health,Other Agencies - Third Party P,90253718,DYNAMIC PEOPLE LTD,128.76,01/05/2020
Delivery Units,Adults and Health,Other Agencies - Third Party P,90253719,DYNAMIC PEOPLE LTD,112.63,01/05/2020
Delivery Units,Adults and Health,Other Agencies - Third Party P,90253721,DYNAMIC PEOPLE LTD,96.54,01/05/2020
Delivery Units,Adults and Health,Other Agencies - Third Party P,90253725,DYNAMIC PEOPLE LTD,201.18,01/05/2020
Delivery Units,Adults and Health,Other Agencies - Third Party P,90253728,DYNAMIC PEOPLE LTD,253.54,01/05/2020
Delivery Units,Adults and Health,Other Agencies - Third Party P,90253729,DYNAMIC PEOPLE LTD,144.81,01/05/2020
Delivery Units,Adults and Health,Other Agencies - Third Party P,90253730,DYNAMIC PEOPLE LTD,84.49,01/05/2020
Delivery Units,Adults and Health,Other Agencies - Third Party P,90253731,DYNAMIC PEOPLE LTD,309.82,01/05/2020
Delivery Units,Adults and Health,Other Agencies - Third Party P,90253732,DYNAMIC PEOPLE LTD,169.05,01/05/2020
Delivery Units,Adults and Health,Other Agencies - Third Party P,90253733,DYNAMIC PEOPLE LTD,140.84,01/05/2020
Delivery Units,Adults and Health,Other Agencies - Third Party P,90253738,DYNAMIC PEOPLE LTD,197.12,01/05/2020
Delivery Units,Adults and Health,Other Agencies - Third Party P,90253739,DYNAMIC PEOPLE LTD,36.21,01/05/2020
Delivery Units,Adults and Health,Other Agencies - Third Party P,90253741,DYNAMIC PEOPLE LTD,56.35,01/05/2020
Delivery Units,Adults and Health,Other Agencies - Third Party P,90253742,DYNAMIC PEOPLE LTD,84.49,01/05/2020
Delivery Units,Adults and Health,Other Agencies - Third Party P,90253744,DYNAMIC PEOPLE LTD,56.35,01/05/2020
Delivery Units,Adults and Health,Other Agencies - Third Party P,90253745,DYNAMIC PEOPLE LTD,253.47,01/05/2020
Delivery Units,Adults and Health,Other Agencies - Third Party P,90253747,DYNAMIC PEOPLE LTD,84.49,01/05/2020
Delivery Units,Adults and Health,Other Agencies - Third Party P,90253748,DYNAMIC PEOPLE LTD,96.54,01/05/2020
Delivery Units,Adults and Health,Other Agencies - Third Party P,90253750,DYNAMIC PEOPLE LTD,96.55,01/05/2020
Delivery Units,Adults and Health,Other Agencies - Third Party P,90253751,DYNAMIC PEOPLE LTD,80.45,01/05/2020
Delivery Units,Adults and Health,Other Agencies - Third Party P,90253752,DYNAMIC PEOPLE LTD,20.11,01/05/2020
Delivery Units,Adults and Health,Other Agencies - Third Party P,90253753,DYNAMIC PEOPLE LTD,60.35,01/05/2020
Delivery Units,Adults and Health,Other Agencies - Third Party P,90253754,DYNAMIC PEOPLE LTD,84.48,01/05/2020
Delivery Units,Adults and Health,Other Agencies - Third Party P,90253755,DYNAMIC PEOPLE LTD,140.84,01/05/2020
Delivery Units,Adults and Health,Other Agencies - Third Party P,90253756,DYNAMIC PEOPLE LTD,136.81,01/05/2020
Delivery Units,Adults and Health,Other Agencies - Third Party P,90253757,DYNAMIC PEOPLE LTD,309.81,01/05/2020
Delivery Units,Adults and Health,Other Agencies - Third Party P,90253758,DYNAMIC PEOPLE LTD,112.63,01/05/2020
Delivery Units,Adults and Health,Other Agencies - Third Party P,90253761,DYNAMIC PEOPLE LTD,36.22,01/05/2020
Delivery Units,Adults and Health,Other Agencies - Third Party P,90253762,DYNAMIC PEOPLE LTD,84.49,01/05/2020
Delivery Units,Adults and Health,Other Agencies - Third Party P,1001509402,HARTWIG CARE LIMITED,922.34,13/05/2020
Delivery Units,Adults and Health,Other Agencies - Third Party P,1001516802,HARTWIG CARE LIMITED,"1,335.63",13/05/2020
Delivery Units,Adults and Health,Other Agencies - Third Party P,90255017,DIMENSIONS UK,462.24,11/05/2020
Delivery Units,Adults and Health,Other Agencies - Third Party P,90255379,Alina Homecare Ltd,324.45,13/05/2020
Delivery Units,Adults and Health,Other Agencies - Third Party P,90255380,Alina Homecare Ltd,152.96,13/05/2020
Delivery Units,Adults and Health,Other Agencies - Third Party P,90255382,Alina Homecare Ltd,231.75,13/05/2020
Delivery Units,Adults and Health,Other Agencies - Third Party P,90255387,Alina Homecare Ltd,106.61,13/05/2020
Delivery Units,Adults and Health,Other Agencies - Third Party P,90255388,Alina Homecare Ltd,129.78,13/05/2020
Delivery Units,Adults and Health,Other Agencies - Third Party P,90255389,Alina Homecare Ltd,454.23,13/05/2020
Delivery Units,Adults and Health,Other Agencies - Third Party P,90255391,Alina Homecare Ltd,292.01,13/05/2020
Delivery Units,Adults and Health,Other Agencies - Third Party P,90255392,Alina Homecare Ltd,361.53,13/05/2020
Delivery Units,Adults and Health,Other Agencies - Third Party P,90255393,Alina Homecare Ltd,305.91,13/05/2020
Delivery Units,Adults and Health,Other Agencies - Third Party P,90255394,Alina Homecare Ltd,129.78,13/05/2020
Delivery Units,Adults and Health,Other Agencies - Third Party P,90255395,Alina Homecare Ltd,97.34,13/05/2020
Delivery Units,Adults and Health,Other Agencies - Third Party P,90255397,Alina Homecare Ltd,92.70,13/05/2020
Delivery Units,Adults and Health,Other Agencies - Third Party P,90255398,Alina Homecare Ltd,60.26,13/05/2020
Delivery Units,Adults and Health,Other Agencies - Third Party P,90255399,Alina Homecare Ltd,648.90,13/05/2020
Delivery Units,Adults and Health,Other Agencies - Third Party P,90255400,Alina Homecare Ltd,319.82,13/05/2020
Delivery Units,Adults and Health,Other Agencies - Third Party P,90255403,Alina Homecare Ltd,292.01,13/05/2020
Delivery Units,Adults and Health,Other Agencies - Third Party P,90255404,Alina Homecare Ltd,97.34,13/05/2020
Delivery Units,Adults and Health,Other Agencies - Third Party P,90255405,Alina Homecare Ltd,213.21,13/05/2020
Delivery Units,Adults and Health,Other Agencies - Third Party P,90255409,Alina Homecare Ltd,375.44,13/05/2020
Delivery Units,Adults and Health,Other Agencies - Third Party P,90255410,Alina Homecare Ltd,162.23,13/05/2020
Delivery Units,Adults and Health,Other Agencies - Third Party P,90255411,Alina Homecare Ltd,287.37,13/05/2020
Delivery Units,Adults and Health,Other Agencies - Third Party P,90255413,Alina Homecare Ltd,292.01,13/05/2020
Delivery Units,Adults and Health,Other Agencies - Third Party P,90255415,Alina Homecare Ltd,292.01,13/05/2020
Delivery Units,Adults and Health,Other Agencies - Third Party P,90255417,Alina Homecare Ltd,27.81,13/05/2020
Delivery Units,Adults and Health,Other Agencies - Third Party P,90255418,Alina Homecare Ltd,69.53,13/05/2020
Delivery Units,Adults and Health,Other Agencies - Third Party P,90255420,Alina Homecare Ltd,162.23,13/05/2020
Delivery Units,Adults and Health,Other Agencies - Third Party P,90255421,Alina Homecare Ltd,55.62,13/05/2020
Delivery Units,Adults and Health,Other Agencies - Third Party P,90255424,Alina Homecare Ltd,120.51,13/05/2020
Delivery Units,Adults and Health,Other Agencies - Third Party P,90255425,Alina Homecare Ltd,27.81,13/05/2020
Delivery Units,Adults and Health,Other Agencies - Third Party P,90255427,Alina Homecare Ltd,171.50,13/05/2020
Delivery Units,Adults and Health,Other Agencies - Third Party P,90255428,Alina Homecare Ltd,88.07,13/05/2020
Delivery Units,Adults and Health,Other Agencies - Third Party P,90255429,Alina Homecare Ltd,129.78,13/05/2020
Delivery Units,Adults and Health,Other Agencies - Third Party P,90255430,Alina Homecare Ltd,352.26,13/05/2020
Delivery Units,Adults and Health,Other Agencies - Third Party P,90255431,Alina Homecare Ltd,129.78,13/05/2020
Delivery Units,Adults and Health,Other Agencies - Third Party P,90255432,Alina Homecare Ltd,97.34,13/05/2020
Delivery Units,Adults and Health,Other Agencies - Third Party P,90255433,Alina Homecare Ltd,162.23,13/05/2020
Delivery Units,Adults and Health,Other Agencies - Third Party P,90255436,Alina Homecare Ltd,97.34,13/05/2020
Delivery Units,Adults and Health,Other Agencies - Third Party P,90255437,Alina Homecare Ltd,120.51,13/05/2020
Delivery Units,Adults and Health,Other Agencies - Third Party P,90255439,Alina Homecare Ltd,97.34,13/05/2020
Delivery Units,Adults and Health,Other Agencies - Third Party P,90255440,Alina Homecare Ltd,227.12,13/05/2020
Delivery Units,Adults and Health,Other Agencies - Third Party P,90255441,Alina Homecare Ltd,120.51,13/05/2020
Delivery Units,Adults and Health,Other Agencies - Third Party P,90255442,Alina Homecare Ltd,190.04,13/05/2020
